Workbook

Sheet Смета на 2026 год
P1: Приложение № 1
P2: к Порядку составления, утверждения
P3: и ведения бюджетных смет Администрации
P4: Прионежского муниципального района
P5: и казенных учреждений, находящихся
P6: в ведении Администрации Прионежского
P7: муниципального района
P8: от 09 августа 2022 № 831
M10: УТВЕРЖДАЮ
J11: Глава Администрации Прионежского муниципального района
J12: (наименование должности лица, согласующего бюджетную смету)
J14: Администрация Прионежского муниципального района
J15: (наименование главного распорядителя (распорядителя) бюджетных средств; учреждения)
P17: Г.Н.Шемет
J18: (подпись) | P18: (расшифровка подписи)
J19: "16" декабря 2025 г.
A21: БЮДЖЕТНАЯ СМЕТА НА 2026 ФИНАНСОВЫЙ ГОД И ПЛАНОВЫЙ ПЕРИОД 2027 И 2028 ГОДОВ
B23: № 015/00402/001 от 16 декабря 2025 года
B24: (№, дата, справки об изменении ЛБО)
P26: КОДЫ
M27: Форма по ОКУД | O27: Форма по ОКУД | P27: 0501012
M28: Дата | O28: Дата | P28: =J19 -> "16" декабря 2025 г.
A29: Получатель бюджетных средств | B29: Муниципальное общеобразовательное учреждение "Средняя общеобразовательная школа № 44" | M29: по ОКПО | O29: по ОКПО | P29: 51326281
A30: Распорядитель бюджетных средств | B30: Администрация Прионежского муниципального района Республики Карелия
A31: Главный распорядитель бюджетных средств | B31: Администрация Прионежского муниципального района Республики Карелия
A32: Наименование бюджета | B32: Бюджет Прионежского муниципального района | M32: Глава по БК | O32: Глава по БК | P32: 015
A33: Единица измерения: | B33: руб. | M33: по ОКТМО | O33: по ОКТМО | P33: 86636410
M34: по ОКЕЙ | O34: по ОКЕЙ | P34: 383
A36: Наименование показателя (детализация кода бюджетной классификации) | B36: РЗ | C36: ПР | D36: ЦСР | E36: Вид расхода | F36: Детализация | G36: Вид целевых средств | H36: Сумма на текущий 2026 год | K36: Сумма на первый год планового периода | N36: Сумма на второй год планового периода
A38: 1 | B38: =SUM(A38+1) -> 2 | C38: 3 | D38: 4 | E38: 5 | F38: 6 | G38: 7 | H38: 8 | I38: 9 | J38: 8 | K38: 11 | L38: 12 | M38: 9 | N38: 14 | O38: 15 | P38: 10
A39: Средства местного бюджета (КЦ 1000)
A40: Заработная плата | B40: 07 | C40: 02 | D40: 0220270210 | E40: 111 | F40: 211000 | G40: 1000 | J40: 537,980.16 | K40: 537,980.16 | L40: 537,980.16 | M40: 537,980.16 | N40: 537,980.16 | O40: 537,980.16 | P40: 537,980.16
A41: Социальные пособия и компенсации персоналу в денежной форме (пособие за первые три дня временной нетрудоспособности за счет средств работодателя) | B41: 07 | C41: 02 | D41: 0220270210 | E41: 111 | F41: 266100 | G41: 1000
A42: Расходы по оплате проезда к месту отпуска и обратно отдельным категориям лиц (для лиц, работающих в районах Крайнего Севера и приравненных к ним местностям, и членов их семей) | B42: 07 | C42: 02 | D42: 0220270210 | E42: 112 | F42: 214000 | G42: 1000 | J42: 30,000.00 | K42: 30,000.00 | L42: 30,000.00 | M42: 30,000.00 | N42: 30,000.00 | O42: 30,000.00 | P42: 30,000.00
A43: Социальные пособия и компенсации персоналу в денежной форме (выходные пособия и компенсации работникам при их увольнении) | B43: 07 | C43: 02 | D43: 0220270210 | E43: 112 | F43: 266300 | G43: 1000
A44: Начисления на выплаты по оплате труда | B44: 07 | C44: 02 | D44: 0220270210 | E44: 119 | F44: 213000 | G44: 1000 | J44: 162,470.01 | K44: 162,470.01 | L44: 162,470.01 | M44: 162,470.01 | N44: 162,470.01 | O44: 162,470.01 | P44: 162,470.01
A45: Услуги связи (телефон) | B45: 07 | C45: 02 | D45: 0220270210 | E45: 244 | F45: 221100 | G45: 1000 | J45: 8,244.91 | M45: 10,306.14 | P45: 12,882.68
A46: Транспортные услуги | B46: 07 | C46: 02 | D46: 0220270210 | E46: 244 | F46: 222000 | G46: 1000 | J46: 18,216.90 | M46: 22,771.13 | P46: 28,463.91
A47: Обращение с твердыми коммунальными отходами (вывоз ТБО) | B47: 07 | C47: 02 | D47: 0220270210 | E47: 244 | F47: 223500 | G47: 1000 | J47: 32,551.14 | M47: 36,620.03 | P47: 41,197.54
A48: Техническое обслуживание внутренних сетей отопления и горячего водоснабжения | B48: 07 | C48: 02 | D48: 0220270210 | E48: 244 | F48: 225200 | G48: 1000
A49: Техническое обслуживание внутренних сетей отопления и горячего водоснабжения | B49: 07 | C49: 02 | D49: 0220270210 | E49: 244 | F49: 225200 | G49: 1000
A50: Санитарная и противопожарная (дезинфекция, дезинсекция, дератизация, газация, огнезащитная) обработка помещений | B50: 07 | C50: 02 | D50: 0220270210 | E50: 244 | F50: 225600 | G50: 1000 | J50: 31,712.06 | K50: 31,712.06 | L50: 31,712.06 | M50: 31,712.06 | N50: 31,712.06 | O50: 31,712.06 | P50: 31,712.06
A51: Содержание, обслуживание помещений и сетей инженерно-технического обеспечения | B51: 07 | C51: 02 | D51: 0220270210 | E51: 244 | F51: 225700 | G51: 1000 | J51: 142,500.00 | K51: 142,500.00 | L51: 142,500.00 | M51: 142,500.00 | N51: 142,500.00 | O51: 142,500.00 | P51: 142,500.00
A52: Текущий ремонт помещений и сетей инженерно-технического обеспечения | B52: 07 | C52: 02 | D52: 0220270210 | E52: 244 | F52: 225800 | G52: 1000
A53: Другие расходы | B53: 07 | C53: 02 | D53: 0220270210 | E53: 244 | F53: 225900 | G53: 1000 | J53: 100,000.00 | K53: 100,000.00 | L53: 100,000.00 | M53: 100,000.00 | N53: 100,000.00 | O53: 100,000.00 | P53: 100,000.00
A54: Охрана ведомственная, вневедомственная, пожарная | B54: 07 | C54: 02 | D54: 0220270210 | E54: 244 | F54: 226400 | G54: 1000 | J54: 92,240.85 | M54: 115,301.06 | P54: 144,126.33
A55: Медицинский осмотр водителей транспортных средств | B55: 07 | C55: 02 | D55: 0220270210 | E55: 244 | F55: 226500 | G55: 1000
A56: Медицинский осмотр работников учреждения, за исключением водителей трансртных средств | B56: 07 | C56: 02 | D56: 0220270210 | E56: 244 | F56: 226800 | G56: 1000
A57: Другие расходы | B57: 07 | C57: 02 | D57: 0220270210 | E57: 244 | F57: 226900 | G57: 1000 | J57: 100,000.00 | K57: 100,000.00 | L57: 100,000.00 | M57: 100,000.00 | N57: 100,000.00 | O57: 100,000.00 | P57: 100,000.00
A58: Обязательное страхование автогражданской ответственности | B58: 07 | C58: 02 | D58: 0220270210 | E58: 244 | F58: 227200 | G58: 1000
A59: Приобретение предметов длительного пользования (оборудование, мебель, компьютерная техника и т.п) стоимостью свыше 3000 рублей | B59: 07 | C59: 02 | D59: 0220270210 | E59: 244 | F59: 310100 | G59: 1000
A60: Другие расходы стоимостью до 3000,00 рублей | B60: 07 | C60: 02 | D60: 0220270210 | E60: 244 | F60: 310900 | G60: 1000
A61: Увеличение стоимости лекарственных препаратов и материалов, применяемых в медицинских целях | B61: 07 | C61: 02 | D61: 0220270210 | E61: 244 | F61: 341000 | G61: 1000 | J61: 12,375.00 | M61: 15,468.75 | P61: 19,335.94
A62: Топливо и ГСМ | B62: 07 | C62: 02 | D62: 0220270210 | E62: 244 | F62: 343000 | G62: 1000
A63: Приобретение строительных материалов | B63: 07 | C63: 02 | D63: 0220270210 | E63: 244 | F63: 344000 | G63: 1000
A64: Мягкий инвентарь | B64: 07 | C64: 02 | D64: 0220270210 | E64: 244 | F64: 345000 | G64: 1000 | J64: 14,200.00 | K64: 20,000.00 | L64: 20,000.00 | M64: 15,760.00 | N64: 20,000.00 | O64: 20,000.00 | P64: 18,064.00
A65: Увеличение стоимости прочих оборотных запасов (материалов) | B65: 07 | C65: 02 | D65: 0220270210 | E65: 244 | F65: 346000 | G65: 1000 | J65: 80,000.00 | K65: 80,000.00 | L65: 80,000.00 | M65: 80,000.00 | N65: 80,000.00 | O65: 80,000.00 | P65: 80,000.00
A66: Увеличение стоимости прочих оборотных запасов однократного применения | B66: 07 | C66: 02 | D66: 0220270210 | E66: 244 | F66: 349100 | G66: 1000
A67: Расходы на приобретение бутилированной питьевой воды, если у организации отсутствует система централизованного питьевого водоснабжения | B67: 07 | C67: 02 | D67: 0220270210 | E67: 244 | F67: 349200 | G67: 1000
A68: Отопление, горячее водоснабжение и газоснабжение | B68: 07 | C68: 02 | D68: 0220270210 | E68: 247 | F68: 223100 | G68: 1000 | J68: 1,994,773.44 | M68: 2,244,120.12 | N68: 3,650,000.00 | O68: 3,650,000.00 | P68: 2,524,635.14
A69: Электроэнергия | B69: 07 | C69: 02 | D69: 0220270210 | E69: 247 | F69: 223200 | G69: 1000 | J69: 735,965.00 | M69: 827,960.63 | P69: 931,455.70
A70: Холодное водоснабжение | B70: 07 | C70: 02 | D70: 0220270210 | E70: 247 | F70: 223300 | G70: 1000 | J70: 54,731.04 | M70: 60,410.18 | P70: 67,961.45
A71: Водоотведение | B71: 07 | C71: 02 | D71: 0220270210 | E71: 247 | F71: 223400 | G71: 1000 | J71: 30,169.62 | M71: 35,103.06 | P71: 39,490.94
A72: Иные выплаты текущего характера физическим лицам (Возмещение убытков, вреда и судебных издержек) | B72: 07 | C72: 02 | D72: 0220270210 | E72: 831 | F72: 296100 | G72: 1000
A73: Налог на имущство | B73: 07 | C73: 02 | D73: 0220270210 | E73: 851 | F73: 291200 | G73: 1000 | J73: 8,876.00 | K73: 8,876.00 | L73: 8,876.00 | M73: 8,876.00 | N73: 8,876.00 | O73: 8,876.00 | P73: 8,876.00
A74: Земельный налог, в том числе в период строительства объекта | B74: 07 | C74: 02 | D74: 0220270210 | E74: 851 | F74: 291300 | G74: 1000 | J74: 27,461.00 | K74: 27,461.00 | L74: 27,461.00 | M74: 27,461.00 | N74: 27,461.00 | O74: 27,461.00 | P74: 27,461.00
A75: Налоги, пошлины, сборы | B75: 07 | C75: 02 | D75: 0220270210 | E75: 852 | F75: 291900 | G75: 1000
A76: Транспортный налог | B76: 07 | C76: 02 | D76: 0220270210 | E76: 852 | F76: 291400 | G76: 1000
A77: Иные выплаты текущего характера физическим лицам (Возмещение убытков, вреда и судебных издержек) | B77: 07 | C77: 02 | D77: 0220270210 | E77: 853 | F77: 296100 | G77: 1000 | J77: =H77+I77 -> 0.00 | M77: =K77+L77 -> 0.00 | P77: =N77+O77 -> 0.00
A78: Другие расходы | B78: 07 | C78: 02 | D78: 0100072980 | E78: 244 | F78: 226900 | G78: 1000 | J78: =H78+I78 -> 0.00 | M78: =K78+L78 -> 0.00 | P78: =N78+O78 -> 0.00
A79: Охрана ведомственная, вневедомственная, пожарная | B79: 07 | C79: 02 | D79: 0400072920 | E79: 244 | F79: 226400 | G79: 1000 | J79: =H79+I79 -> 0.00 | M79: =K79+L79 -> 0.00 | P79: =N79+O79 -> 0.00
A80: Итого по КЦ 1000 (0702) | H80: =SUM(H40:H79) -> 0.00 | I80: =SUM(I40:I79) -> 0.00 | J80: 4,214,467.13 | K80: 1,240,999.23 | L80: 1,240,999.23 | M80: 4,604,820.33 | N80: 4,890,999.23 | O80: 4,890,999.23 | P80: 5,048,612.86
A81: Субвенции на обеспечение государственных гарантий реализации прав на получение общедоступного и бесплатного дошкольного образования в муниципальных дошкольных образовательных организациях, общедоступного и бесплатного дошкольного, начального общего, основного общего, среднего общего образования в муниципальных общеобразовательных организациях, обеспечение дополнительного образования детей в муниципальных общеобразовательных организациях (КЦ 254242190000219)
A82: Заработная плата | B82: 07 | C82: 01 | D82: 0220142190 | E82: 111 | F82: 211000 | G82: 254242190000219 | J82: =H82+I82 -> 0.00 | K82: 0.00 | M82: =K82+L82 -> 0.00 | N82: 0.00 | P82: =N82+O82 -> 0.00
A83: Социальные пособия и компенсации персоналу в денежной форме (пособие за первые три дня временной нетрудоспособности за счет средств работодателя) | B83: 07 | C83: 01 | D83: 0220142190 | E83: 111 | F83: 266100 | G83: 254242190000219 | J83: =H83+I83 -> 0.00 | K83: 0.00 | M83: =K83+L83 -> 0.00 | N83: 0.00 | P83: =N83+O83 -> 0.00
A84: Начисления на выплаты по оплате труда | B84: 07 | C84: 01 | D84: 0220142190 | E84: 119 | F84: 213000 | G84: 254242190000219 | J84: 0.00 | K84: 0.00 | M84: 0.00 | N84: 0.00 | P84: 0.00
A85: Услуги связи (интернет) | B85: 07 | C85: 01 | D85: 0220142190 | E85: 244 | F85: 221200 | G85: 254242190000219 | J85: 0.00 | K85: 0.00 | M85: 0.00 | N85: 0.00 | P85: 0.00
A86: Другие расходы | B86: 07 | C86: 01 | D86: 0220142190 | E86: 244 | F86: 226900 | G86: 254242190000219 | J86: 0.00 | K86: 0.00 | M86: 0.00 | N86: 0.00 | P86: 0.00
A87: Приобретение предметов длительного пользования (оборудование, мебель, компьютерная техника и т.п) стоимостью свыше 3000,00 рублей | B87: 07 | C87: 01 | D87: 0220142190 | E87: 244 | F87: 310100 | G87: 254242190000219 | J87: 0.00 | K87: 0.00 | M87: 0.00 | N87: 0.00 | P87: 0.00
A88: Другие расходы стоимостью до 3000,00 рублей | B88: 07 | C88: 01 | D88: 0220142190 | E88: 244 | F88: 310900 | G88: 254242190000219 | J88: 0.00 | K88: 0.00 | M88: 0.00 | N88: 0.00 | P88: 0.00
A89: Увеличение стоимости прочих оборотных запасов (материалов) | B89: 07 | C89: 01 | D89: 0220142190 | E89: 244 | F89: 346000 | G89: 254242190000219 | J89: 0.00 | K89: 0.00 | M89: 0.00 | N89: 0.00 | P89: 0.00
A90: Мероприятия по переподготовке и повышению квалификации кадров | B90: 07 | C90: 05 | D90: 0220142190 | E90: 244 | F90: 226700 | G90: 254242190000219 | J90: 0.00 | K90: 0.00 | M90: 0.00 | N90: 0.00 | P90: 0.00
A91: Заработная плата | B91: 07 | C91: 02 | D91: 0220242190 | E91: 111 | F91: 211000 | G91: 254242190000219 | J91: 0.00 | K91: 0.00 | M91: 0.00 | N91: 0.00 | P91: 0.00
A92: Социальные пособия и компенсации персоналу в денежной форме (пособие за первые три дня временной нетрудоспособности за счет средств работодателя) | B92: 07 | C92: 02 | D92: 0220242190 | E92: 111 | F92: 266100 | G92: 254242190000219 | J92: 0.00 | K92: 0.00 | M92: 0.00 | N92: 0.00 | P92: 0.00
A93: Начисления на выплаты по оплате труда | B93: 07 | C93: 02 | D93: 0220242190 | E93: 119 | F93: 213000 | G93: 254242190000219 | J93: 0.00 | K93: 0.00 | M93: 0.00 | N93: 0.00 | P93: 0.00
A94: Социальные пособия и компенсации персоналу в денежной форме (оплата дополнительных выходных дней в месяц родителю (опекуну, попечителю) для ухода за детьми-инвалидами | B94: 07 | C94: 02 | D94: 0220242190 | E94: 119 | F94: 266400 | G94: 254242190000219 | J94: 0.00 | K94: 0.00 | M94: 0.00 | N94: 0.00 | P94: 0.00
A95: Услуги связи (интернет) | B95: 07 | C95: 02 | D95: 0220242190 | E95: 244 | F95: 221200 | G95: 254242190000219 | J95: 0.00 | K95: 0.00 | M95: 0.00 | N95: 0.00 | P95: 0.00
A96: Другие расходы | B96: 07 | C96: 02 | D96: 0220242190 | E96: 244 | F96: 225900 | G96: 254242190000219 | J96: 0.00 | K96: 0.00 | M96: 0.00 | N96: 0.00 | P96: 0.00
A97: Другие расходы | B97: 07 | C97: 02 | D97: 0220242190 | E97: 244 | F97: 226900 | G97: 254242190000219 | J97: 0.00 | K97: 0.00 | M97: 0.00 | N97: 0.00 | P97: 0.00
A98: Приобретение предметов длительного пользования (оборудование, мебель, компьютерная техника и т.п) стоимостью свыше 3000,00 рублей | B98: 07 | C98: 02 | D98: 0220242190 | E98: 244 | F98: 310100 | G98: 254242190000219 | J98: 0.00 | K98: 0.00 | M98: 0.00 | N98: 0.00 | P98: 0.00
A99: Комплектование библиотечного фонда | B99: 07 | C99: 02 | D99: 0220242190 | E99: 244 | F99: 310200 | G99: 254242190000219 | J99: 0.00 | K99: 0.00 | M99: 0.00 | N99: 0.00 | P99: 0.00
A100: Другие расходы стоимостью до 3000,00 рублей | B100: 07 | C100: 02 | D100: 0220242190 | E100: 244 | F100: 310900 | G100: 254242190000219 | J100: 0.00 | K100: 0.00 | M100: 0.00 | N100: 0.00 | P100: 0.00
A101: Увеличение стоимости прочих оборотных запасов однократного применения | B101: 07 | C101: 02 | D101: 0220242190 | E101: 244 | F101: 349100 | G101: 254242190000219 | J101: 0.00 | K101: 0.00 | M101: 0.00 | N101: 0.00 | P101: 0.00
A102: Увеличение стоимости прочих оборотных запасов (материалов) | B102: 07 | C102: 02 | D102: 0220242190 | E102: 244 | F102: 346000 | G102: 254242190000219 | J102: 0.00 | K102: 0.00 | M102: 0.00 | N102: 0.00 | P102: 0.00
A103: Мероприятия по переподготовке и повышению квалификации кадров | B103: 07 | C103: 05 | D103: 0220242190 | E103: 244 | F103: 226700 | G103: 254242190000219 | H103: 0.00 | J103: 0.00 | K103: 0.00 | M103: 0.00 | N103: 0.00 | P103: 0.00
A104: Итого по КЦ 254242190000219 | H104: =SUM(H82:H103) -> 0.00 | I104: 0.00 | J104: 0.00 | K104: 0.00 | L104: 0.00 | M104: 0.00 | N104: 0.00 | O104: 0.00 | P104: 0.00
A105: Иные межбюджетные трансферты на ежемесячное денежное вознаграждение за классное руководство педагогическим работникам государственных и муниципальных общеобразовательных организаций (КЦ 2553030Х298570000000)
A106: Заработная плата | B106: 07 | C106: 02 | D106: 022Ю653030 | E106: 111 | F106: 211000 | G106: 2553030Х298570000000 | J106: =H106+I106 -> 0.00 | K106: 0.00 | M106: =K106+L106 -> 0.00 | N106: 0.00 | P106: =N106+O106 -> 0.00
A107: Начисления на выплаты по оплате труда | B107: 07 | C107: 02 | D107: 022Ю653030 | E107: 119 | F107: 213000 | G107: 2553030Х298570000000 | J107: =H107+I107 -> 0.00 | K107: 0.00 | M107: =K107+L107 -> 0.00 | N107: 0.00 | P107: =N107+O107 -> 0.00
A108: Итого субсидия (КЦ 2553030Х298570000000) | H108: =SUM(H106:H107) -> 0.00 | I108: 0.00 | J108: 0.00 | K108: 0.00 | L108: 0.00 | M108: 0.00 | N108: 0.00 | O108: 0.00 | P108: 0.00
A109: Субсидии на проведение мероприятий по обеспечению деятельности советников директора по воспитанию и взаимодействию с детскими общественными объединениями в общеобразовательных организациях (25-51790-00000-00000)
A110: Заработная плата | B110: 07 | C110: 02 | D110: 022Ю651790 | E110: 111 | F110: 211000 | G110: 25-51790-00000-00000 | J110: =H110+I110 -> 0.00 | K110: 0.00 | M110: =K110+L110 -> 0.00 | N110: 0.00 | P110: =N110+O110 -> 0.00
A111: Начисления на выплаты по оплате труда | B111: 07 | C111: 02 | D111: 022Ю651790 | E111: 119 | F111: 213000 | G111: 25-51790-00000-00000 | J111: =H111+I111 -> 0.00 | K111: 0.00 | M111: =K111+L111 -> 0.00 | N111: 0.00 | P111: =N111+O111 -> 0.00
A112: Итого субсидия КЦ 25-51790-00000-00000 | H112: =SUM(H110:H111) -> 0.00 | I112: 0.00 | J112: 0.00 | K112: 0.00 | L112: 0.00 | M112: 0.00 | N112: 0.00 | O112: 0.00 | P112: 0.00
A113: Иные межбюджетные трансферты на обеспечение выплат ежемесячного денежного вознаграждения советникам директоров по воспитанию и взаимодействию с детскими общественными объединениями государственных, муниципальных общеобразовательных организаций, профессиональных образовательных организацийх (КЦ 2550500Х298320000000 )
A114: Заработная плата | B114: 07 | C114: 02 | D114: 022Ю650500 | E114: 111 | F114: 211000 | G114: 2550500Х298320000000 | J114: =H114+I114 -> 0.00 | K114: 0.00 | M114: =K114+L114 -> 0.00 | N114: 0.00 | P114: =N114+O114 -> 0.00
A115: Начисления на выплаты по оплате труда | B115: 07 | C115: 02 | D115: 022Ю650500 | E115: 119 | F115: 213000 | G115: 2550500Х298320000000 | J115: =H115+I115 -> 0.00 | K115: 0.00 | M115: =K115+L115 -> 0.00 | N115: 0.00 | P115: =N115+O115 -> 0.00
A116: Итого субсидия КЦ 2550500Х298320000000 | H116: =SUM(H114:H115) -> 0.00 | I116: 0.00 | J116: 0.00 | K116: 0.00 | L116: 0.00 | M116: 0.00 | N116: 0.00 | O116: 0.00 | P116: 0.00
A117: Субвенции на осуществление государственных полномочий Республики Карелия по предоставлению предусмотренных пунктом 5 части 1 статьи 9 Закона Республики Карелия от 20 декабря 2013 года № 1755-ЗРК «Об образовании» мер социальной поддержки и социального обслуживания обучающимся с ограниченными возможностями здоровья, за исключением обучающихся (воспитываемых) в государственных образовательных организациях Республики Карелия (КЦ 254242100000210)
A118: Приобретение предметов длительного пользования (оборудование, мебель, компьютерная техника и т.п) стоимостью свыше 3000,00 рублей | B118: 07 | C118: 01 | D118: 0220242100 | E118: 244 | F118: 310100 | G118: 254242100000210
A119: Увеличение стоимости прочих оборотных запасов (материалов) | B119: 07 | C119: 01 | D119: 0220242100 | E119: 244 | F119: 346000 | G119: 254242100000210
A120: Приобретение предметов длительного пользования (оборудование, мебель, компьютерная техника и т.п) стоимостью свыше 3000,00 рублей | B120: 07 | C120: 02 | D120: 0220242100 | E120: 244 | F120: 310100 | G120: 254242100000210
A121: Другие расходы стоимостью до 3000,00 рублей | B121: 07 | C121: 02 | D121: 0220242100 | E121: 244 | F121: 310900 | G121: 254242100000210
A122: Увеличение стоимости прочих оборотных запасов (материалов) | B122: 07 | C122: 02 | D122: 0220242100 | E122: 244 | F122: 346000 | G122: 254242100000210
A123: Увеличение стоимости прочих оборотных запасов (материалов) | B123: 07 | C123: 02 | D123: 0220242100 | E123: 244 | F123: 346000 | G123: 254242100000210
A124: Пособия по социальной помощи населению в натуральной форме | B124: 07 | C124: 02 | D124: 0220242100 | E124: 323 | F124: 263000 | G124: 254242100000210 | J124: =H124+I124 -> 0.00 | K124: 0.00 | M124: =K124+L124 -> 0.00 | N124: 0.00 | P124: =N124+O124 -> 0.00
A125: Пособия по социальной помощи населению в денежной форме | B125: 10 | C125: 03 | D125: 0220242100 | E125: 321 | F125: 262000 | G125: 254242100000210 | J125: =H125+I125 -> 0.00 | K125: 0.00 | M125: =K125+L125 -> 0.00 | N125: 0.00 | P125: =N125+O125 -> 0.00
A126: Итого по КЦ 254242100000210 | H126: =SUM(H124:H125) -> 0.00 | I126: =SUM(I124:I125) -> 0.00 | J126: =SUM(J124:J125) -> 0.00 | K126: =SUM(K124:K125) -> 0.00 | L126: 0.00 | M126: 0.00 | N126: 0.00 | O126: 0.00 | P126: 0.00
A127: Субвенции на осуществление государственных полномочий Республики Карелия по выплате компенсации платы, взимаемой с родителей (законных представителей) за присмотр и уход за детьми, осваивающими образовательные программы дошкольного образования в организациях, осуществляющих образовательную деятельность, за исключением государственных образовательных организаций Республики Карелия (КЦ 254242030000203)
A128: Пособия по социальной помощи населению в денежной форме | B128: 10 | C128: 04 | D128: 0220142030 | E128: 323 | F128: 263000 | G128: 254242030000203 | H128: 0.00 | J128: =H128+I128 -> 0.00 | K128: 0.00 | M128: 0.00 | N128: 0.00 | P128: 0.00
A129: Пособия по социальной помощи населению в денежной форме | B129: 10 | C129: 04 | D129: 0220142030 | E129: 321 | F129: 263000 | G129: 254242030000203 | J129: =H129+I129 -> 0.00 | K129: 0.00 | M129: 0.00 | N129: 0.00 | P129: 0.00
A130: Итого по КЦ 254242030000203 | H130: =SUM(H128:H129) -> 0.00 | I130: 0.00 | J130: 0.00 | K130: 0.00 | L130: 0.00 | M130: 0.00 | N130: 0.00 | O130: 0.00 | P130: 0.00
A131: Субсидии на организацию бесплатного горячего питания обучающихся, получающих начальное общее образование в государственных и муниципальных организациях (КЦ 25-53040-00000-00000)
A132: Другие расходы | B132: 07 | C132: 02 | D132: 02202L3040 | E132: 244 | F132: 226900 | G132: 25-53040-00000-00000 | J132: =H132+I132 -> 0.00 | K132: 0.00 | M132: =K132+L132 -> 0.00 | N132: 0.00 | P132: =N132+O132 -> 0.00
A133: Итого по КЦ 24-53040-00000-00000 | H133: =SUM(H132:H132) -> 0.00 | I133: 0.00 | J133: 0.00 | K133: 0.00 | L133: 0.00 | M133: 0.00 | N133: 0.00 | O133: 0.00 | P133: 0.00
A134: Субсидии местным бюджетам на реализацию мероприятий государственной программы Республики Карелия "Совершенствование социальной защиты" в целях организации адресной социальной помощи семьям, имеющим детей"
A135: Пособия по социальной помощи населению в натуральной форме | B135: 10 | C135: 03 | D135: 0320243210 | E135: 323 | F135: 263000 | G135: 254343210000316 | J135: =H135+I135 -> 0.00 | K135: 0.00 | M135: =K135+L135 -> 0.00 | N135: 0.00 | P135: =N135+O135 -> 0.00
A136: Итого по КЦ 254343210000316 | H136: =SUM(H134:H135) -> 0.00 | I136: 0.00 | J136: 0.00 | K136: 0.00 | L136: 0.00 | M136: 0.00 | N136: 0.00 | O136: 0.00 | P136: 0.00
A137: Пособия по социальной помощи населению в натуральной форме | B137: 10 | C137: 03 | D137: 03202S3210 | E137: 323 | F137: 263000 | G137: 1000 | J137: =H137+I137 -> 0.00 | K137: 0.00 | M137: =K137+L137 -> 0.00 | N137: 0.00 | P137: =N137+O137 -> 0.00
A138: Итого по КЦ 1000 | H138: =SUM(H137) -> 0.00 | I138: 0.00 | J138: 0.00 | K138: 0.00 | L138: 0.00 | M138: 0.00 | N138: 0.00 | O138: 0.00 | P138: 0.00
A139: Субсидии на реализацию мероприятий государственной программы Республики Карелия " Развитие образования"
A140: Транспортные услуги | B140: 07 | C140: 02 | D140: 0220243202 | E140: 244 | F140: 222000 | G140: 254343200000320 | J140: =H140+I140 -> 0.00 | K140: 0.00 | M140: =K140+L140 -> 0.00 | N140: 0.00 | P140: =N140+O140 -> 0.00
A141: Другие расходы | B141: 07 | C141: 02 | D141: 0220243202 | E141: 244 | F141: 225900 | G141: 254343200000320 | J141: =H141+I141 -> 0.00 | K141: 0.00 | M141: =K141+L141 -> 0.00 | N141: 0.00 | P141: =N141+O141 -> 0.00
A142: Топливо и ГСМ | B142: 07 | C142: 02 | D142: 0220243202 | E142: 244 | F142: 343000 | G142: 254343200000320 | J142: =H142+I142 -> 0.00 | K142: 0.00 | M142: =K142+L142 -> 0.00 | N142: 0.00 | P142: =N142+O142 -> 0.00
A143: Увеличение стоимости прочих оборотных запасов (материалов) | B143: 07 | C143: 02 | D143: 0220243202 | E143: 244 | F143: 346000 | G143: 254343200000320 | J143: =H143+I143 -> 0.00 | K143: 0.00 | M143: =K143+L143 -> 0.00 | N143: 0.00 | P143: =N143+O143 -> 0.00
A144: Итого по КЦ 254343200000320 | H144: =SUM(H140:H143) -> 0.00 | I144: =SUM(I140:I143) -> 0.00 | J144: =SUM(J140:J143) -> 0.00 | K144: =SUM(K140) -> 0.00 | L144: 0.00 | M144: 0.00 | N144: 0.00 | O144: 0.00 | P144: 0.00
A145: Транспортные услуги | B145: 07 | C145: 02 | D145: 02202S3202 | E145: 244 | F145: 222000 | G145: 1000 | J145: =H145+I145 -> 0.00 | K145: 0.00 | M145: 0.00 | N145: 0.00 | P145: 0.00
A146: Другие расходы | B146: 07 | C146: 02 | D146: 02202S3202 | E146: 244 | F146: 225900 | G146: 1000 | J146: =H146+I146 -> 0.00 | K146: 0.00 | M146: 0.00 | N146: 0.00 | P146: 0.00
A147: Топливо и ГСМ | B147: 07 | C147: 02 | D147: 02202S3202 | E147: 244 | F147: 343000 | G147: 1000 | J147: =H147+I147 -> 0.00 | K147: 0.00 | M147: 0.00 | N147: 0.00 | P147: 0.00
A148: Увеличение стоимости прочих оборотных запасов (материалов) | B148: 07 | C148: 02 | D148: 02202S3202 | E148: 244 | F148: 346000 | G148: 1000 | J148: =H148+I148 -> 0.00 | K148: 0.00 | M148: 0.00 | N148: 0.00 | P148: 0.00
A149: Итого по КЦ 1000 | H149: =SUM(H145:H148) -> 0.00 | I149: =SUM(I145:I148) -> 0.00 | J149: =SUM(J145:J148) -> 0.00 | K149: =SUM(K148) -> 0.00 | L149: 0.00 | M149: 0.00 | N149: 0.00 | O149: 0.00 | P149: 0.00
A150: Субсидия местным бюджетам на организацию отдыха детей в каникулярное время (КЦ 254343540000778)
A151: Другие расходы | B151: 07 | C151: 09 | D151: 02202S3540 | E151: 244 | F151: 226900 | G151: 254343540000778 | J151: =H151+I151 -> 0.00 | K151: 0.00 | M151: =K151+L151 -> 0.00 | N151: 0.00 | P151: =N151+O151 -> 0.00
A152: Расходы на оплату услуг по страхованию здоровья | B152: 07 | C152: 09 | D152: 02202S3540 | E152: 244 | F152: 227300 | G152: 254343540000778 | J152: =H152+I152 -> 0.00 | K152: 0.00 | M152: =K152+L152 -> 0.00 | N152: 0.00 | P152: =N152+O152 -> 0.00
A153: Увеличение стоимости прочих оборотных запасов (материалов) | B153: 07 | C153: 09 | D153: 02202S3540 | E153: 244 | F153: 346000 | G153: 254343540000778 | J153: =H153+I153 -> 0.00 | K153: 0.00 | M153: =K153+L153 -> 0.00 | N153: 0.00 | P153: =N153+O153 -> 0.00
A154: Итого субсидия КЦ 254343540000778 | H154: =SUM(H150:H153) -> 0.00 | I154: 0.00 | J154: 0.00 | K154: 0.00 | L154: 0.00 | M154: 0.00 | N154: 0.00 | O154: 0.00 | P154: 0.00
G155: Всего | H155: =#REF!+H80+#REF!+H104+H126+H130+H133+H136+H138+H144+H149+H112+H108+H116+H154 ->  | I155: =#REF!+I80+#REF!+I104+I126+I130+I133+I136+I138+I144+I149+I112+I108+I116+I154 ->  | J155: =J80+J104+J126+J130+J133+J136+J138+J144+J149+J112+J108+J116+J154 -> 4,214,467.13 | K155: =K80+K104+K126+K130+K133+K136+K138+K144+K149+K112+K108+K116+K154 -> 1,240,999.23 | L155: 1,240,999.23 | M155: 4,604,820.33 | N155: 4,890,999.23 | O155: 4,890,999.23 | P155: 5,048,612.86
A160: Директор | F160: И. А. Сидорова
B161: (подпись) | F161: (расшифровка подписи)
A163: Гл.бухгалтер МУ "ЦБ № 1" | F163: И. В. Ананьева
A164: (уполномоченное лицо) | B164: (подпись) | F164: (расшифровка подписи)
A166: Главный экономист ПЭО МУ "ЦБ № 1" | F166: Е. Л. Герасимова
A167: (исполнитель) | B167: (подпись) | F167: (расшифровка подписи)
A169: =J19 -> "16" декабря 2025 г.

Sheet 15.01
P1: Приложение № 2
P2: к Порядку составления, утверждения
P3: и ведения бюджетных смет Администрации
P4: Прионежского муниципального района
P5: и казенных учреждений, находящихся
P6: в ведении Администрации Прионежского
P7: муниципального района
P8: от 09 августа 2022 № 831
L10: УТВЕРЖДАЮ
L11: Глава Администрации Прионежского муниципального района
L12: (наименование должности лица, согласующего бюджетную смету)
L13: Администрация Прионежского муниципального района
L14: (наименование главного распорядителя (распорядителя) бюджетных средств; учреждения)
L16: Г. Н. Шемет
L17: (подпись) | N17: (расшифровка подписи)
L18: "15" января 2026 г.
A20: ИЗМЕНЕНИЕ К БЮДЖЕТНОЙ СМЕТЕ НА 2026 ФИНАНСОВЫЙ ГОД И ПЛАНОВЫЙ ПЕРИОД 2027 И 2028 ГОДОВ
B22: № 015/00402/002 от | H22: =L18 -> "15" января 2026 г.
A23: (№, дата, справки об изменении ЛБО) | P23: КОДЫ
O24: Форма по ОКУД | P24: 0501012
O25: Дата | P25: =L18 -> "15" января 2026 г.
O26: по ОКПО | P26: 51326281
A27: Получатель бюджетных средств | B27: Муниципальное общеобразовательное учреждение "Средняя общеобразовательная школа № 44"
A28: Распорядитель бюджетных средств | B28: Администрация Прионежского муниципального района Республики Карелия
A29: Главный распорядитель бюджетных средств | B29: Администрация Прионежского муниципального района Республики Карелия | O29: Глава по БК | P29: 015
A30: Наименование бюджета | B30: Бюджет Прионежского муниципального района | O30: по ОКТМО | P30: 86636410
A31: Единица измерения: | B31: руб. | O31: по ОКЕЙ | P31: 383
A33: Наименование показателя (детализация кода бюджетной классификации) | B33: РЗ | C33: ПР | D33: ЦСР | E33: Вид расхода | F33: Детализация | G33: Вид целевых средств | H33: Сумма на текущий 2026 год | K33: Сумма на первый год планового периода | N33: Сумма на второй год планового периода
H34: на 16.12.2025 г | I34: изменения(+;-) | J34: Итого | K34: =H34 -> на 16.12.2025 г | L34: изменения(+;-) | M34: Итого | N34: =H34 -> на 16.12.2025 г | O34: изменения(+;-) | P34: Итого
A35: 1 | B35: =SUM(A35+1) -> 2 | C35: 3 | D35: 4 | E35: 5 | F35: 6 | G35: 7 | H35: 8 | I35: 9 | J35: 10 | K35: 11 | L35: 12 | M35: 13 | N35: 14 | O35: 15 | P35: 16
A36: Средства местного бюджета (КЦ 1000) 0702
A37: Заработная плата | B37: 07 | C37: 02 | D37: 0220270210 | E37: 111 | F37: 211000 | G37: 1000 | H37: 537,980.16 | J37: =H37+I37 -> 537,980.16 | K37: 537,980.16 | M37: =K37+L37 -> 537,980.16 | N37: 537,980.16 | P37: =N37+O37 -> 537,980.16
A38: Социальные пособия и компенсации персоналу в денежной форме (пособие за первые три дня временной нетрудоспособности за счет средств работодателя) | B38: 07 | C38: 02 | D38: 0220270210 | E38: 111 | F38: 266100 | G38: 1000 | H38: 0.00 | J38: 0.00 | K38: 0.00 | M38: 0.00 | N38: 0.00 | P38: 0.00
A39: Расходы по оплате проезда к месту отпуска и обратно отдельным категориям лиц (для лиц, работающих в районах Крайнего Севера и приравненных к ним местностям, и членов их семей) | B39: 07 | C39: 02 | D39: 0220270210 | E39: 112 | F39: 214000 | G39: 1000 | H39: 30,000.00 | J39: 30,000.00 | K39: 30,000.00 | M39: 30,000.00 | N39: 30,000.00 | P39: 30,000.00
A40: Начисления на выплаты по оплате труда | B40: 07 | C40: 02 | D40: 0220270210 | E40: 119 | F40: 213000 | G40: 1000 | H40: 162,470.01 | J40: 162,470.01 | K40: 162,470.01 | M40: 162,470.01 | N40: 162,470.01 | P40: 162,470.01
A41: Услуги связи (телефон) | B41: 07 | C41: 02 | D41: 0220270210 | E41: 244 | F41: 221100 | G41: 1000 | H41: 8,244.91 | J41: 8,244.91 | K41: 10,306.14 | M41: 10,306.14 | N41: 12,882.68 | P41: 12,882.68
A42: Услуги связи (почта) | B42: 07 | C42: 02 | D42: 0220270210 | E42: 244 | F42: 221300 | G42: 1000 | H42: 0.00 | J42: 0.00 | K42: 0.00 | M42: 0.00 | N42: 0.00 | P42: 0.00
A43: Транспортные услуги | B43: 07 | C43: 02 | D43: 0220270210 | E43: 244 | F43: 222000 | G43: 1000 | H43: 18,216.90 | J43: =H43+I43 -> 18,216.90 | K43: 22,771.13 | M43: =K43+L43 -> 22,771.13 | N43: 28,463.91 | P43: =N43+O43 -> 28,463.91
A44: Обращение с твердыми коммунальными отходами (вывоз ТБО) | B44: 07 | C44: 02 | D44: 0220270210 | E44: 244 | F44: 223500 | G44: 1000 | H44: 32,551.14 | J44: 32,551.14 | K44: 36,620.03 | M44: 36,620.03 | N44: 41,197.54 | P44: 41,197.54
A45: Техническое обслуживание внутренних сетей отопления и горячего водоснабжения | B45: 07 | C45: 02 | D45: 0220270210 | E45: 244 | F45: 225200 | G45: 1000 | H45: 0.00 | J45: 0.00 | K45: 0.00 | M45: 0.00 | N45: 0.00 | P45: 0.00
A46: Санитарная и противопожарная (дезинфекция, дезинсекция, дератизация, газация, огнезащитная) обработка помещений | B46: 07 | C46: 02 | D46: 0220270210 | E46: 244 | F46: 225600 | G46: 1000 | H46: 31,712.06 | J46: 31,712.06 | K46: 31,712.06 | M46: 31,712.06 | N46: 31,712.06 | P46: 31,712.06
A47: Содержание, обслуживание помещений и сетей инженерно-технического обеспечения | B47: 07 | C47: 02 | D47: 0220270210 | E47: 244 | F47: 225700 | G47: 1000 | H47: 142,500.00 | J47: 142,500.00 | K47: 142,500.00 | M47: 142,500.00 | N47: 142,500.00 | P47: 142,500.00
A48: Текущий ремонт помещений и сетей инженерно-технического обеспечения | B48: 07 | C48: 02 | D48: 0220270210 | E48: 244 | F48: 225800 | G48: 1000 | H48: 0.00 | J48: 0.00 | K48: 0.00 | M48: 0.00 | N48: 0.00 | P48: 0.00
A49: Другие расходы | B49: 07 | C49: 02 | D49: 0220270210 | E49: 244 | F49: 225900 | G49: 1000 | H49: 100,000.00 | I49: 10,000.00 | J49: 110,000.00 | K49: 100,000.00 | M49: 100,000.00 | N49: 100,000.00 | P49: 100,000.00
A50: Аттестация | B50: 07 | C50: 02 | D50: 0220270210 | E50: 244 | F50: 226200 | G50: 1000 | H50: 0.00 | J50: =H50+I50 -> 0.00 | K50: 0.00 | M50: =K50+L50 -> 0.00 | N50: 0.00 | P50: =N50+O50 -> 0.00
A51: Охрана ведомственная, вневедомственная, пожарная | B51: 07 | C51: 02 | D51: 0220270210 | E51: 244 | F51: 226400 | G51: 1000 | H51: 92,240.85 | J51: 92,240.85 | K51: 115,301.06 | M51: 115,301.06 | N51: 144,126.33 | P51: 144,126.33
A52: Мероприятия по переподготовке и повышению квалификации кадров | B52: 07 | C52: 02 | D52: 0220270210 | E52: 244 | F52: 226700 | G52: 1000 | H52: 0.00 | J52: 0.00 | K52: 0.00 | M52: 0.00 | N52: 0.00 | P52: 0.00
A53: Медицинский осмотр работников учреждения, за исключением водителей трансртных средств | B53: 07 | C53: 02 | D53: 0220270210 | E53: 244 | F53: 226800 | G53: 1000 | H53: 0.00 | J53: 0.00 | K53: 0.00 | M53: 0.00 | N53: 0.00 | P53: 0.00
A54: Другие расходы | B54: 07 | C54: 02 | D54: 0220270210 | E54: 244 | F54: 226900 | G54: 1000 | H54: 100,000.00 | J54: 100,000.00 | K54: 100,000.00 | M54: 100,000.00 | N54: 100,000.00 | P54: 100,000.00
A55: Приобретение предметов длительного пользования (оборудование, мебель, компьютерная техника и т.п) стоимостью свыше 3000 рублей | B55: 07 | C55: 02 | D55: 0220270210 | E55: 244 | F55: 310100 | G55: 1000 | H55: 0.00 | J55: 0.00 | K55: 0.00 | M55: 0.00 | N55: 0.00 | P55: 0.00
A56: Другие расходы стоимостью до 3000,00 рублей | B56: 07 | C56: 02 | D56: 0220270210 | E56: 244 | F56: 310900 | G56: 1000 | H56: 0.00 | J56: 0.00 | K56: 0.00 | M56: 0.00 | N56: 0.00 | P56: 0.00
A57: Увеличение стоимости лекарственных препаратов и материалов, применяемых в медицинских целях | B57: 07 | C57: 02 | D57: 0220270210 | E57: 244 | F57: 341000 | G57: 1000 | H57: 12,375.00 | J57: =H57+I57 -> 12,375.00 | K57: 15,468.75 | M57: =K57+L57 -> 15,468.75 | N57: 19,335.94 | P57: =N57+O57 -> 19,335.94
A58: Приобретение строительных материалов | B58: 07 | C58: 02 | D58: 0220270210 | E58: 244 | F58: 344000 | G58: 1000 | H58: 0.00 | J58: 0.00 | K58: 0.00 | M58: 0.00 | N58: 0.00 | P58: 0.00
A59: Мягкий инвентарь | B59: 07 | C59: 02 | D59: 0220270210 | E59: 244 | F59: 345000 | G59: 1000 | H59: 14,200.00 | J59: =H59+I59 -> 14,200.00 | K59: 15,760.00 | M59: =K59+L59 -> 15,760.00 | N59: 18,064.00 | P59: =N59+O59 -> 18,064.00
A60: Увеличение стоимости прочих оборотных запасов (материалов) | B60: 07 | C60: 02 | D60: 0220270210 | E60: 244 | F60: 346000 | G60: 1000 | H60: 80,000.00 | J60: 80,000.00 | K60: 80,000.00 | M60: 80,000.00 | N60: 80,000.00 | P60: 80,000.00
A61: Увеличение стоимости прочих оборотных запасов однократного применения | B61: 07 | C61: 02 | D61: 0220270210 | E61: 244 | F61: 349100 | G61: 1000 | H61: 0.00 | J61: 0.00 | K61: 0.00 | M61: 0.00 | N61: 0.00 | P61: 0.00
A62: Отопление, горячее водоснабжение и газоснабжение | B62: 07 | C62: 02 | D62: 0220270210 | E62: 247 | F62: 223100 | G62: 1000 | H62: 1,994,773.44 | J62: 1,994,773.44 | K62: 2,244,120.12 | M62: 2,244,120.12 | N62: 2,524,635.14 | P62: 2,524,635.14
A63: Электроэнергия | B63: 07 | C63: 02 | D63: 0220270210 | E63: 247 | F63: 223200 | G63: 1000 | H63: 735,965.00 | J63: 735,965.00 | K63: 827,960.63 | M63: 827,960.63 | N63: 931,455.70 | P63: 931,455.70
A64: Холодное водоснабжение | B64: 07 | C64: 02 | D64: 0220270210 | E64: 247 | F64: 223300 | G64: 1000 | H64: 54,731.04 | J64: 54,731.04 | K64: 60,410.18 | M64: 60,410.18 | N64: 67,961.45 | P64: 67,961.45
A65: Водоотведение | B65: 07 | C65: 02 | D65: 0220270210 | E65: 247 | F65: 223400 | G65: 1000 | H65: 30,169.62 | J65: 30,169.62 | K65: 35,103.06 | M65: 35,103.06 | N65: 39,490.94 | P65: 39,490.94
A66: Пособия по социальной помощи населению в натуральной форме | B66: 07 | C66: 02 | D66: 0220270210 | E66: 323 | F66: 263000 | G66: 1000 | H66: 0.00 | J66: =H66+I66 -> 0.00 | K66: 0.00 | M66: 0.00 | N66: 0.00 | P66: 0.00
A67: Налог на имущство | B67: 07 | C67: 02 | D67: 0220270210 | E67: 851 | F67: 291200 | G67: 1000 | H67: 8,876.00 | J67: 8,876.00 | K67: 8,876.00 | M67: 8,876.00 | N67: 8,876.00 | P67: 8,876.00
A68: Земельный налог, в том числе в период строительства объекта | B68: 07 | C68: 02 | D68: 0220270210 | E68: 851 | F68: 291300 | G68: 1000 | H68: 27,461.00 | J68: 27,461.00 | K68: 27,461.00 | M68: 27,461.00 | N68: 27,461.00 | P68: 27,461.00
A69: Штрафы за нарушение законодательства о налогах и сборах, законодательства о страховых взносах | B69: 07 | C69: 02 | D69: 0220270210 | E69: 853 | F69: 292000 | G69: 1000 | H69: 0.00 | J69: =H69+I69 -> 0.00 | K69: 0.00 | M69: =K69+L69 -> 0.00 | N69: 0.00 | P69: =N69+O69 -> 0.00
A70: Иные выплаты текущего характера физическим лицам (возмещение убытков, вреда и судебных издержек) | B70: 07 | C70: 02 | D70: 0220270210 | E70: 853 | F70: 296100 | G70: 1000 | H70: 0.00 | J70: =H70+I70 -> 0.00 | K70: 0.00 | M70: =K70+L70 -> 0.00 | N70: 0.00 | P70: =N70+O70 -> 0.00
A71: Транспортный налог | B71: 07 | C71: 02 | D71: 0220270210 | E71: 852 | F71: 291400 | G71: 1000 | H71: 0.00 | J71: 0.00 | K71: 0.00 | M71: 0.00 | N71: 0.00 | P71: 0.00
A72: Штрафы за нарушение законодательства о закупках и нарушенияе условий контракта (договоров) | B72: 07 | C72: 02 | D72: 0220270210 | E72: 831 | F72: 293000 | G72: 1000 | H72: 0.00 | J72: 0.00 | K72: 0.00 | M72: 0.00 | N72: 0.00 | P72: 0.00
A73: Другие экономические санкции | B73: 07 | C73: 02 | D73: 0220270210 | E73: 853 | F73: 295000 | G73: 1000 | H73: 0.00 | J73: 0.00 | K73: 0.00 | M73: 0.00 | N73: 0.00 | P73: 0.00
A74: Иные выплаты текущего характера организациям (возмещение убытков, вред и судебных издержек) | B74: 07 | C74: 02 | D74: 0220270210 | E74: 851 | F74: 297100 | G74: 1000 | H74: 0.00 | J74: 0.00 | K74: 0.00 | M74: 0.00 | N74: 0.00 | P74: 0.00
A75: Другие расходы | B75: 07 | C75: 02 | D75: 0400072910 | E75: 244 | F75: 226900 | G75: 1000 | H75: 0.00 | J75: 0.00 | K75: 0.00 | M75: 0.00 | N75: 0.00 | P75: 0.00
A76: Заработная плата | B76: 07 | C76: 02 | D76: 0920070260 | E76: 111 | F76: 211000 | G76: 1000 | H76: 0.00 | J76: 0.00 | K76: 0.00 | M76: 0.00 | N76: 0.00 | P76: 0.00
A77: Начисления на выплаты по оплате труда | B77: 07 | C77: 02 | D77: 0920070260 | E77: 119 | F77: 213000 | G77: 1000 | H77: 0.00 | J77: 0.00 | K77: 0.00 | M77: 0.00 | N77: 0.00 | P77: 0.00
A78: Итого по КЦ 1000 | H78: =SUM(H37:H77) -> 4,214,467.13 | I78: 10,000.00 | J78: 4,224,467.13 | K78: 4,604,820.33 | L78: 0.00 | M78: 4,604,820.33 | N78: 5,048,612.86 | O78: 0.00 | P78: 5,048,612.86
A79: Субвенция на обеспечение государственных гарантий реализации прав на получение общедоступного и бесплатного дошкольного образования в муниципальных дошкольных образовательных организациях, общедоступного и бесплатного дошкольного, начального общего, основного общего, среднего общего образования в муниципальных общеобразовательных организациях, обеспечение дополнительного образования детей в муниципальных общеобразовательных организациях (КЦ 254242190000219)
A80: Заработная плата | B80: 07 | C80: 02 | D80: 0220242190 | E80: 111 | F80: 211000 | G80: 254242190000219 | H80: 0.00 | J80: =H80+I80 -> 0.00 | K80: 0.00 | M80: =K80+L80 -> 0.00 | N80: 0.00 | P80: =N80+O80 -> 0.00
A81: Социальные пособия и компенсации персоналу в денежной форме (пособие за первые три дня временной нетрудоспособности за счет средств работодателя) | B81: 07 | C81: 02 | D81: 0220242190 | E81: 111 | F81: 266100 | G81: 254242190000219 | H81: 0.00 | J81: 0.00 | K81: 0.00 | M81: 0.00 | N81: 0.00 | P81: 0.00
A82: Начисления на выплаты по оплате труда | B82: 07 | C82: 02 | D82: 0220242190 | E82: 119 | F82: 213000 | G82: 254242190000219 | H82: 0.00 | J82: 0.00 | K82: 0.00 | M82: 0.00 | N82: 0.00 | P82: 0.00
A83: Услуги связи (интернет) | B83: 07 | C83: 02 | D83: 0220242190 | E83: 244 | F83: 221200 | G83: 254242190000219 | H83: 0.00 | J83: =H83+I83 -> 0.00 | K83: 0.00 | M83: =K83+L83 -> 0.00 | N83: 0.00 | P83: =N83+O83 -> 0.00
A84: Транспортные услуги | B84: 07 | C84: 02 | D84: 0220242190 | E84: 244 | F84: 222000 | G84: 254242190000219 | H84: 0.00 | J84: 0.00 | K84: 0.00 | M84: 0.00 | N84: 0.00 | P84: 0.00
A85: Другие расходы | B85: 07 | C85: 02 | D85: 0220242190 | E85: 244 | F85: 226900 | G85: 254242190000219 | H85: 0.00 | J85: =H85+I85 -> 0.00 | K85: 0.00 | M85: =K85+L85 -> 0.00 | N85: 0.00 | P85: =N85+O85 -> 0.00
A86: Приобретение предметов длительного пользования (оборудование, мебель, компьютерная техника и т.п.) стоимостью свыше 3000,00 руб. | B86: 07 | C86: 02 | D86: 0220242190 | E86: 244 | F86: 310100 | G86: 254242190000219 | H86: 0.00 | J86: =H86+I86 -> 0.00 | K86: 0.00 | M86: =K86+L86 -> 0.00 | N86: 0.00 | P86: =N86+O86 -> 0.00
A87: Комплектование библиотечного фонда | B87: 07 | C87: 02 | D87: 0220242190 | E87: 244 | F87: 310200 | G87: 254242190000219 | H87: 0.00 | J87: 0.00 | K87: 0.00 | M87: 0.00 | N87: 0.00 | P87: 0.00
A88: Другие расходы стоимостью до 3000,00 рублей | B88: 07 | C88: 02 | D88: 0220242190 | E88: 244 | F88: 310900 | G88: 254242190000219 | H88: 0.00 | J88: 0.00 | K88: 0.00 | M88: 0.00 | N88: 0.00 | P88: 0.00
A89: Мягкий инвентарь | B89: 07 | C89: 02 | D89: 0220242190 | E89: 244 | F89: 345000 | G89: 254242190000219 | H89: 0.00 | J89: 0.00 | M89: 0.00 | P89: 0.00
A90: Увеличение стоимости прочих оборотных запасов (материалов) | B90: 07 | C90: 02 | D90: 0220242190 | E90: 244 | F90: 346000 | G90: 254242190000219 | H90: 0.00 | J90: 0.00 | K90: 0.00 | M90: 0.00 | N90: 0.00 | P90: 0.00
A91: Увеличение стоимости прочих материальных запасов однократного применения | B91: 07 | C91: 02 | D91: 0220242190 | E91: 244 | F91: 349100 | G91: 254242190000219 | H91: 0.00 | J91: 0.00 | K91: 0.00 | M91: 0.00 | N91: 0.00 | P91: 0.00
A92: Мероприятия по переподготовке и повышению квалификации кадров | B92: 07 | C92: 05 | D92: 0220242190 | E92: 244 | F92: 226700 | G92: 254242190000219 | H92: 0.00 | J92: 0.00 | K92: 0.00 | M92: 0.00 | N92: 0.00 | P92: 0.00
A93: Итого по КЦ 254242190000219 | H93: =SUM(H80:H92) -> 0.00 | I93: 0.00 | J93: 0.00 | K93: 0.00 | L93: 0.00 | M93: 0.00 | N93: 0.00 | O93: 0.00 | P93: 0.00
A94: Субсидия на проведение мероприятий по обеспечению деятельности советников директора по воспитанию и взаимодействию с детскими общественными объединениями в общеобразовательных организациях (КЦ 25-51790-00000-00000)
A95: Заработная плата | B95: 07 | C95: 02 | D95: 022Ю651790 | E95: 111 | F95: 211000 | G95: 25-51790-00000-00000 | H95: 0.00 | J95: =H95+I95 -> 0.00 | K95: 0.00 | M95: =K95+L95 -> 0.00 | N95: 0.00 | P95: =N95+O95 -> 0.00
A96: Начисления на выплаты по оплате труда | B96: 07 | C96: 02 | D96: 022Ю651790 | E96: 119 | F96: 213000 | G96: 25-51790-00000-00000 | H96: 0.00 | J96: =H96+I96 -> 0.00 | K96: 0.00 | M96: =K96+L96 -> 0.00 | N96: 0.00 | P96: =N96+O96 -> 0.00
A97: Итого по КЦ 25-51790-00000-00000 | H97: =SUM(H95:H96) -> 0.00 | I97: 0.00 | J97: 0.00 | K97: 0.00 | L97: 0.00 | M97: 0.00 | N97: 0.00 | O97: 0.00 | P97: 0.00
A98: Иные межбюджетные трансферты на обеспечение выплат ежемесячного денежного вознаграждения советникам директоров по воспитанию и взаимодействию с детскими общественными объединениями государственных общеобразовательных организаций, профессиональных образовательных организаций, муниципальных общеобразовательных организаций и профессиональных образовательных организаций (КЦ 2550500X298320000000)
A99: Заработная плата | B99: 07 | C99: 02 | D99: 022Ю650500 | E99: 111 | F99: 211000 | G99: 2550500X298320000000 | H99: 0.00 | J99: =H99+I99 -> 0.00 | K99: 0.00 | M99: =K99+L99 -> 0.00 | N99: 0.00 | P99: =N99+O99 -> 0.00
A100: Начисления на выплаты по оплате труда | B100: 07 | C100: 02 | D100: 022Ю650500 | E100: 119 | F100: 213000 | G100: 2550500X298320000000 | H100: 0.00 | J100: =H100+I100 -> 0.00 | K100: 0.00 | M100: =K100+L100 -> 0.00 | N100: 0.00 | P100: =N100+O100 -> 0.00
A101: Итого по КЦ 2550500X298320000000 | H101: =SUM(H99:H100) -> 0.00 | I101: 0.00 | J101: 0.00 | K101: 0.00 | L101: 0.00 | M101: 0.00 | N101: 0.00 | O101: 0.00 | P101: 0.00
A102: Иные межбюджетные трансферты на ежемесячное денежное вознаграждение за классное руководство педагогическим работникам государственных и муниципальных образовательных организаций, реализующих образовательные программы начального общего образования, образовательные программы основного общего образования, образовательные программы среднего общего образования (КЦ 2553030X298570000000)
A103: Заработная плата | B103: 07 | C103: 02 | D103: 022Ю653030 | E103: 111 | F103: 211000 | G103: 2553030X298570000000 | H103: 0.00 | J103: =H103+I103 -> 0.00 | K103: 0.00 | M103: =K103+L103 -> 0.00 | N103: 0.00 | P103: =N103+O103 -> 0.00
A104: Начисления на выплаты по оплате труда | B104: 07 | C104: 02 | D104: 022Ю653030 | E104: 119 | F104: 213000 | G104: 2553030X298570000000 | H104: 0.00 | J104: =H104+I104 -> 0.00 | K104: 0.00 | M104: =K104+L104 -> 0.00 | N104: 0.00 | P104: =N104+O104 -> 0.00
A105: Итого по КЦ 2553030X298570000000 | H105: =SUM(H103:H104) -> 0.00 | I105: 0.00 | J105: 0.00 | K105: 0.00 | L105: 0.00 | M105: 0.00 | N105: 0.00 | O105: 0.00 | P105: 0.00
A106: Субвенции на осуществление государственных полномочий РеспубликиКарелия по представлению предусмотренных пунктом 5 части 1 статьи 9 Закона Республики Карелия от 20 декабря 2013 гоа № 1755_ЗРК "Об образовании" мер социальной поддержки и социального обслуживания (КЦ 254242100000210)
A107: Увеличение стоимости прочих оборотных запасов (материалов) | B107: 07 | C107: 02 | D107: 0220242100 | E107: 244 | F107: 346000 | G107: 24424210000210 | J107: =H107+I107 -> 0.00 | K107: 0.00 | M107: =K107+L107 -> 0.00 | N107: 0.00 | P107: =N107+O107 -> 0.00
A108: Пособия по социальной помощи населению в натуральной форме | B108: 07 | C108: 02 | D108: 0220242100 | E108: 323 | F108: 263000 | G108: 254242100000210 | H108: 0.00 | J108: =H108+I108 -> 0.00 | K108: 0.00 | M108: =K108+L108 -> 0.00 | N108: 0.00 | P108: =N108+O108 -> 0.00
A109: Увеличение стоимости прочих оборотных запасов (материалов) | B109: 07 | C109: 02 | D109: 0220242100 | E109: 323 | F109: 346000 | G109: 23424210000210 | J109: =H109+I109 -> 0.00 | K109: 0.00 | M109: =K109+L109 -> 0.00 | N109: 0.00 | P109: =N109+O109 -> 0.00
A110: Итого по КЦ 254242100000210 | H110: =SUM(H107:H109) -> 0.00 | I110: 0.00 | J110: 0.00 | K110: 0.00 | L110: 0.00 | M110: 0.00 | N110: 0.00 | O110: 0.00 | P110: 0.00
A111: Субвенции на осуществление государственных полномочий Республики Карелия по выплате компенсации платы, взимаемой с родителей (законных представителей) за присмотр и уход за детьми, осваивающими образовательные программы дошкольного образования в организа
A112: Пособия по социальной помощи населению в натуральной форме | B112: 10 | C112: 04 | D112: 0220142030 | E112: 323 | F112: 263000 | G112: 23424203000203 | J112: =H112+I112 -> 0.00 | K112: 0.00 | M112: =K112+L112 -> 0.00 | N112: 0.00 | P112: =N112+O112 -> 0.00
A113: Итого по КЦ 23424203000203 | H113: =SUM(H112) -> 0.00 | I113: 0.00 | J113: 0.00 | K113: 0.00 | L113: 0.00 | M113: 0.00 | N113: 0.00 | O113: 0.00 | P113: 0.00
A114: Субсидии на организацию бесплатного горячего питания обучающихся, получающих начальное общее образование в государственных и муниципальных образовательных организациях (КЦ 25-53040-00000-00000)
A115: Другие расходы | B115: 07 | C115: 02 | D115: 02202L3040 | E115: 244 | F115: 226900 | G115: 25-53040-00000-00000 | H115: 0.00 | J115: =H115+I115 -> 0.00 | K115: 0.00 | M115: =K115+L115 -> 0.00 | N115: 0.00 | P115: =N115+O115 -> 0.00
A116: Итого по КЦ 25-53040-00000-00000 | H116: =SUM(H115:H115) -> 0.00 | I116: 0.00 | J116: 0.00 | K116: 0.00 | L116: 0.00 | M116: 0.00 | N116: 0.00 | O116: 0.00 | P116: 0.00
A117: Субсидия на реализацию мероприятий государственной программы Республики Карелия "Совершенствование социальной защиты граждан" в целях организации адресной социальной помощи семьям, имеющим детей (КЦ 254343210000316)
A118: Пособия по социальной помощи населению в натуральной форме | B118: 10 | C118: 03 | D118: 0320243210 | E118: 323 | F118: 263000 | G118: 254343210000316 | H118: 0.00 | J118: =H118+I118 -> 0.00 | K118: 0.00 | M118: =K118+L118 -> 0.00 | N118: 0.00 | P118: =N118+O118 -> 0.00
A119: Итого по КЦ 254343210000316 | H119: =SUM(H118:H118) -> 0.00 | I119: =SUM(I118:I118) -> 0.00 | J119: =SUM(J118:J118) -> 0.00 | K119: =SUM(K118:K118) -> 0.00 | L119: =SUM(L118:L118) -> 0.00 | M119: 0.00 | N119: 0.00 | O119: 0.00 | P119: 0.00
A120: Пособия по социальной помощи населению в натуральной форме | B120: 10 | C120: 03 | D120: 03202S3210 | E120: 323 | F120: 263000 | G120: 1000 | H120: 0.00 | J120: =H120+I120 -> 0.00 | K120: 0.00 | M120: 0.00 | N120: 0.00 | P120: 0.00
A121: Итого по КЦ 1000 | H121: =SUM(H120:H120) -> 0.00 | I121: 0.00 | J121: 0.00 | K121: 0.00 | L121: 0.00 | M121: 0.00 | N121: 0.00 | O121: 0.00 | P121: 0.00
A122: Субсидия местным бюджетам на организацию отдыха детей в каникулярное время (КЦ 254343540000778)
A123: Увеличение стоимости прочих оборотных запасов (материалов) | B123: 07 | C123: 09 | D123: 0220243210 | E123: 244 | F123: 346000 | G123: 2343432000321 | J123: =H123+I123 -> 0.00 | K123: 0.00 | M123: =K123+L123 -> 0.00 | N123: 0.00 | P123: =N123+O123 -> 0.00
A124: Другие расходы | B124: 07 | C124: 09 | D124: 0220243210 | E124: 244 | F124: 226900 | G124: 2343432000321 | J124: 0.00 | K124: 0.00 | M124: 0.00 | N124: 0.00 | P124: 0.00
A125: Транспортные услуги | B125: 07 | C125: 09 | D125: 0220243210 | E125: 244 | F125: 222000 | G125: 2343432000321 | J125: 0.00 | K125: 0.00 | M125: 0.00 | N125: 0.00 | P125: 0.00
A126: Другие расходы | B126: 07 | C126: 09 | D126: 02202S3540 | E126: 244 | F126: 226900 | G126: 254343540000778 | H126: 0.00 | J126: 0.00 | K126: 0.00 | M126: 0.00 | N126: 0.00 | P126: 0.00
A127: Расходы на оплату услуг по страхованию здоровья | B127: 07 | C127: 09 | D127: 02202S3540 | E127: 244 | F127: 227300 | G127: 254343540000778 | H127: 0.00 | J127: 0.00 | K127: 0.00 | M127: 0.00 | N127: 0.00 | P127: 0.00
A128: Увеличение стоимости прочих оборотных запасов (материалов) | B128: 07 | C128: 09 | D128: 02202S3540 | E128: 244 | F128: 346000 | G128: 254343540000778 | H128: 0.00 | J128: 0.00 | K128: 0.00 | M128: 0.00 | N128: 0.00 | P128: 0.00
A129: Итого по КЦ 2343432000321 | H129: =SUM(H123:H128) -> 0.00 | I129: 0.00 | J129: 0.00 | K129: 0.00 | L129: 0.00 | M129: 0.00 | N129: 0.00 | O129: 0.00 | P129: 0.00
A130: Субсидия местным бюджетам на реализацию мероприятий государственной программы Республики Карелия "Совершенствование социальной защиты граждан" (КЦ 2343432000321)
A131: Увеличение стоимости прочих оборотных запасов (материалов) | B131: 07 | C131: 09 | D131: 0220243210 | E131: 244 | F131: 346000 | G131: 2343432000321 | J131: =H131+I131 -> 0.00 | K131: 0.00 | M131: =K131+L131 -> 0.00 | N131: 0.00 | P131: =N131+O131 -> 0.00
A132: Другие расходы | B132: 07 | C132: 09 | D132: 0220243210 | E132: 244 | F132: 226900 | G132: 2343432000321 | J132: 0.00 | K132: 0.00 | M132: 0.00 | N132: 0.00 | P132: 0.00
A133: Транспортные услуги | B133: 07 | C133: 09 | D133: 0220243210 | E133: 244 | F133: 222000 | G133: 2343432000321 | J133: 0.00 | K133: 0.00 | M133: 0.00 | N133: 0.00 | P133: 0.00
A134: Увеличение стоимости прочих оборотных запасов (материалов) | B134: 07 | C134: 09 | D134: 02202S3210 | E134: 244 | F134: 346000 | G134: 1000 | J134: 0.00 | K134: 0.00 | M134: 0.00 | N134: 0.00 | P134: 0.00
A135: Другие расходы | B135: 07 | C135: 09 | D135: 02202S3210 | E135: 244 | F135: 226900 | G135: 1000 | J135: 0.00 | K135: 0.00 | M135: 0.00 | N135: 0.00 | P135: 0.00
A136: Транспортные услуги | B136: 07 | C136: 09 | D136: 02202S3210 | E136: 244 | F136: 222000 | G136: 1000 | J136: 0.00 | K136: 0.00 | M136: 0.00 | N136: 0.00 | P136: 0.00
A137: Итого по КЦ 2343432000321 | H137: =SUM(H131:H136) -> 0.00 | I137: 0.00 | J137: 0.00 | K137: 0.00 | L137: 0.00 | M137: 0.00 | N137: 0.00 | O137: 0.00 | P137: 0.00
A138: Иные межбюджетные трансферты на компенсацию затрат, связанных с освобождением членов семей постоянно проживающих на территории Республики Карелия граждан, призванных военным комиссариатом Республики Карелия на военную службу по мобилизации, а также гражд
A139: Продукты питания | B139: 07 | C139: 01 | D139: 0220175040 | E139: 244 | F139: 342000 | G139: 234475040П0514 | J139: =H139+I139 -> 0.00 | K139: 0.00 | M139: =K139+L139 -> 0.00 | N139: 0.00 | O139: =M139+N139 -> 0.00 | P139: =N139+O139 -> 0.00
A140: Итого по КЦ 234475040П0514 | H140: =SUM(H139) -> 0.00 | I140: 0.00 | J140: 0.00 | K140: 0.00 | L140: 0.00 | M140: 0.00 | N140: 0.00 | O140: 0.00 | P140: 0.00
G141: Всего | H141: =H78+H93+H110+H113+H116+H119+H121+H105+H97+H101+H129 -> 4,214,467.13 | I141: 10,000.00 | J141: 4,224,467.13 | K141: 4,604,820.33 | L141: 0.00 | M141: 4,604,820.33 | N141: 5,048,612.86 | O141: 0.00 | P141: 5,048,612.86
A145: Директор | F145: И.А. Сидорова
B146: (подпись) | F146: (расшифровка подписи)
A148: Гл.бухгалтер МУ "ЦБ № 1" | F148: И.В. Ананьева
A149: (уполномоченное лицо) | B149: (подпись) | F149: (расшифровка подписи)
A151: Главный экономист ПЭО МУ "ЦБ № 1" | F151: Е.Л. Герасимова
A152: (исполнитель) | B152: (подпись) | F152: (расшифровка подписи)
A154: =L18 -> "15" января 2026 г.

Sheet 22.01
P1: Приложение № 2
P2: к Порядку составления, утверждения
P3: и ведения бюджетных смет Администрации
P4: Прионежского муниципального района
P5: и казенных учреждений, находящихся
P6: в ведении Администрации Прионежского
P7: муниципального района
P8: от 09 августа 2022 № 831
L10: УТВЕРЖДАЮ
L11: И.о. Главы Администрации Прионежского муниципального района
L12: (наименование должности лица, согласующего бюджетную смету)
L13: Администрация Прионежского муниципального района
L14: (наименование главного распорядителя (распорядителя) бюджетных средств; учреждения)
L16: Е.А. Кондратьева
L17: (подпись) | N17: (расшифровка подписи)
L18: "22" января 2026 г.
A20: ИЗМЕНЕНИЕ К БЮДЖЕТНОЙ СМЕТЕ НА 2026 ФИНАНСОВЫЙ ГОД И ПЛАНОВЫЙ ПЕРИОД 2027 И 2028 ГОДОВ
B22: № 015/00402/004 от | H22: =L18 -> "22" января 2026 г.
A23: (№, дата, справки об изменении ЛБО) | P23: КОДЫ
O24: Форма по ОКУД | P24: 0501012
O25: Дата | P25: =L18 -> "22" января 2026 г.
O26: по ОКПО | P26: 51326281
A27: Получатель бюджетных средств | B27: Муниципальное общеобразовательное учреждение "Средняя общеобразовательная школа № 44"
A28: Распорядитель бюджетных средств | B28: Администрация Прионежского муниципального района Республики Карелия
A29: Главный распорядитель бюджетных средств | B29: Администрация Прионежского муниципального района Республики Карелия | O29: Глава по БК | P29: 015
A30: Наименование бюджета | B30: Бюджет Прионежского муниципального района | O30: по ОКТМО | P30: 86636410
A31: Единица измерения: | B31: руб. | O31: по ОКЕЙ | P31: 383
A33: Наименование показателя (детализация кода бюджетной классификации) | B33: РЗ | C33: ПР | D33: ЦСР | E33: Вид расхода | F33: Детализация | G33: Вид целевых средств | H33: Сумма на текущий 2026 год | K33: Сумма на первый год планового периода | N33: Сумма на второй год планового периода
H34: на 15.01.2026 г | I34: изменения(+;-) | J34: Итого | K34: =H34 -> на 15.01.2026 г | L34: изменения(+;-) | M34: Итого | N34: =H34 -> на 15.01.2026 г | O34: изменения(+;-) | P34: Итого
A35: 1 | B35: =SUM(A35+1) -> 2 | C35: 3 | D35: 4 | E35: 5 | F35: 6 | G35: 7 | H35: 8 | I35: 9 | J35: 10 | K35: 11 | L35: 12 | M35: 13 | N35: 14 | O35: 15 | P35: 16
A36: Средства местного бюджета (КЦ 1000) 0702
A37: Заработная плата | B37: 07 | C37: 02 | D37: 0220270210 | E37: 111 | F37: 211000 | G37: 1000 | H37: 537,980.16 | J37: =H37+I37 -> 537,980.16 | K37: 537,980.16 | M37: =K37+L37 -> 537,980.16 | N37: 537,980.16 | P37: =N37+O37 -> 537,980.16
A38: Социальные пособия и компенсации персоналу в денежной форме (пособие за первые три дня временной нетрудоспособности за счет средств работодателя) | B38: 07 | C38: 02 | D38: 0220270210 | E38: 111 | F38: 266100 | G38: 1000 | H38: 0.00 | J38: 0.00 | K38: 0.00 | M38: 0.00 | N38: 0.00 | P38: 0.00
A39: Расходы по оплате проезда к месту отпуска и обратно отдельным категориям лиц (для лиц, работающих в районах Крайнего Севера и приравненных к ним местностям, и членов их семей) | B39: 07 | C39: 02 | D39: 0220270210 | E39: 112 | F39: 214000 | G39: 1000 | H39: 30,000.00 | J39: 30,000.00 | K39: 30,000.00 | M39: 30,000.00 | N39: 30,000.00 | P39: 30,000.00
A40: Начисления на выплаты по оплате труда | B40: 07 | C40: 02 | D40: 0220270210 | E40: 119 | F40: 213000 | G40: 1000 | H40: 162,470.01 | J40: 162,470.01 | K40: 162,470.01 | M40: 162,470.01 | N40: 162,470.01 | P40: 162,470.01
A41: Услуги связи (телефон) | B41: 07 | C41: 02 | D41: 0220270210 | E41: 244 | F41: 221100 | G41: 1000 | H41: 8,244.91 | J41: 8,244.91 | K41: 10,306.14 | M41: 10,306.14 | N41: 12,882.68 | P41: 12,882.68
A42: Услуги связи (почта) | B42: 07 | C42: 02 | D42: 0220270210 | E42: 244 | F42: 221300 | G42: 1000 | H42: 0.00 | J42: 0.00 | K42: 0.00 | M42: 0.00 | N42: 0.00 | P42: 0.00
A43: Транспортные услуги | B43: 07 | C43: 02 | D43: 0220270210 | E43: 244 | F43: 222000 | G43: 1000 | H43: 18,216.90 | J43: =H43+I43 -> 18,216.90 | K43: 22,771.13 | M43: =K43+L43 -> 22,771.13 | N43: 28,463.91 | P43: =N43+O43 -> 28,463.91
A44: Обращение с твердыми коммунальными отходами (вывоз ТБО) | B44: 07 | C44: 02 | D44: 0220270210 | E44: 244 | F44: 223500 | G44: 1000 | H44: 32,551.14 | J44: 32,551.14 | K44: 36,620.03 | M44: 36,620.03 | N44: 41,197.54 | P44: 41,197.54
A45: Техническое обслуживание внутренних сетей отопления и горячего водоснабжения | B45: 07 | C45: 02 | D45: 0220270210 | E45: 244 | F45: 225200 | G45: 1000 | H45: 0.00 | J45: 0.00 | K45: 0.00 | M45: 0.00 | N45: 0.00 | P45: 0.00
A46: Санитарная и противопожарная (дезинфекция, дезинсекция, дератизация, газация, огнезащитная) обработка помещений | B46: 07 | C46: 02 | D46: 0220270210 | E46: 244 | F46: 225600 | G46: 1000 | H46: 31,712.06 | J46: 31,712.06 | K46: 31,712.06 | M46: 31,712.06 | N46: 31,712.06 | P46: 31,712.06
A47: Содержание, обслуживание помещений и сетей инженерно-технического обеспечения | B47: 07 | C47: 02 | D47: 0220270210 | E47: 244 | F47: 225700 | G47: 1000 | H47: 142,500.00 | J47: 142,500.00 | K47: 142,500.00 | M47: 142,500.00 | N47: 142,500.00 | P47: 142,500.00
A48: Текущий ремонт помещений и сетей инженерно-технического обеспечения | B48: 07 | C48: 02 | D48: 0220270210 | E48: 244 | F48: 225800 | G48: 1000 | H48: 0.00 | J48: 0.00 | K48: 0.00 | M48: 0.00 | N48: 0.00 | P48: 0.00
A49: Другие расходы | B49: 07 | C49: 02 | D49: 0220270210 | E49: 244 | F49: 225900 | G49: 1000 | H49: 110,000.00 | J49: 110,000.00 | K49: 100,000.00 | M49: 100,000.00 | N49: 100,000.00 | P49: 100,000.00
A50: Аттестация | B50: 07 | C50: 02 | D50: 0220270210 | E50: 244 | F50: 226200 | G50: 1000 | H50: 0.00 | J50: =H50+I50 -> 0.00 | K50: 0.00 | M50: =K50+L50 -> 0.00 | N50: 0.00 | P50: =N50+O50 -> 0.00
A51: Охрана ведомственная, вневедомственная, пожарная | B51: 07 | C51: 02 | D51: 0220270210 | E51: 244 | F51: 226400 | G51: 1000 | H51: 92,240.85 | J51: 92,240.85 | K51: 115,301.06 | M51: 115,301.06 | N51: 144,126.33 | P51: 144,126.33
A52: Мероприятия по переподготовке и повышению квалификации кадров | B52: 07 | C52: 02 | D52: 0220270210 | E52: 244 | F52: 226700 | G52: 1000 | H52: 0.00 | J52: 0.00 | K52: 0.00 | M52: 0.00 | N52: 0.00 | P52: 0.00
A53: Медицинский осмотр работников учреждения, за исключением водителей трансртных средств | B53: 07 | C53: 02 | D53: 0220270210 | E53: 244 | F53: 226800 | G53: 1000 | H53: 0.00 | J53: 0.00 | K53: 0.00 | M53: 0.00 | N53: 0.00 | P53: 0.00
A54: Другие расходы | B54: 07 | C54: 02 | D54: 0220270210 | E54: 244 | F54: 226900 | G54: 1000 | H54: 100,000.00 | J54: 100,000.00 | K54: 100,000.00 | M54: 100,000.00 | N54: 100,000.00 | P54: 100,000.00
A55: Приобретение предметов длительного пользования (оборудование, мебель, компьютерная техника и т.п) стоимостью свыше 3000 рублей | B55: 07 | C55: 02 | D55: 0220270210 | E55: 244 | F55: 310100 | G55: 1000 | H55: 0.00 | J55: 0.00 | K55: 0.00 | M55: 0.00 | N55: 0.00 | P55: 0.00
A56: Другие расходы стоимостью до 3000,00 рублей | B56: 07 | C56: 02 | D56: 0220270210 | E56: 244 | F56: 310900 | G56: 1000 | H56: 0.00 | J56: 0.00 | K56: 0.00 | M56: 0.00 | N56: 0.00 | P56: 0.00
A57: Увеличение стоимости лекарственных препаратов и материалов, применяемых в медицинских целях | B57: 07 | C57: 02 | D57: 0220270210 | E57: 244 | F57: 341000 | G57: 1000 | H57: 12,375.00 | J57: =H57+I57 -> 12,375.00 | K57: 15,468.75 | M57: =K57+L57 -> 15,468.75 | N57: 19,335.94 | P57: =N57+O57 -> 19,335.94
A58: Приобретение строительных материалов | B58: 07 | C58: 02 | D58: 0220270210 | E58: 244 | F58: 344000 | G58: 1000 | H58: 0.00 | J58: 0.00 | K58: 0.00 | M58: 0.00 | N58: 0.00 | P58: 0.00
A59: Мягкий инвентарь | B59: 07 | C59: 02 | D59: 0220270210 | E59: 244 | F59: 345000 | G59: 1000 | H59: 14,200.00 | J59: =H59+I59 -> 14,200.00 | K59: 15,760.00 | M59: =K59+L59 -> 15,760.00 | N59: 18,064.00 | P59: =N59+O59 -> 18,064.00
A60: Увеличение стоимости прочих оборотных запасов (материалов) | B60: 07 | C60: 02 | D60: 0220270210 | E60: 244 | F60: 346000 | G60: 1000 | H60: 80,000.00 | J60: 80,000.00 | K60: 80,000.00 | M60: 80,000.00 | N60: 80,000.00 | P60: 80,000.00
A61: Увеличение стоимости прочих оборотных запасов однократного применения | B61: 07 | C61: 02 | D61: 0220270210 | E61: 244 | F61: 349100 | G61: 1000 | H61: 0.00 | J61: 0.00 | K61: 0.00 | M61: 0.00 | N61: 0.00 | P61: 0.00
A62: Отопление, горячее водоснабжение и газоснабжение | B62: 07 | C62: 02 | D62: 0220270210 | E62: 247 | F62: 223100 | G62: 1000 | H62: 1,994,773.44 | J62: 1,994,773.44 | K62: 2,244,120.12 | M62: 2,244,120.12 | N62: 2,524,635.14 | P62: 2,524,635.14
A63: Электроэнергия | B63: 07 | C63: 02 | D63: 0220270210 | E63: 247 | F63: 223200 | G63: 1000 | H63: 735,965.00 | J63: 735,965.00 | K63: 827,960.63 | M63: 827,960.63 | N63: 931,455.70 | P63: 931,455.70
A64: Холодное водоснабжение | B64: 07 | C64: 02 | D64: 0220270210 | E64: 247 | F64: 223300 | G64: 1000 | H64: 54,731.04 | J64: 54,731.04 | K64: 60,410.18 | M64: 60,410.18 | N64: 67,961.45 | P64: 67,961.45
A65: Водоотведение | B65: 07 | C65: 02 | D65: 0220270210 | E65: 247 | F65: 223400 | G65: 1000 | H65: 30,169.62 | J65: 30,169.62 | K65: 35,103.06 | M65: 35,103.06 | N65: 39,490.94 | P65: 39,490.94
A66: Пособия по социальной помощи населению в натуральной форме | B66: 07 | C66: 02 | D66: 0220270210 | E66: 323 | F66: 263000 | G66: 1000 | H66: 0.00 | J66: =H66+I66 -> 0.00 | K66: 0.00 | M66: 0.00 | N66: 0.00 | P66: 0.00
A67: Налог на имущство | B67: 07 | C67: 02 | D67: 0220270210 | E67: 851 | F67: 291200 | G67: 1000 | H67: 8,876.00 | J67: 8,876.00 | K67: 8,876.00 | M67: 8,876.00 | N67: 8,876.00 | P67: 8,876.00
A68: Земельный налог, в том числе в период строительства объекта | B68: 07 | C68: 02 | D68: 0220270210 | E68: 851 | F68: 291300 | G68: 1000 | H68: 27,461.00 | J68: 27,461.00 | K68: 27,461.00 | M68: 27,461.00 | N68: 27,461.00 | P68: 27,461.00
A69: Штрафы за нарушение законодательства о налогах и сборах, законодательства о страховых взносах | B69: 07 | C69: 02 | D69: 0220270210 | E69: 853 | F69: 292000 | G69: 1000 | H69: 0.00 | J69: =H69+I69 -> 0.00 | K69: 0.00 | M69: =K69+L69 -> 0.00 | N69: 0.00 | P69: =N69+O69 -> 0.00
A70: Иные выплаты текущего характера физическим лицам (возмещение убытков, вреда и судебных издержек) | B70: 07 | C70: 02 | D70: 0220270210 | E70: 853 | F70: 296100 | G70: 1000 | H70: 0.00 | J70: =H70+I70 -> 0.00 | K70: 0.00 | M70: =K70+L70 -> 0.00 | N70: 0.00 | P70: =N70+O70 -> 0.00
A71: Транспортный налог | B71: 07 | C71: 02 | D71: 0220270210 | E71: 852 | F71: 291400 | G71: 1000 | H71: 0.00 | J71: 0.00 | K71: 0.00 | M71: 0.00 | N71: 0.00 | P71: 0.00
A72: Штрафы за нарушение законодательства о закупках и нарушенияе условий контракта (договоров) | B72: 07 | C72: 02 | D72: 0220270210 | E72: 831 | F72: 293000 | G72: 1000 | H72: 0.00 | J72: 0.00 | K72: 0.00 | M72: 0.00 | N72: 0.00 | P72: 0.00
A73: Другие экономические санкции | B73: 07 | C73: 02 | D73: 0220270210 | E73: 853 | F73: 295000 | G73: 1000 | H73: 0.00 | J73: 0.00 | K73: 0.00 | M73: 0.00 | N73: 0.00 | P73: 0.00
A74: Иные выплаты текущего характера организациям (возмещение убытков, вред и судебных издержек) | B74: 07 | C74: 02 | D74: 0220270210 | E74: 851 | F74: 297100 | G74: 1000 | H74: 0.00 | J74: 0.00 | K74: 0.00 | M74: 0.00 | N74: 0.00 | P74: 0.00
A75: Другие расходы | B75: 07 | C75: 02 | D75: 0400072910 | E75: 244 | F75: 226900 | G75: 1000 | H75: 0.00 | J75: 0.00 | K75: 0.00 | M75: 0.00 | N75: 0.00 | P75: 0.00
A76: Заработная плата | B76: 07 | C76: 02 | D76: 0920070260 | E76: 111 | F76: 211000 | G76: 1000 | H76: 0.00 | J76: 0.00 | K76: 0.00 | M76: 0.00 | N76: 0.00 | P76: 0.00
A77: Начисления на выплаты по оплате труда | B77: 07 | C77: 02 | D77: 0920070260 | E77: 119 | F77: 213000 | G77: 1000 | H77: 0.00 | J77: 0.00 | K77: 0.00 | M77: 0.00 | N77: 0.00 | P77: 0.00
A78: Итого по КЦ 1000 | H78: =SUM(H37:H77) -> 4,224,467.13 | I78: 0.00 | J78: 4,224,467.13 | K78: 4,604,820.33 | L78: 0.00 | M78: 4,604,820.33 | N78: 5,048,612.86 | O78: 0.00 | P78: 5,048,612.86
A79: Обеспечение государственных гарантий реализации прав на получение общедоступного и бесплатного дошкольного образования в муниципальных дошкольных образовательных организациях, общедоступного и бесплатного дошкольного, начального общего, основного общего, среднего общего образования в муниципальных общеобразовательных организациях, обеспечение дополнительного образования детей в муниципальных общеобразовательных организациях (Субвенции) (КЦ 264272750000219)
A80: Заработная плата | B80: 07 | C80: 02 | D80: 0220272750 | E80: 111 | F80: 211000 | G80: 264272750000219 | H80: 0.00 | I80: 18,116,458.71 | J80: =H80+I80 -> 18,116,458.71 | K80: 0.00 | M80: =K80+L80 -> 0.00 | N80: 0.00 | P80: =N80+O80 -> 0.00
A81: Социальные пособия и компенсации персоналу в денежной форме (пособие за первые три дня временной нетрудоспособности за счет средств работодателя) | B81: 07 | C81: 02 | D81: 0220272751 | E81: 111 | F81: 266100 | G81: 264272750000219 | H81: 0.00 | J81: 0.00 | K81: 0.00 | M81: 0.00 | N81: 0.00 | P81: 0.00
A82: Начисления на выплаты по оплате труда | B82: 07 | C82: 02 | D82: 0220272750 | E82: 119 | F82: 213000 | G82: 264272750000219 | H82: 0.00 | I82: 5,471,170.53 | J82: 5,471,170.53 | K82: 0.00 | M82: 0.00 | N82: 0.00 | P82: 0.00
A83: Услуги связи (интернет) | B83: 07 | C83: 02 | D83: 0220272753 | E83: 244 | F83: 221200 | G83: 264272750000219 | H83: 0.00 | J83: =H83+I83 -> 0.00 | K83: 0.00 | M83: =K83+L83 -> 0.00 | N83: 0.00 | P83: =N83+O83 -> 0.00
A84: Транспортные услуги | B84: 07 | C84: 02 | D84: 0220272754 | E84: 244 | F84: 222000 | G84: 264272750000219 | H84: 0.00 | J84: 0.00 | K84: 0.00 | M84: 0.00 | N84: 0.00 | P84: 0.00
A85: Другие расходы | B85: 07 | C85: 02 | D85: 0220272755 | E85: 244 | F85: 226900 | G85: 264272750000219 | H85: 0.00 | J85: =H85+I85 -> 0.00 | K85: 0.00 | M85: =K85+L85 -> 0.00 | N85: 0.00 | P85: =N85+O85 -> 0.00
A86: Приобретение предметов длительного пользования (оборудование, мебель, компьютерная техника и т.п.) стоимостью свыше 3000,00 руб. | B86: 07 | C86: 02 | D86: 0220272756 | E86: 244 | F86: 310100 | G86: 264272750000219 | H86: 0.00 | J86: =H86+I86 -> 0.00 | K86: 0.00 | M86: =K86+L86 -> 0.00 | N86: 0.00 | P86: =N86+O86 -> 0.00
A87: Комплектование библиотечного фонда | B87: 07 | C87: 02 | D87: 0220272757 | E87: 244 | F87: 310200 | G87: 264272750000219 | H87: 0.00 | J87: 0.00 | K87: 0.00 | M87: 0.00 | N87: 0.00 | P87: 0.00
A88: Другие расходы стоимостью до 3000,00 рублей | B88: 07 | C88: 02 | D88: 0220272758 | E88: 244 | F88: 310900 | G88: 264272750000219 | H88: 0.00 | J88: 0.00 | K88: 0.00 | M88: 0.00 | N88: 0.00 | P88: 0.00
A89: Мягкий инвентарь | B89: 07 | C89: 02 | D89: 0220272759 | E89: 244 | F89: 345000 | G89: 264272750000219 | H89: 0.00 | J89: 0.00 | M89: 0.00 | P89: 0.00
A90: Увеличение стоимости прочих оборотных запасов (материалов) | B90: 07 | C90: 02 | D90: 0220272760 | E90: 244 | F90: 346000 | G90: 264272750000219 | H90: 0.00 | J90: 0.00 | K90: 0.00 | M90: 0.00 | N90: 0.00 | P90: 0.00
A91: Увеличение стоимости прочих материальных запасов однократного применения | B91: 07 | C91: 02 | D91: 0220272761 | E91: 244 | F91: 349100 | G91: 264272750000219 | H91: 0.00 | J91: 0.00 | K91: 0.00 | M91: 0.00 | N91: 0.00 | P91: 0.00
A92: Мероприятия по переподготовке и повышению квалификации кадров | B92: 07 | C92: 05 | D92: 0220272762 | E92: 244 | F92: 226700 | G92: 264272750000219 | H92: 0.00 | J92: 0.00 | K92: 0.00 | M92: 0.00 | N92: 0.00 | P92: 0.00
A93: Итого по КЦ 264272750000219 | H93: =SUM(H80:H92) -> 0.00 | I93: 23,587,629.24 | J93: 23,587,629.24 | K93: 0.00 | L93: 0.00 | M93: 0.00 | N93: 0.00 | O93: 0.00 | P93: 0.00
A94: Субсидия на проведение мероприятий по обеспечению деятельности советников директора по воспитанию и взаимодействию с детскими общественными объединениями в общеобразовательных организациях (КЦ 25-51790-00000-00000)
A95: Заработная плата | B95: 07 | C95: 02 | D95: 022Ю651790 | E95: 111 | F95: 211000 | G95: 25-51790-00000-00000 | H95: 0.00 | J95: =H95+I95 -> 0.00 | K95: 0.00 | M95: =K95+L95 -> 0.00 | N95: 0.00 | P95: =N95+O95 -> 0.00
A96: Начисления на выплаты по оплате труда | B96: 07 | C96: 02 | D96: 022Ю651790 | E96: 119 | F96: 213000 | G96: 25-51790-00000-00000 | H96: 0.00 | J96: =H96+I96 -> 0.00 | K96: 0.00 | M96: =K96+L96 -> 0.00 | N96: 0.00 | P96: =N96+O96 -> 0.00
A97: Итого по КЦ 25-51790-00000-00000 | H97: =SUM(H95:H96) -> 0.00 | I97: 0.00 | J97: 0.00 | K97: 0.00 | L97: 0.00 | M97: 0.00 | N97: 0.00 | O97: 0.00 | P97: 0.00
A98: Иные межбюджетные трансферты на обеспечение выплат ежемесячного денежного вознаграждения советникам директоров по воспитанию и взаимодействию с детскими общественными объединениями государственных общеобразовательных организаций, профессиональных образовательных организаций, муниципальных общеобразовательных организаций и профессиональных образовательных организаций (КЦ 2550500X298320000000)
A99: Заработная плата | B99: 07 | C99: 02 | D99: 022Ю650500 | E99: 111 | F99: 211000 | G99: 2550500X298320000000 | H99: 0.00 | J99: =H99+I99 -> 0.00 | K99: 0.00 | M99: =K99+L99 -> 0.00 | N99: 0.00 | P99: =N99+O99 -> 0.00
A100: Начисления на выплаты по оплате труда | B100: 07 | C100: 02 | D100: 022Ю650500 | E100: 119 | F100: 213000 | G100: 2550500X298320000000 | H100: 0.00 | J100: =H100+I100 -> 0.00 | K100: 0.00 | M100: =K100+L100 -> 0.00 | N100: 0.00 | P100: =N100+O100 -> 0.00
A101: Итого по КЦ 2550500X298320000000 | H101: =SUM(H99:H100) -> 0.00 | I101: 0.00 | J101: 0.00 | K101: 0.00 | L101: 0.00 | M101: 0.00 | N101: 0.00 | O101: 0.00 | P101: 0.00
A102: Иные межбюджетные трансферты на ежемесячное денежное вознаграждение за классное руководство педагогическим работникам государственных и муниципальных образовательных организаций, реализующих образовательные программы начального общего образования, образовательные программы основного общего образования, образовательные программы среднего общего образования (КЦ 2553030X298570000000)
A103: Заработная плата | B103: 07 | C103: 02 | D103: 022Ю653030 | E103: 111 | F103: 211000 | G103: 2553030X298570000000 | H103: 0.00 | J103: =H103+I103 -> 0.00 | K103: 0.00 | M103: =K103+L103 -> 0.00 | N103: 0.00 | P103: =N103+O103 -> 0.00
A104: Начисления на выплаты по оплате труда | B104: 07 | C104: 02 | D104: 022Ю653030 | E104: 119 | F104: 213000 | G104: 2553030X298570000000 | H104: 0.00 | J104: =H104+I104 -> 0.00 | K104: 0.00 | M104: =K104+L104 -> 0.00 | N104: 0.00 | P104: =N104+O104 -> 0.00
A105: Итого по КЦ 2553030X298570000000 | H105: =SUM(H103:H104) -> 0.00 | I105: 0.00 | J105: 0.00 | K105: 0.00 | L105: 0.00 | M105: 0.00 | N105: 0.00 | O105: 0.00 | P105: 0.00
A106: Субвенции на осуществление государственных полномочий РеспубликиКарелия по представлению предусмотренных пунктом 5 части 1 статьи 9 Закона Республики Карелия от 20 декабря 2013 гоа № 1755_ЗРК "Об образовании" мер социальной поддержки и социального обслуживания (КЦ 254242100000210)
A107: Увеличение стоимости прочих оборотных запасов (материалов) | B107: 07 | C107: 02 | D107: 0220242100 | E107: 244 | F107: 346000 | G107: 24424210000210 | J107: =H107+I107 -> 0.00 | K107: 0.00 | M107: =K107+L107 -> 0.00 | N107: 0.00 | P107: =N107+O107 -> 0.00
A108: Пособия по социальной помощи населению в натуральной форме | B108: 07 | C108: 02 | D108: 0220242100 | E108: 323 | F108: 263000 | G108: 254242100000210 | H108: 0.00 | J108: =H108+I108 -> 0.00 | K108: 0.00 | M108: =K108+L108 -> 0.00 | N108: 0.00 | P108: =N108+O108 -> 0.00
A109: Увеличение стоимости прочих оборотных запасов (материалов) | B109: 07 | C109: 02 | D109: 0220242100 | E109: 323 | F109: 346000 | G109: 23424210000210 | J109: =H109+I109 -> 0.00 | K109: 0.00 | M109: =K109+L109 -> 0.00 | N109: 0.00 | P109: =N109+O109 -> 0.00
A110: Итого по КЦ 254242100000210 | H110: =SUM(H107:H109) -> 0.00 | I110: 0.00 | J110: 0.00 | K110: 0.00 | L110: 0.00 | M110: 0.00 | N110: 0.00 | O110: 0.00 | P110: 0.00
A111: Субвенции на осуществление государственных полномочий Республики Карелия по выплате компенсации платы, взимаемой с родителей (законных представителей) за присмотр и уход за детьми, осваивающими образовательные программы дошкольного образования в организа
A112: Пособия по социальной помощи населению в натуральной форме | B112: 10 | C112: 04 | D112: 0220142030 | E112: 323 | F112: 263000 | G112: 23424203000203 | J112: =H112+I112 -> 0.00 | K112: 0.00 | M112: =K112+L112 -> 0.00 | N112: 0.00 | P112: =N112+O112 -> 0.00
A113: Итого по КЦ 23424203000203 | H113: =SUM(H112) -> 0.00 | I113: 0.00 | J113: 0.00 | K113: 0.00 | L113: 0.00 | M113: 0.00 | N113: 0.00 | O113: 0.00 | P113: 0.00
A114: Субсидии на организацию бесплатного горячего питания обучающихся, получающих начальное общее образование в государственных и муниципальных образовательных организациях (КЦ 25-53040-00000-00000)
A115: Другие расходы | B115: 07 | C115: 02 | D115: 02202L3040 | E115: 244 | F115: 226900 | G115: 25-53040-00000-00000 | H115: 0.00 | J115: =H115+I115 -> 0.00 | K115: 0.00 | M115: =K115+L115 -> 0.00 | N115: 0.00 | P115: =N115+O115 -> 0.00
A116: Итого по КЦ 25-53040-00000-00000 | H116: =SUM(H115:H115) -> 0.00 | I116: 0.00 | J116: 0.00 | K116: 0.00 | L116: 0.00 | M116: 0.00 | N116: 0.00 | O116: 0.00 | P116: 0.00
A117: Субсидия на реализацию мероприятий государственной программы Республики Карелия "Совершенствование социальной защиты граждан" в целях организации адресной социальной помощи семьям, имеющим детей (КЦ 254343210000316)
A118: Пособия по социальной помощи населению в натуральной форме | B118: 10 | C118: 03 | D118: 0320243210 | E118: 323 | F118: 263000 | G118: 254343210000316 | H118: 0.00 | J118: =H118+I118 -> 0.00 | K118: 0.00 | M118: =K118+L118 -> 0.00 | N118: 0.00 | P118: =N118+O118 -> 0.00
A119: Итого по КЦ 254343210000316 | H119: =SUM(H118:H118) -> 0.00 | I119: =SUM(I118:I118) -> 0.00 | J119: =SUM(J118:J118) -> 0.00 | K119: =SUM(K118:K118) -> 0.00 | L119: =SUM(L118:L118) -> 0.00 | M119: 0.00 | N119: 0.00 | O119: 0.00 | P119: 0.00
A120: Пособия по социальной помощи населению в натуральной форме | B120: 10 | C120: 03 | D120: 03202S3210 | E120: 323 | F120: 263000 | G120: 1000 | H120: 0.00 | J120: =H120+I120 -> 0.00 | K120: 0.00 | M120: 0.00 | N120: 0.00 | P120: 0.00
A121: Итого по КЦ 1000 | H121: =SUM(H120:H120) -> 0.00 | I121: 0.00 | J121: 0.00 | K121: 0.00 | L121: 0.00 | M121: 0.00 | N121: 0.00 | O121: 0.00 | P121: 0.00
A122: Субсидия местным бюджетам на организацию отдыха детей в каникулярное время (КЦ 254343540000778)
A123: Увеличение стоимости прочих оборотных запасов (материалов) | B123: 07 | C123: 09 | D123: 0220243210 | E123: 244 | F123: 346000 | G123: 2343432000321 | J123: =H123+I123 -> 0.00 | K123: 0.00 | M123: =K123+L123 -> 0.00 | N123: 0.00 | P123: =N123+O123 -> 0.00
A124: Другие расходы | B124: 07 | C124: 09 | D124: 0220243210 | E124: 244 | F124: 226900 | G124: 2343432000321 | J124: 0.00 | K124: 0.00 | M124: 0.00 | N124: 0.00 | P124: 0.00
A125: Транспортные услуги | B125: 07 | C125: 09 | D125: 0220243210 | E125: 244 | F125: 222000 | G125: 2343432000321 | J125: 0.00 | K125: 0.00 | M125: 0.00 | N125: 0.00 | P125: 0.00
A126: Другие расходы | B126: 07 | C126: 09 | D126: 02202S3540 | E126: 244 | F126: 226900 | G126: 254343540000778 | H126: 0.00 | J126: 0.00 | K126: 0.00 | M126: 0.00 | N126: 0.00 | P126: 0.00
A127: Расходы на оплату услуг по страхованию здоровья | B127: 07 | C127: 09 | D127: 02202S3540 | E127: 244 | F127: 227300 | G127: 254343540000778 | H127: 0.00 | J127: 0.00 | K127: 0.00 | M127: 0.00 | N127: 0.00 | P127: 0.00
A128: Увеличение стоимости прочих оборотных запасов (материалов) | B128: 07 | C128: 09 | D128: 02202S3540 | E128: 244 | F128: 346000 | G128: 254343540000778 | H128: 0.00 | J128: 0.00 | K128: 0.00 | M128: 0.00 | N128: 0.00 | P128: 0.00
A129: Итого по КЦ 2343432000321 | H129: =SUM(H123:H128) -> 0.00 | I129: 0.00 | J129: 0.00 | K129: 0.00 | L129: 0.00 | M129: 0.00 | N129: 0.00 | O129: 0.00 | P129: 0.00
A130: Субсидия местным бюджетам на реализацию мероприятий государственной программы Республики Карелия "Совершенствование социальной защиты граждан" (КЦ 2343432000321)
A131: Увеличение стоимости прочих оборотных запасов (материалов) | B131: 07 | C131: 09 | D131: 0220243210 | E131: 244 | F131: 346000 | G131: 2343432000321 | J131: =H131+I131 -> 0.00 | K131: 0.00 | M131: =K131+L131 -> 0.00 | N131: 0.00 | P131: =N131+O131 -> 0.00
A132: Другие расходы | B132: 07 | C132: 09 | D132: 0220243210 | E132: 244 | F132: 226900 | G132: 2343432000321 | J132: 0.00 | K132: 0.00 | M132: 0.00 | N132: 0.00 | P132: 0.00
A133: Транспортные услуги | B133: 07 | C133: 09 | D133: 0220243210 | E133: 244 | F133: 222000 | G133: 2343432000321 | J133: 0.00 | K133: 0.00 | M133: 0.00 | N133: 0.00 | P133: 0.00
A134: Увеличение стоимости прочих оборотных запасов (материалов) | B134: 07 | C134: 09 | D134: 02202S3210 | E134: 244 | F134: 346000 | G134: 1000 | J134: 0.00 | K134: 0.00 | M134: 0.00 | N134: 0.00 | P134: 0.00
A135: Другие расходы | B135: 07 | C135: 09 | D135: 02202S3210 | E135: 244 | F135: 226900 | G135: 1000 | J135: 0.00 | K135: 0.00 | M135: 0.00 | N135: 0.00 | P135: 0.00
A136: Транспортные услуги | B136: 07 | C136: 09 | D136: 02202S3210 | E136: 244 | F136: 222000 | G136: 1000 | J136: 0.00 | K136: 0.00 | M136: 0.00 | N136: 0.00 | P136: 0.00
A137: Итого по КЦ 2343432000321 | H137: =SUM(H131:H136) -> 0.00 | I137: 0.00 | J137: 0.00 | K137: 0.00 | L137: 0.00 | M137: 0.00 | N137: 0.00 | O137: 0.00 | P137: 0.00
A138: Иные межбюджетные трансферты на компенсацию затрат, связанных с освобождением членов семей постоянно проживающих на территории Республики Карелия граждан, призванных военным комиссариатом Республики Карелия на военную службу по мобилизации, а также гражд
A139: Продукты питания | B139: 07 | C139: 01 | D139: 0220175040 | E139: 244 | F139: 342000 | G139: 234475040П0514 | J139: =H139+I139 -> 0.00 | K139: 0.00 | M139: =K139+L139 -> 0.00 | N139: 0.00 | O139: =M139+N139 -> 0.00 | P139: =N139+O139 -> 0.00
A140: Итого по КЦ 234475040П0514 | H140: =SUM(H139) -> 0.00 | I140: 0.00 | J140: 0.00 | K140: 0.00 | L140: 0.00 | M140: 0.00 | N140: 0.00 | O140: 0.00 | P140: 0.00
G141: Всего | H141: =H78+H93+H110+H113+H116+H119+H121+H105+H97+H101+H129 -> 4,224,467.13 | I141: 23,587,629.24 | J141: 27,812,096.37 | K141: 4,604,820.33 | L141: 0.00 | M141: 4,604,820.33 | N141: 5,048,612.86 | O141: 0.00 | P141: 5,048,612.86
A145: Директор | F145: И.А. Сидорова
B146: (подпись) | F146: (расшифровка подписи)
A148: Гл.бухгалтер МУ "ЦБ № 1" | F148: И.В. Ананьева
A149: (уполномоченное лицо) | B149: (подпись) | F149: (расшифровка подписи)
A151: Главный экономист ПЭО МУ "ЦБ № 1" | F151: Е.Л. Герасимова
A152: (исполнитель) | B152: (подпись) | F152: (расшифровка подписи)
A154: =L18 -> "22" января 2026 г.

Sheet 26.01
P1: Приложение № 2
P2: к Порядку составления, утверждения
P3: и ведения бюджетных смет Администрации
P4: Прионежского муниципального района
P5: и казенных учреждений, находящихся
P6: в ведении Администрации Прионежского
P7: муниципального района
P8: от 09 августа 2022 № 831
L10: УТВЕРЖДАЮ
L11: Глава Администрации Прионежского муниципального района
L12: (наименование должности лица, согласующего бюджетную смету)
L13: Администрация Прионежского муниципального района
L14: (наименование главного распорядителя (распорядителя) бюджетных средств; учреждения)
L16: Г. Н. Шемет
L17: (подпись) | N17: (расшифровка подписи)
L18: "26" января 2026 г.
A20: ИЗМЕНЕНИЕ К БЮДЖЕТНОЙ СМЕТЕ НА 2026 ФИНАНСОВЫЙ ГОД И ПЛАНОВЫЙ ПЕРИОД 2027 И 2028 ГОДОВ
B22: № 015/00402/006 от | H22: =L18 -> "26" января 2026 г.
A23: (№, дата, справки об изменении ЛБО) | P23: КОДЫ
O24: Форма по ОКУД | P24: 0501012
O25: Дата | P25: =L18 -> "26" января 2026 г.
O26: по ОКПО | P26: 51326281
A27: Получатель бюджетных средств | B27: Муниципальное общеобразовательное учреждение "Средняя общеобразовательная школа № 44"
A28: Распорядитель бюджетных средств | B28: Администрация Прионежского муниципального района Республики Карелия
A29: Главный распорядитель бюджетных средств | B29: Администрация Прионежского муниципального района Республики Карелия | O29: Глава по БК | P29: 015
A30: Наименование бюджета | B30: Бюджет Прионежского муниципального района | O30: по ОКТМО | P30: 86636410
A31: Единица измерения: | B31: руб. | O31: по ОКЕЙ | P31: 383
A33: Наименование показателя (детализация кода бюджетной классификации) | B33: РЗ | C33: ПР | D33: ЦСР | E33: Вид расхода | F33: Детализация | G33: Вид целевых средств | H33: Сумма на текущий 2026 год | K33: Сумма на первый год планового периода | N33: Сумма на второй год планового периода
H34: на 22.01.2026 г | I34: изменения(+;-) | J34: Итого | K34: =H34 -> на 22.01.2026 г | L34: изменения(+;-) | M34: Итого | N34: =H34 -> на 22.01.2026 г | O34: изменения(+;-) | P34: Итого
A35: 1 | B35: =SUM(A35+1) -> 2 | C35: 3 | D35: 4 | E35: 5 | F35: 6 | G35: 7 | H35: 8 | I35: 9 | J35: 10 | K35: 11 | L35: 12 | M35: 13 | N35: 14 | O35: 15 | P35: 16
A36: Средства местного бюджета (КЦ 1000) 0702
A37: Заработная плата | B37: 07 | C37: 02 | D37: 0220270210 | E37: 111 | F37: 211000 | G37: 1000 | H37: 537,980.16 | J37: =H37+I37 -> 537,980.16 | K37: 537,980.16 | M37: =K37+L37 -> 537,980.16 | N37: 537,980.16 | P37: =N37+O37 -> 537,980.16
A38: Социальные пособия и компенсации персоналу в денежной форме (пособие за первые три дня временной нетрудоспособности за счет средств работодателя) | B38: 07 | C38: 02 | D38: 0220270210 | E38: 111 | F38: 266100 | G38: 1000 | H38: 0.00 | J38: 0.00 | K38: 0.00 | M38: 0.00 | N38: 0.00 | P38: 0.00
A39: Расходы по оплате проезда к месту отпуска и обратно отдельным категориям лиц (для лиц, работающих в районах Крайнего Севера и приравненных к ним местностям, и членов их семей) | B39: 07 | C39: 02 | D39: 0220270210 | E39: 112 | F39: 214000 | G39: 1000 | H39: 30,000.00 | J39: 30,000.00 | K39: 30,000.00 | M39: 30,000.00 | N39: 30,000.00 | P39: 30,000.00
A40: Начисления на выплаты по оплате труда | B40: 07 | C40: 02 | D40: 0220270210 | E40: 119 | F40: 213000 | G40: 1000 | H40: 162,470.01 | J40: 162,470.01 | K40: 162,470.01 | M40: 162,470.01 | N40: 162,470.01 | P40: 162,470.01
A41: Услуги связи (телефон) | B41: 07 | C41: 02 | D41: 0220270210 | E41: 244 | F41: 221100 | G41: 1000 | H41: 8,244.91 | J41: 8,244.91 | K41: 10,306.14 | M41: 10,306.14 | N41: 12,882.68 | P41: 12,882.68
A42: Услуги связи (почта) | B42: 07 | C42: 02 | D42: 0220270210 | E42: 244 | F42: 221300 | G42: 1000 | H42: 0.00 | J42: 0.00 | K42: 0.00 | M42: 0.00 | N42: 0.00 | P42: 0.00
A43: Транспортные услуги | B43: 07 | C43: 02 | D43: 0220270210 | E43: 244 | F43: 222000 | G43: 1000 | H43: 18,216.90 | J43: =H43+I43 -> 18,216.90 | K43: 22,771.13 | M43: =K43+L43 -> 22,771.13 | N43: 28,463.91 | P43: =N43+O43 -> 28,463.91
A44: Обращение с твердыми коммунальными отходами (вывоз ТБО) | B44: 07 | C44: 02 | D44: 0220270210 | E44: 244 | F44: 223500 | G44: 1000 | H44: 32,551.14 | J44: 32,551.14 | K44: 36,620.03 | M44: 36,620.03 | N44: 41,197.54 | P44: 41,197.54
A45: Техническое обслуживание внутренних сетей отопления и горячего водоснабжения | B45: 07 | C45: 02 | D45: 0220270210 | E45: 244 | F45: 225200 | G45: 1000 | H45: 0.00 | J45: 0.00 | K45: 0.00 | M45: 0.00 | N45: 0.00 | P45: 0.00
A46: Санитарная и противопожарная (дезинфекция, дезинсекция, дератизация, газация, огнезащитная) обработка помещений | B46: 07 | C46: 02 | D46: 0220270210 | E46: 244 | F46: 225600 | G46: 1000 | H46: 31,712.06 | J46: 31,712.06 | K46: 31,712.06 | M46: 31,712.06 | N46: 31,712.06 | P46: 31,712.06
A47: Содержание, обслуживание помещений и сетей инженерно-технического обеспечения | B47: 07 | C47: 02 | D47: 0220270210 | E47: 244 | F47: 225700 | G47: 1000 | H47: 142,500.00 | J47: 142,500.00 | K47: 142,500.00 | M47: 142,500.00 | N47: 142,500.00 | P47: 142,500.00
A48: Текущий ремонт помещений и сетей инженерно-технического обеспечения | B48: 07 | C48: 02 | D48: 0220270210 | E48: 244 | F48: 225800 | G48: 1000 | H48: 0.00 | J48: 0.00 | K48: 0.00 | M48: 0.00 | N48: 0.00 | P48: 0.00
A49: Другие расходы | B49: 07 | C49: 02 | D49: 0220270210 | E49: 244 | F49: 225900 | G49: 1000 | H49: 110,000.00 | J49: 110,000.00 | K49: 100,000.00 | M49: 100,000.00 | N49: 100,000.00 | P49: 100,000.00
A50: Аттестация | B50: 07 | C50: 02 | D50: 0220270210 | E50: 244 | F50: 226200 | G50: 1000 | H50: 0.00 | J50: =H50+I50 -> 0.00 | K50: 0.00 | M50: =K50+L50 -> 0.00 | N50: 0.00 | P50: =N50+O50 -> 0.00
A51: Охрана ведомственная, вневедомственная, пожарная | B51: 07 | C51: 02 | D51: 0220270210 | E51: 244 | F51: 226400 | G51: 1000 | H51: 92,240.85 | J51: 92,240.85 | K51: 115,301.06 | M51: 115,301.06 | N51: 144,126.33 | P51: 144,126.33
A52: Мероприятия по переподготовке и повышению квалификации кадров | B52: 07 | C52: 02 | D52: 0220270210 | E52: 244 | F52: 226700 | G52: 1000 | H52: 0.00 | J52: 0.00 | K52: 0.00 | M52: 0.00 | N52: 0.00 | P52: 0.00
A53: Медицинский осмотр работников учреждения, за исключением водителей трансртных средств | B53: 07 | C53: 02 | D53: 0220270210 | E53: 244 | F53: 226800 | G53: 1000 | H53: 0.00 | J53: 0.00 | K53: 0.00 | M53: 0.00 | N53: 0.00 | P53: 0.00
A54: Другие расходы | B54: 07 | C54: 02 | D54: 0220270210 | E54: 244 | F54: 226900 | G54: 1000 | H54: 100,000.00 | J54: 100,000.00 | K54: 100,000.00 | M54: 100,000.00 | N54: 100,000.00 | P54: 100,000.00
A55: Приобретение предметов длительного пользования (оборудование, мебель, компьютерная техника и т.п) стоимостью свыше 3000 рублей | B55: 07 | C55: 02 | D55: 0220270210 | E55: 244 | F55: 310100 | G55: 1000 | H55: 0.00 | J55: 0.00 | K55: 0.00 | M55: 0.00 | N55: 0.00 | P55: 0.00
A56: Другие расходы стоимостью до 3000,00 рублей | B56: 07 | C56: 02 | D56: 0220270210 | E56: 244 | F56: 310900 | G56: 1000 | H56: 0.00 | J56: 0.00 | K56: 0.00 | M56: 0.00 | N56: 0.00 | P56: 0.00
A57: Увеличение стоимости лекарственных препаратов и материалов, применяемых в медицинских целях | B57: 07 | C57: 02 | D57: 0220270210 | E57: 244 | F57: 341000 | G57: 1000 | H57: 12,375.00 | J57: =H57+I57 -> 12,375.00 | K57: 15,468.75 | M57: =K57+L57 -> 15,468.75 | N57: 19,335.94 | P57: =N57+O57 -> 19,335.94
A58: Приобретение строительных материалов | B58: 07 | C58: 02 | D58: 0220270210 | E58: 244 | F58: 344000 | G58: 1000 | H58: 0.00 | J58: 0.00 | K58: 0.00 | M58: 0.00 | N58: 0.00 | P58: 0.00
A59: Мягкий инвентарь | B59: 07 | C59: 02 | D59: 0220270210 | E59: 244 | F59: 345000 | G59: 1000 | H59: 14,200.00 | J59: =H59+I59 -> 14,200.00 | K59: 15,760.00 | M59: =K59+L59 -> 15,760.00 | N59: 18,064.00 | P59: =N59+O59 -> 18,064.00
A60: Увеличение стоимости прочих оборотных запасов (материалов) | B60: 07 | C60: 02 | D60: 0220270210 | E60: 244 | F60: 346000 | G60: 1000 | H60: 80,000.00 | J60: 80,000.00 | K60: 80,000.00 | M60: 80,000.00 | N60: 80,000.00 | P60: 80,000.00
A61: Увеличение стоимости прочих оборотных запасов однократного применения | B61: 07 | C61: 02 | D61: 0220270210 | E61: 244 | F61: 349100 | G61: 1000 | H61: 0.00 | J61: 0.00 | K61: 0.00 | M61: 0.00 | N61: 0.00 | P61: 0.00
A62: Отопление, горячее водоснабжение и газоснабжение | B62: 07 | C62: 02 | D62: 0220270210 | E62: 247 | F62: 223100 | G62: 1000 | H62: 1,994,773.44 | J62: 1,994,773.44 | K62: 2,244,120.12 | M62: 2,244,120.12 | N62: 2,524,635.14 | P62: 2,524,635.14
A63: Электроэнергия | B63: 07 | C63: 02 | D63: 0220270210 | E63: 247 | F63: 223200 | G63: 1000 | H63: 735,965.00 | J63: 735,965.00 | K63: 827,960.63 | M63: 827,960.63 | N63: 931,455.70 | P63: 931,455.70
A64: Холодное водоснабжение | B64: 07 | C64: 02 | D64: 0220270210 | E64: 247 | F64: 223300 | G64: 1000 | H64: 54,731.04 | J64: 54,731.04 | K64: 60,410.18 | M64: 60,410.18 | N64: 67,961.45 | P64: 67,961.45
A65: Водоотведение | B65: 07 | C65: 02 | D65: 0220270210 | E65: 247 | F65: 223400 | G65: 1000 | H65: 30,169.62 | J65: 30,169.62 | K65: 35,103.06 | M65: 35,103.06 | N65: 39,490.94 | P65: 39,490.94
A66: Пособия по социальной помощи населению в натуральной форме | B66: 07 | C66: 02 | D66: 0220270210 | E66: 323 | F66: 263000 | G66: 1000 | H66: 0.00 | J66: =H66+I66 -> 0.00 | K66: 0.00 | M66: 0.00 | N66: 0.00 | P66: 0.00
A67: Налог на имущство | B67: 07 | C67: 02 | D67: 0220270210 | E67: 851 | F67: 291200 | G67: 1000 | H67: 8,876.00 | J67: 8,876.00 | K67: 8,876.00 | M67: 8,876.00 | N67: 8,876.00 | P67: 8,876.00
A68: Земельный налог, в том числе в период строительства объекта | B68: 07 | C68: 02 | D68: 0220270210 | E68: 851 | F68: 291300 | G68: 1000 | H68: 27,461.00 | J68: 27,461.00 | K68: 27,461.00 | M68: 27,461.00 | N68: 27,461.00 | P68: 27,461.00
A69: Штрафы за нарушение законодательства о налогах и сборах, законодательства о страховых взносах | B69: 07 | C69: 02 | D69: 0220270210 | E69: 853 | F69: 292000 | G69: 1000 | H69: 0.00 | J69: =H69+I69 -> 0.00 | K69: 0.00 | M69: =K69+L69 -> 0.00 | N69: 0.00 | P69: =N69+O69 -> 0.00
A70: Иные выплаты текущего характера физическим лицам (возмещение убытков, вреда и судебных издержек) | B70: 07 | C70: 02 | D70: 0220270210 | E70: 853 | F70: 296100 | G70: 1000 | H70: 0.00 | J70: =H70+I70 -> 0.00 | K70: 0.00 | M70: =K70+L70 -> 0.00 | N70: 0.00 | P70: =N70+O70 -> 0.00
A71: Транспортный налог | B71: 07 | C71: 02 | D71: 0220270210 | E71: 852 | F71: 291400 | G71: 1000 | H71: 0.00 | J71: 0.00 | K71: 0.00 | M71: 0.00 | N71: 0.00 | P71: 0.00
A72: Штрафы за нарушение законодательства о закупках и нарушенияе условий контракта (договоров) | B72: 07 | C72: 02 | D72: 0220270210 | E72: 831 | F72: 293000 | G72: 1000 | H72: 0.00 | J72: 0.00 | K72: 0.00 | M72: 0.00 | N72: 0.00 | P72: 0.00
A73: Другие экономические санкции | B73: 07 | C73: 02 | D73: 0220270210 | E73: 853 | F73: 295000 | G73: 1000 | H73: 0.00 | J73: 0.00 | K73: 0.00 | M73: 0.00 | N73: 0.00 | P73: 0.00
A74: Иные выплаты текущего характера организациям (возмещение убытков, вред и судебных издержек) | B74: 07 | C74: 02 | D74: 0220270210 | E74: 851 | F74: 297100 | G74: 1000 | H74: 0.00 | J74: 0.00 | K74: 0.00 | M74: 0.00 | N74: 0.00 | P74: 0.00
A75: Другие расходы | B75: 07 | C75: 02 | D75: 0400072910 | E75: 244 | F75: 226900 | G75: 1000 | H75: 0.00 | J75: 0.00 | K75: 0.00 | M75: 0.00 | N75: 0.00 | P75: 0.00
A76: Заработная плата | B76: 07 | C76: 02 | D76: 0920070260 | E76: 111 | F76: 211000 | G76: 1000 | H76: 0.00 | J76: 0.00 | K76: 0.00 | M76: 0.00 | N76: 0.00 | P76: 0.00
A77: Начисления на выплаты по оплате труда | B77: 07 | C77: 02 | D77: 0920070260 | E77: 119 | F77: 213000 | G77: 1000 | H77: 0.00 | J77: 0.00 | K77: 0.00 | M77: 0.00 | N77: 0.00 | P77: 0.00
A78: Итого по КЦ 1000 | H78: =SUM(H37:H77) -> 4,224,467.13 | I78: 0.00 | J78: 4,224,467.13 | K78: 4,604,820.33 | L78: 0.00 | M78: 4,604,820.33 | N78: 5,048,612.86 | O78: 0.00 | P78: 5,048,612.86
A79: Обеспечение государственных гарантий реализации прав на получение общедоступного и бесплатного дошкольного образования в муниципальных дошкольных образовательных организациях, общедоступного и бесплатного дошкольного, начального общего, основного общего, среднего общего образования в муниципальных общеобразовательных организациях, обеспечение дополнительного образования детей в муниципальных общеобразовательных организациях (Субвенции) (КЦ 264272750000219)
A80: Заработная плата | B80: 07 | C80: 02 | D80: 0220272750 | E80: 111 | F80: 211000 | G80: 264272750000219 | H80: 18,116,458.71 | J80: =H80+I80 -> 18,116,458.71 | K80: 0.00 | M80: =K80+L80 -> 0.00 | N80: 0.00 | P80: =N80+O80 -> 0.00
A81: Социальные пособия и компенсации персоналу в денежной форме (пособие за первые три дня временной нетрудоспособности за счет средств работодателя) | B81: 07 | C81: 02 | D81: 0220272751 | E81: 111 | F81: 266100 | G81: 264272750000219 | H81: 0.00 | J81: 0.00 | K81: 0.00 | M81: 0.00 | N81: 0.00 | P81: 0.00
A82: Начисления на выплаты по оплате труда | B82: 07 | C82: 02 | D82: 0220272750 | E82: 119 | F82: 213000 | G82: 264272750000219 | H82: 5,471,170.53 | J82: 5,471,170.53 | K82: 0.00 | M82: 0.00 | N82: 0.00 | P82: 0.00
A83: Услуги связи (интернет) | B83: 07 | C83: 02 | D83: 0220272753 | E83: 244 | F83: 221200 | G83: 264272750000219 | H83: 0.00 | J83: =H83+I83 -> 0.00 | K83: 0.00 | M83: =K83+L83 -> 0.00 | N83: 0.00 | P83: =N83+O83 -> 0.00
A84: Транспортные услуги | B84: 07 | C84: 02 | D84: 0220272754 | E84: 244 | F84: 222000 | G84: 264272750000219 | H84: 0.00 | J84: 0.00 | K84: 0.00 | M84: 0.00 | N84: 0.00 | P84: 0.00
A85: Другие расходы | B85: 07 | C85: 02 | D85: 0220272755 | E85: 244 | F85: 226900 | G85: 264272750000219 | H85: 0.00 | J85: =H85+I85 -> 0.00 | K85: 0.00 | M85: =K85+L85 -> 0.00 | N85: 0.00 | P85: =N85+O85 -> 0.00
A86: Приобретение предметов длительного пользования (оборудование, мебель, компьютерная техника и т.п.) стоимостью свыше 3000,00 руб. | B86: 07 | C86: 02 | D86: 0220272756 | E86: 244 | F86: 310100 | G86: 264272750000219 | H86: 0.00 | J86: =H86+I86 -> 0.00 | K86: 0.00 | M86: =K86+L86 -> 0.00 | N86: 0.00 | P86: =N86+O86 -> 0.00
A87: Комплектование библиотечного фонда | B87: 07 | C87: 02 | D87: 0220272757 | E87: 244 | F87: 310200 | G87: 264272750000219 | H87: 0.00 | J87: 0.00 | K87: 0.00 | M87: 0.00 | N87: 0.00 | P87: 0.00
A88: Другие расходы стоимостью до 3000,00 рублей | B88: 07 | C88: 02 | D88: 0220272758 | E88: 244 | F88: 310900 | G88: 264272750000219 | H88: 0.00 | J88: 0.00 | K88: 0.00 | M88: 0.00 | N88: 0.00 | P88: 0.00
A89: Мягкий инвентарь | B89: 07 | C89: 02 | D89: 0220272759 | E89: 244 | F89: 345000 | G89: 264272750000219 | H89: 0.00 | J89: 0.00 | M89: 0.00 | P89: 0.00
A90: Увеличение стоимости прочих оборотных запасов (материалов) | B90: 07 | C90: 02 | D90: 0220272760 | E90: 244 | F90: 346000 | G90: 264272750000219 | H90: 0.00 | J90: 0.00 | K90: 0.00 | M90: 0.00 | N90: 0.00 | P90: 0.00
A91: Увеличение стоимости прочих материальных запасов однократного применения | B91: 07 | C91: 02 | D91: 0220272761 | E91: 244 | F91: 349100 | G91: 264272750000219 | H91: 0.00 | J91: 0.00 | K91: 0.00 | M91: 0.00 | N91: 0.00 | P91: 0.00
A92: Мероприятия по переподготовке и повышению квалификации кадров | B92: 07 | C92: 05 | D92: 0220272762 | E92: 244 | F92: 226700 | G92: 264272750000219 | H92: 0.00 | J92: 0.00 | K92: 0.00 | M92: 0.00 | N92: 0.00 | P92: 0.00
A93: Итого по КЦ 264272750000219 | H93: =SUM(H80:H92) -> 23,587,629.24 | I93: 0.00 | J93: 23,587,629.24 | K93: 0.00 | L93: 0.00 | M93: 0.00 | N93: 0.00 | O93: 0.00 | P93: 0.00
A94: Субсидия на проведение мероприятий по обеспечению деятельности советников директора по воспитанию и взаимодействию с детскими общественными объединениями в общеобразовательных организациях (КЦ 25-51790-00000-00000)
A95: Заработная плата | B95: 07 | C95: 02 | D95: 022Ю651790 | E95: 111 | F95: 211000 | G95: 25-51790-00000-00000 | H95: 0.00 | J95: =H95+I95 -> 0.00 | K95: 0.00 | M95: =K95+L95 -> 0.00 | N95: 0.00 | P95: =N95+O95 -> 0.00
A96: Начисления на выплаты по оплате труда | B96: 07 | C96: 02 | D96: 022Ю651790 | E96: 119 | F96: 213000 | G96: 25-51790-00000-00000 | H96: 0.00 | J96: =H96+I96 -> 0.00 | K96: 0.00 | M96: =K96+L96 -> 0.00 | N96: 0.00 | P96: =N96+O96 -> 0.00
A97: Итого по КЦ 25-51790-00000-00000 | H97: =SUM(H95:H96) -> 0.00 | I97: 0.00 | J97: 0.00 | K97: 0.00 | L97: 0.00 | M97: 0.00 | N97: 0.00 | O97: 0.00 | P97: 0.00
A98: Иные межбюджетные трансферты на обеспечение выплат ежемесячного денежного вознаграждения советникам директоров по воспитанию и взаимодействию с детскими общественными объединениями государственных общеобразовательных организаций, профессиональных образовательных организаций, муниципальных общеобразовательных организаций и профессиональных образовательных организаций (КЦ 2550500X298320000000)
A99: Заработная плата | B99: 07 | C99: 02 | D99: 022Ю650500 | E99: 111 | F99: 211000 | G99: 2550500X298320000000 | H99: 0.00 | J99: =H99+I99 -> 0.00 | K99: 0.00 | M99: =K99+L99 -> 0.00 | N99: 0.00 | P99: =N99+O99 -> 0.00
A100: Начисления на выплаты по оплате труда | B100: 07 | C100: 02 | D100: 022Ю650500 | E100: 119 | F100: 213000 | G100: 2550500X298320000000 | H100: 0.00 | J100: =H100+I100 -> 0.00 | K100: 0.00 | M100: =K100+L100 -> 0.00 | N100: 0.00 | P100: =N100+O100 -> 0.00
A101: Итого по КЦ 2550500X298320000000 | H101: =SUM(H99:H100) -> 0.00 | I101: 0.00 | J101: 0.00 | K101: 0.00 | L101: 0.00 | M101: 0.00 | N101: 0.00 | O101: 0.00 | P101: 0.00
A102: Иные межбюджетные трансферты на ежемесячное денежное вознаграждение за классное руководство педагогическим работникам государственных и муниципальных образовательных организаций, реализующих образовательные программы начального общего образования, образовательные программы основного общего образования, образовательные программы среднего общего образования (КЦ 2553030X298570000000)
A103: Заработная плата | B103: 07 | C103: 02 | D103: 022Ю653030 | E103: 111 | F103: 211000 | G103: 2553030X298570000000 | H103: 0.00 | J103: =H103+I103 -> 0.00 | K103: 0.00 | M103: =K103+L103 -> 0.00 | N103: 0.00 | P103: =N103+O103 -> 0.00
A104: Начисления на выплаты по оплате труда | B104: 07 | C104: 02 | D104: 022Ю653030 | E104: 119 | F104: 213000 | G104: 2553030X298570000000 | H104: 0.00 | J104: =H104+I104 -> 0.00 | K104: 0.00 | M104: =K104+L104 -> 0.00 | N104: 0.00 | P104: =N104+O104 -> 0.00
A105: Итого по КЦ 2553030X298570000000 | H105: =SUM(H103:H104) -> 0.00 | I105: 0.00 | J105: 0.00 | K105: 0.00 | L105: 0.00 | M105: 0.00 | N105: 0.00 | O105: 0.00 | P105: 0.00
A106: Субвенции на осуществление государственных полномочий РеспубликиКарелия по представлению предусмотренных пунктом 5 части 1 статьи 9 Закона Республики Карелия от 20 декабря 2013 гоа № 1755_ЗРК "Об образовании" мер социальной поддержки и социального обслуживания (КЦ 254242100000210)
A107: Увеличение стоимости прочих оборотных запасов (материалов) | B107: 07 | C107: 02 | D107: 0220242100 | E107: 244 | F107: 346000 | G107: 24424210000210 | J107: =H107+I107 -> 0.00 | K107: 0.00 | M107: =K107+L107 -> 0.00 | N107: 0.00 | P107: =N107+O107 -> 0.00
A108: Пособия по социальной помощи населению в натуральной форме | B108: 07 | C108: 02 | D108: 0220242100 | E108: 323 | F108: 263000 | G108: 254242100000210 | H108: 0.00 | J108: =H108+I108 -> 0.00 | K108: 0.00 | M108: =K108+L108 -> 0.00 | N108: 0.00 | P108: =N108+O108 -> 0.00
A109: Увеличение стоимости прочих оборотных запасов (материалов) | B109: 07 | C109: 02 | D109: 0220242100 | E109: 323 | F109: 346000 | G109: 23424210000210 | J109: =H109+I109 -> 0.00 | K109: 0.00 | M109: =K109+L109 -> 0.00 | N109: 0.00 | P109: =N109+O109 -> 0.00
A110: Итого по КЦ 254242100000210 | H110: =SUM(H107:H109) -> 0.00 | I110: 0.00 | J110: 0.00 | K110: 0.00 | L110: 0.00 | M110: 0.00 | N110: 0.00 | O110: 0.00 | P110: 0.00
A111: Субвенции на осуществление государственных полномочий Республики Карелия по выплате компенсации платы, взимаемой с родителей (законных представителей) за присмотр и уход за детьми, осваивающими образовательные программы дошкольного образования в организа
A112: Пособия по социальной помощи населению в натуральной форме | B112: 10 | C112: 04 | D112: 0220142030 | E112: 323 | F112: 263000 | G112: 23424203000203 | J112: =H112+I112 -> 0.00 | K112: 0.00 | M112: =K112+L112 -> 0.00 | N112: 0.00 | P112: =N112+O112 -> 0.00
A113: Итого по КЦ 23424203000203 | H113: =SUM(H112) -> 0.00 | I113: 0.00 | J113: 0.00 | K113: 0.00 | L113: 0.00 | M113: 0.00 | N113: 0.00 | O113: 0.00 | P113: 0.00
A114: Осуществление государственных полномочий Республики Карелия по предоставлению предусмотренных пунктом 5 части 1 статьи 9 Закона Республики Карелия от 20 декабря 2013 года № 1755-ЗРК "Об образовании" мер социальной поддержки и социального обслуживания обучающимся с ограниченными возможностями здоровья, за исключением обучающихся (воспитываемых) в государственных образовательных организациях Республики Карелия (Субвенции) (КЦ 264272740000210)
A115: Пособия по социальной помощи населению в натуральной форме | B115: 07 | C115: 02 | D115: 0220272740 | E115: 323 | F115: 263000 | G115: 264272740000210 | H115: 0.00 | I115: 200,000.00 | J115: =H115+I115 -> 200,000.00 | K115: 0.00 | M115: =K115+L115 -> 0.00 | N115: 0.00 | P115: =N115+O115 -> 0.00
A116: Итого по КЦ 264272740000210 | H116: =SUM(H115:H115) -> 0.00 | I116: 200,000.00 | J116: 200,000.00 | K116: 0.00 | L116: 0.00 | M116: 0.00 | N116: 0.00 | O116: 0.00 | P116: 0.00
A117: Субсидия на реализацию мероприятий государственной программы Республики Карелия "Совершенствование социальной защиты граждан" в целях организации адресной социальной помощи семьям, имеющим детей (КЦ 254343210000316)
A118: Пособия по социальной помощи населению в натуральной форме | B118: 10 | C118: 03 | D118: 0320243210 | E118: 323 | F118: 263000 | G118: 254343210000316 | H118: 0.00 | J118: =H118+I118 -> 0.00 | K118: 0.00 | M118: =K118+L118 -> 0.00 | N118: 0.00 | P118: =N118+O118 -> 0.00
A119: Итого по КЦ 254343210000316 | H119: =SUM(H118:H118) -> 0.00 | I119: =SUM(I118:I118) -> 0.00 | J119: =SUM(J118:J118) -> 0.00 | K119: =SUM(K118:K118) -> 0.00 | L119: =SUM(L118:L118) -> 0.00 | M119: 0.00 | N119: 0.00 | O119: 0.00 | P119: 0.00
A120: Пособия по социальной помощи населению в натуральной форме | B120: 10 | C120: 03 | D120: 03202S3210 | E120: 323 | F120: 263000 | G120: 1000 | H120: 0.00 | J120: =H120+I120 -> 0.00 | K120: 0.00 | M120: 0.00 | N120: 0.00 | P120: 0.00
A121: Итого по КЦ 1000 | H121: =SUM(H120:H120) -> 0.00 | I121: 0.00 | J121: 0.00 | K121: 0.00 | L121: 0.00 | M121: 0.00 | N121: 0.00 | O121: 0.00 | P121: 0.00
A122: Субсидия местным бюджетам на организацию отдыха детей в каникулярное время (КЦ 254343540000778)
A123: Увеличение стоимости прочих оборотных запасов (материалов) | B123: 07 | C123: 09 | D123: 0220243210 | E123: 244 | F123: 346000 | G123: 2343432000321 | J123: =H123+I123 -> 0.00 | K123: 0.00 | M123: =K123+L123 -> 0.00 | N123: 0.00 | P123: =N123+O123 -> 0.00
A124: Другие расходы | B124: 07 | C124: 09 | D124: 0220243210 | E124: 244 | F124: 226900 | G124: 2343432000321 | J124: 0.00 | K124: 0.00 | M124: 0.00 | N124: 0.00 | P124: 0.00
A125: Транспортные услуги | B125: 07 | C125: 09 | D125: 0220243210 | E125: 244 | F125: 222000 | G125: 2343432000321 | J125: 0.00 | K125: 0.00 | M125: 0.00 | N125: 0.00 | P125: 0.00
A126: Другие расходы | B126: 07 | C126: 09 | D126: 02202S3540 | E126: 244 | F126: 226900 | G126: 254343540000778 | H126: 0.00 | J126: 0.00 | K126: 0.00 | M126: 0.00 | N126: 0.00 | P126: 0.00
A127: Расходы на оплату услуг по страхованию здоровья | B127: 07 | C127: 09 | D127: 02202S3540 | E127: 244 | F127: 227300 | G127: 254343540000778 | H127: 0.00 | J127: 0.00 | K127: 0.00 | M127: 0.00 | N127: 0.00 | P127: 0.00
A128: Увеличение стоимости прочих оборотных запасов (материалов) | B128: 07 | C128: 09 | D128: 02202S3540 | E128: 244 | F128: 346000 | G128: 254343540000778 | H128: 0.00 | J128: 0.00 | K128: 0.00 | M128: 0.00 | N128: 0.00 | P128: 0.00
A129: Итого по КЦ 2343432000321 | H129: =SUM(H123:H128) -> 0.00 | I129: 0.00 | J129: 0.00 | K129: 0.00 | L129: 0.00 | M129: 0.00 | N129: 0.00 | O129: 0.00 | P129: 0.00
A130: Субсидия местным бюджетам на реализацию мероприятий государственной программы Республики Карелия "Совершенствование социальной защиты граждан" (КЦ 2343432000321)
A131: Увеличение стоимости прочих оборотных запасов (материалов) | B131: 07 | C131: 09 | D131: 0220243210 | E131: 244 | F131: 346000 | G131: 2343432000321 | J131: =H131+I131 -> 0.00 | K131: 0.00 | M131: =K131+L131 -> 0.00 | N131: 0.00 | P131: =N131+O131 -> 0.00
A132: Другие расходы | B132: 07 | C132: 09 | D132: 0220243210 | E132: 244 | F132: 226900 | G132: 2343432000321 | J132: 0.00 | K132: 0.00 | M132: 0.00 | N132: 0.00 | P132: 0.00
A133: Транспортные услуги | B133: 07 | C133: 09 | D133: 0220243210 | E133: 244 | F133: 222000 | G133: 2343432000321 | J133: 0.00 | K133: 0.00 | M133: 0.00 | N133: 0.00 | P133: 0.00
A134: Увеличение стоимости прочих оборотных запасов (материалов) | B134: 07 | C134: 09 | D134: 02202S3210 | E134: 244 | F134: 346000 | G134: 1000 | J134: 0.00 | K134: 0.00 | M134: 0.00 | N134: 0.00 | P134: 0.00
A135: Другие расходы | B135: 07 | C135: 09 | D135: 02202S3210 | E135: 244 | F135: 226900 | G135: 1000 | J135: 0.00 | K135: 0.00 | M135: 0.00 | N135: 0.00 | P135: 0.00
A136: Транспортные услуги | B136: 07 | C136: 09 | D136: 02202S3210 | E136: 244 | F136: 222000 | G136: 1000 | J136: 0.00 | K136: 0.00 | M136: 0.00 | N136: 0.00 | P136: 0.00
A137: Итого по КЦ 2343432000321 | H137: =SUM(H131:H136) -> 0.00 | I137: 0.00 | J137: 0.00 | K137: 0.00 | L137: 0.00 | M137: 0.00 | N137: 0.00 | O137: 0.00 | P137: 0.00
A138: Иные межбюджетные трансферты на компенсацию затрат, связанных с освобождением членов семей постоянно проживающих на территории Республики Карелия граждан, призванных военным комиссариатом Республики Карелия на военную службу по мобилизации, а также гражд
A139: Продукты питания | B139: 07 | C139: 01 | D139: 0220175040 | E139: 244 | F139: 342000 | G139: 234475040П0514 | J139: =H139+I139 -> 0.00 | K139: 0.00 | M139: =K139+L139 -> 0.00 | N139: 0.00 | O139: =M139+N139 -> 0.00 | P139: =N139+O139 -> 0.00
A140: Итого по КЦ 234475040П0514 | H140: =SUM(H139) -> 0.00 | I140: 0.00 | J140: 0.00 | K140: 0.00 | L140: 0.00 | M140: 0.00 | N140: 0.00 | O140: 0.00 | P140: 0.00
G141: Всего | H141: =H78+H93+H110+H113+H116+H119+H121+H105+H97+H101+H129 -> 27,812,096.37 | I141: 200,000.00 | J141: 28,012,096.37 | K141: 4,604,820.33 | L141: 0.00 | M141: 4,604,820.33 | N141: 5,048,612.86 | O141: 0.00 | P141: 5,048,612.86
A145: Директор | F145: И.А. Сидорова
B146: (подпись) | F146: (расшифровка подписи)
A148: Гл.бухгалтер МУ "ЦБ № 1" | F148: И.В. Ананьева
A149: (уполномоченное лицо) | B149: (подпись) | F149: (расшифровка подписи)
A151: Главный экономист ПЭО МУ "ЦБ № 1" | F151: Е.Л. Герасимова
A152: (исполнитель) | B152: (подпись) | F152: (расшифровка подписи)
A154: =L18 -> "26" января 2026 г.

Sheet 27.01
P1: Приложение № 2
P2: к Порядку составления, утверждения
P3: и ведения бюджетных смет Администрации
P4: Прионежского муниципального района
P5: и казенных учреждений, находящихся
P6: в ведении Администрации Прионежского
P7: муниципального района
P8: от 09 августа 2022 № 831
L10: УТВЕРЖДАЮ
L11: Глава Администрации Прионежского муниципального района
L12: (наименование должности лица, согласующего бюджетную смету)
L13: Администрация Прионежского муниципального района
L14: (наименование главного распорядителя (распорядителя) бюджетных средств; учреждения)
L16: Г. Н. Шемет
L17: (подпись) | N17: (расшифровка подписи)
L18: "27" января 2026 г.
A20: ИЗМЕНЕНИЕ К БЮДЖЕТНОЙ СМЕТЕ НА 2026 ФИНАНСОВЫЙ ГОД И ПЛАНОВЫЙ ПЕРИОД 2027 И 2028 ГОДОВ
B22: № 015/00402/007, № 015/00402/025 от | H22: =L18 -> "27" января 2026 г.
A23: (№, дата, справки об изменении ЛБО) | P23: КОДЫ
O24: Форма по ОКУД | P24: 0501012
O25: Дата | P25: =L18 -> "27" января 2026 г.
O26: по ОКПО | P26: 51326281
A27: Получатель бюджетных средств | B27: Муниципальное общеобразовательное учреждение "Средняя общеобразовательная школа № 44"
A28: Распорядитель бюджетных средств | B28: Администрация Прионежского муниципального района Республики Карелия
A29: Главный распорядитель бюджетных средств | B29: Администрация Прионежского муниципального района Республики Карелия | O29: Глава по БК | P29: 015
A30: Наименование бюджета | B30: Бюджет Прионежского муниципального района | O30: по ОКТМО | P30: 86636410
A31: Единица измерения: | B31: руб. | O31: по ОКЕЙ | P31: 383
A33: Наименование показателя (детализация кода бюджетной классификации) | B33: РЗ | C33: ПР | D33: ЦСР | E33: Вид расхода | F33: Детализация | G33: Вид целевых средств | H33: Сумма на текущий 2026 год | K33: Сумма на первый год планового периода | N33: Сумма на второй год планового периода
H34: на 26.01.2026 г | I34: изменения(+;-) | J34: Итого | K34: =H34 -> на 26.01.2026 г | L34: изменения(+;-) | M34: Итого | N34: =H34 -> на 26.01.2026 г | O34: изменения(+;-) | P34: Итого
A35: 1 | B35: =SUM(A35+1) -> 2 | C35: 3 | D35: 4 | E35: 5 | F35: 6 | G35: 7 | H35: 8 | I35: 9 | J35: 10 | K35: 11 | L35: 12 | M35: 13 | N35: 14 | O35: 15 | P35: 16
A36: Средства местного бюджета (КЦ 1000) 0702
A37: Заработная плата | B37: 07 | C37: 02 | D37: 0220270210 | E37: 111 | F37: 211000 | G37: 1000 | H37: 537,980.16 | J37: =H37+I37 -> 537,980.16 | K37: 537,980.16 | M37: =K37+L37 -> 537,980.16 | N37: 537,980.16 | P37: =N37+O37 -> 537,980.16
A38: Социальные пособия и компенсации персоналу в денежной форме (пособие за первые три дня временной нетрудоспособности за счет средств работодателя) | B38: 07 | C38: 02 | D38: 0220270210 | E38: 111 | F38: 266100 | G38: 1000 | H38: 0.00 | J38: 0.00 | K38: 0.00 | M38: 0.00 | N38: 0.00 | P38: 0.00
A39: Расходы по оплате проезда к месту отпуска и обратно отдельным категориям лиц (для лиц, работающих в районах Крайнего Севера и приравненных к ним местностям, и членов их семей) | B39: 07 | C39: 02 | D39: 0220270210 | E39: 112 | F39: 214000 | G39: 1000 | H39: 30,000.00 | J39: 30,000.00 | K39: 30,000.00 | M39: 30,000.00 | N39: 30,000.00 | P39: 30,000.00
A40: Начисления на выплаты по оплате труда | B40: 07 | C40: 02 | D40: 0220270210 | E40: 119 | F40: 213000 | G40: 1000 | H40: 162,470.01 | J40: 162,470.01 | K40: 162,470.01 | M40: 162,470.01 | N40: 162,470.01 | P40: 162,470.01
A41: Услуги связи (телефон) | B41: 07 | C41: 02 | D41: 0220270210 | E41: 244 | F41: 221100 | G41: 1000 | H41: 8,244.91 | J41: 8,244.91 | K41: 10,306.14 | M41: 10,306.14 | N41: 12,882.68 | P41: 12,882.68
A42: Услуги связи (почта) | B42: 07 | C42: 02 | D42: 0220270210 | E42: 244 | F42: 221300 | G42: 1000 | H42: 0.00 | J42: 0.00 | K42: 0.00 | M42: 0.00 | N42: 0.00 | P42: 0.00
A43: Транспортные услуги | B43: 07 | C43: 02 | D43: 0220270210 | E43: 244 | F43: 222000 | G43: 1000 | H43: 18,216.90 | J43: =H43+I43 -> 18,216.90 | K43: 22,771.13 | M43: =K43+L43 -> 22,771.13 | N43: 28,463.91 | P43: =N43+O43 -> 28,463.91
A44: Обращение с твердыми коммунальными отходами (вывоз ТБО) | B44: 07 | C44: 02 | D44: 0220270210 | E44: 244 | F44: 223500 | G44: 1000 | H44: 32,551.14 | J44: 32,551.14 | K44: 36,620.03 | M44: 36,620.03 | N44: 41,197.54 | P44: 41,197.54
A45: Техническое обслуживание внутренних сетей отопления и горячего водоснабжения | B45: 07 | C45: 02 | D45: 0220270210 | E45: 244 | F45: 225200 | G45: 1000 | H45: 0.00 | J45: 0.00 | K45: 0.00 | M45: 0.00 | N45: 0.00 | P45: 0.00
A46: Санитарная и противопожарная (дезинфекция, дезинсекция, дератизация, газация, огнезащитная) обработка помещений | B46: 07 | C46: 02 | D46: 0220270210 | E46: 244 | F46: 225600 | G46: 1000 | H46: 31,712.06 | J46: 31,712.06 | K46: 31,712.06 | M46: 31,712.06 | N46: 31,712.06 | P46: 31,712.06
A47: Содержание, обслуживание помещений и сетей инженерно-технического обеспечения | B47: 07 | C47: 02 | D47: 0220270210 | E47: 244 | F47: 225700 | G47: 1000 | H47: 142,500.00 | J47: 142,500.00 | K47: 142,500.00 | M47: 142,500.00 | N47: 142,500.00 | P47: 142,500.00
A48: Текущий ремонт помещений и сетей инженерно-технического обеспечения | B48: 07 | C48: 02 | D48: 0220270210 | E48: 244 | F48: 225800 | G48: 1000 | H48: 0.00 | J48: 0.00 | K48: 0.00 | M48: 0.00 | N48: 0.00 | P48: 0.00
A49: Другие расходы | B49: 07 | C49: 02 | D49: 0220270210 | E49: 244 | F49: 225900 | G49: 1000 | H49: 110,000.00 | J49: 110,000.00 | K49: 100,000.00 | M49: 100,000.00 | N49: 100,000.00 | P49: 100,000.00
A50: Аттестация | B50: 07 | C50: 02 | D50: 0220270210 | E50: 244 | F50: 226200 | G50: 1000 | H50: 0.00 | J50: =H50+I50 -> 0.00 | K50: 0.00 | M50: =K50+L50 -> 0.00 | N50: 0.00 | P50: =N50+O50 -> 0.00
A51: Охрана ведомственная, вневедомственная, пожарная | B51: 07 | C51: 02 | D51: 0220270210 | E51: 244 | F51: 226400 | G51: 1000 | H51: 92,240.85 | J51: 92,240.85 | K51: 115,301.06 | M51: 115,301.06 | N51: 144,126.33 | P51: 144,126.33
A52: Мероприятия по переподготовке и повышению квалификации кадров | B52: 07 | C52: 02 | D52: 0220270210 | E52: 244 | F52: 226700 | G52: 1000 | H52: 0.00 | J52: 0.00 | K52: 0.00 | M52: 0.00 | N52: 0.00 | P52: 0.00
A53: Медицинский осмотр работников учреждения, за исключением водителей трансртных средств | B53: 07 | C53: 02 | D53: 0220270210 | E53: 244 | F53: 226800 | G53: 1000 | H53: 0.00 | J53: 0.00 | K53: 0.00 | M53: 0.00 | N53: 0.00 | P53: 0.00
A54: Другие расходы | B54: 07 | C54: 02 | D54: 0220270210 | E54: 244 | F54: 226900 | G54: 1000 | H54: 100,000.00 | J54: 100,000.00 | K54: 100,000.00 | M54: 100,000.00 | N54: 100,000.00 | P54: 100,000.00
A55: Приобретение предметов длительного пользования (оборудование, мебель, компьютерная техника и т.п) стоимостью свыше 3000 рублей | B55: 07 | C55: 02 | D55: 0220270210 | E55: 244 | F55: 310100 | G55: 1000 | H55: 0.00 | J55: 0.00 | K55: 0.00 | M55: 0.00 | N55: 0.00 | P55: 0.00
A56: Другие расходы стоимостью до 3000,00 рублей | B56: 07 | C56: 02 | D56: 0220270210 | E56: 244 | F56: 310900 | G56: 1000 | H56: 0.00 | J56: 0.00 | K56: 0.00 | M56: 0.00 | N56: 0.00 | P56: 0.00
A57: Увеличение стоимости лекарственных препаратов и материалов, применяемых в медицинских целях | B57: 07 | C57: 02 | D57: 0220270210 | E57: 244 | F57: 341000 | G57: 1000 | H57: 12,375.00 | J57: =H57+I57 -> 12,375.00 | K57: 15,468.75 | M57: =K57+L57 -> 15,468.75 | N57: 19,335.94 | P57: =N57+O57 -> 19,335.94
A58: Приобретение строительных материалов | B58: 07 | C58: 02 | D58: 0220270210 | E58: 244 | F58: 344000 | G58: 1000 | H58: 0.00 | J58: 0.00 | K58: 0.00 | M58: 0.00 | N58: 0.00 | P58: 0.00
A59: Мягкий инвентарь | B59: 07 | C59: 02 | D59: 0220270210 | E59: 244 | F59: 345000 | G59: 1000 | H59: 14,200.00 | J59: =H59+I59 -> 14,200.00 | K59: 15,760.00 | M59: =K59+L59 -> 15,760.00 | N59: 18,064.00 | P59: =N59+O59 -> 18,064.00
A60: Увеличение стоимости прочих оборотных запасов (материалов) | B60: 07 | C60: 02 | D60: 0220270210 | E60: 244 | F60: 346000 | G60: 1000 | H60: 80,000.00 | J60: 80,000.00 | K60: 80,000.00 | M60: 80,000.00 | N60: 80,000.00 | P60: 80,000.00
A61: Увеличение стоимости прочих оборотных запасов однократного применения | B61: 07 | C61: 02 | D61: 0220270210 | E61: 244 | F61: 349100 | G61: 1000 | H61: 0.00 | J61: 0.00 | K61: 0.00 | M61: 0.00 | N61: 0.00 | P61: 0.00
A62: Отопление, горячее водоснабжение и газоснабжение | B62: 07 | C62: 02 | D62: 0220270210 | E62: 247 | F62: 223100 | G62: 1000 | H62: 1,994,773.44 | J62: 1,994,773.44 | K62: 2,244,120.12 | M62: 2,244,120.12 | N62: 2,524,635.14 | P62: 2,524,635.14
A63: Электроэнергия | B63: 07 | C63: 02 | D63: 0220270210 | E63: 247 | F63: 223200 | G63: 1000 | H63: 735,965.00 | J63: 735,965.00 | K63: 827,960.63 | M63: 827,960.63 | N63: 931,455.70 | P63: 931,455.70
A64: Холодное водоснабжение | B64: 07 | C64: 02 | D64: 0220270210 | E64: 247 | F64: 223300 | G64: 1000 | H64: 54,731.04 | J64: 54,731.04 | K64: 60,410.18 | M64: 60,410.18 | N64: 67,961.45 | P64: 67,961.45
A65: Водоотведение | B65: 07 | C65: 02 | D65: 0220270210 | E65: 247 | F65: 223400 | G65: 1000 | H65: 30,169.62 | J65: 30,169.62 | K65: 35,103.06 | M65: 35,103.06 | N65: 39,490.94 | P65: 39,490.94
A66: Пособия по социальной помощи населению в натуральной форме | B66: 07 | C66: 02 | D66: 0220270210 | E66: 323 | F66: 263000 | G66: 1000 | H66: 0.00 | J66: =H66+I66 -> 0.00 | K66: 0.00 | M66: 0.00 | N66: 0.00 | P66: 0.00
A67: Налог на имущство | B67: 07 | C67: 02 | D67: 0220270210 | E67: 851 | F67: 291200 | G67: 1000 | H67: 8,876.00 | J67: 8,876.00 | K67: 8,876.00 | M67: 8,876.00 | N67: 8,876.00 | P67: 8,876.00
A68: Земельный налог, в том числе в период строительства объекта | B68: 07 | C68: 02 | D68: 0220270210 | E68: 851 | F68: 291300 | G68: 1000 | H68: 27,461.00 | J68: 27,461.00 | K68: 27,461.00 | M68: 27,461.00 | N68: 27,461.00 | P68: 27,461.00
A69: Штрафы за нарушение законодательства о налогах и сборах, законодательства о страховых взносах | B69: 07 | C69: 02 | D69: 0220270210 | E69: 853 | F69: 292000 | G69: 1000 | H69: 0.00 | J69: =H69+I69 -> 0.00 | K69: 0.00 | M69: =K69+L69 -> 0.00 | N69: 0.00 | P69: =N69+O69 -> 0.00
A70: Иные выплаты текущего характера физическим лицам (возмещение убытков, вреда и судебных издержек) | B70: 07 | C70: 02 | D70: 0220270210 | E70: 853 | F70: 296100 | G70: 1000 | H70: 0.00 | J70: =H70+I70 -> 0.00 | K70: 0.00 | M70: =K70+L70 -> 0.00 | N70: 0.00 | P70: =N70+O70 -> 0.00
A71: Транспортный налог | B71: 07 | C71: 02 | D71: 0220270210 | E71: 852 | F71: 291400 | G71: 1000 | H71: 0.00 | J71: 0.00 | K71: 0.00 | M71: 0.00 | N71: 0.00 | P71: 0.00
A72: Штрафы за нарушение законодательства о закупках и нарушенияе условий контракта (договоров) | B72: 07 | C72: 02 | D72: 0220270210 | E72: 831 | F72: 293000 | G72: 1000 | H72: 0.00 | J72: 0.00 | K72: 0.00 | M72: 0.00 | N72: 0.00 | P72: 0.00
A73: Другие экономические санкции | B73: 07 | C73: 02 | D73: 0220270210 | E73: 853 | F73: 295000 | G73: 1000 | H73: 0.00 | J73: 0.00 | K73: 0.00 | M73: 0.00 | N73: 0.00 | P73: 0.00
A74: Иные выплаты текущего характера организациям (возмещение убытков, вред и судебных издержек) | B74: 07 | C74: 02 | D74: 0220270210 | E74: 851 | F74: 297100 | G74: 1000 | H74: 0.00 | J74: 0.00 | K74: 0.00 | M74: 0.00 | N74: 0.00 | P74: 0.00
A75: Другие расходы | B75: 07 | C75: 02 | D75: 0400072910 | E75: 244 | F75: 226900 | G75: 1000 | H75: 0.00 | J75: 0.00 | K75: 0.00 | M75: 0.00 | N75: 0.00 | P75: 0.00
A76: Заработная плата | B76: 07 | C76: 02 | D76: 0920070260 | E76: 111 | F76: 211000 | G76: 1000 | H76: 0.00 | J76: 0.00 | K76: 0.00 | M76: 0.00 | N76: 0.00 | P76: 0.00
A77: Начисления на выплаты по оплате труда | B77: 07 | C77: 02 | D77: 0920070260 | E77: 119 | F77: 213000 | G77: 1000 | H77: 0.00 | J77: 0.00 | K77: 0.00 | M77: 0.00 | N77: 0.00 | P77: 0.00
A78: Итого по КЦ 1000 | H78: =SUM(H37:H77) -> 4,224,467.13 | I78: 0.00 | J78: 4,224,467.13 | K78: 4,604,820.33 | L78: 0.00 | M78: 4,604,820.33 | N78: 5,048,612.86 | O78: 0.00 | P78: 5,048,612.86
A79: Обеспечение государственных гарантий реализации прав на получение общедоступного и бесплатного дошкольного образования в муниципальных дошкольных образовательных организациях, общедоступного и бесплатного дошкольного, начального общего, основного общего, среднего общего образования в муниципальных общеобразовательных организациях, обеспечение дополнительного образования детей в муниципальных общеобразовательных организациях (Субвенции) (КЦ 264272750000219)
A80: Заработная плата | B80: 07 | C80: 02 | D80: 0220272750 | E80: 111 | F80: 211000 | G80: 264272750000219 | H80: 18,116,458.71 | J80: =H80+I80 -> 18,116,458.71 | K80: 0.00 | M80: =K80+L80 -> 0.00 | N80: 0.00 | P80: =N80+O80 -> 0.00
A81: Социальные пособия и компенсации персоналу в денежной форме (пособие за первые три дня временной нетрудоспособности за счет средств работодателя) | B81: 07 | C81: 02 | D81: 0220272751 | E81: 111 | F81: 266100 | G81: 264272750000219 | H81: 0.00 | J81: 0.00 | K81: 0.00 | M81: 0.00 | N81: 0.00 | P81: 0.00
A82: Начисления на выплаты по оплате труда | B82: 07 | C82: 02 | D82: 0220272750 | E82: 119 | F82: 213000 | G82: 264272750000219 | H82: 5,471,170.53 | J82: 5,471,170.53 | K82: 0.00 | M82: 0.00 | N82: 0.00 | P82: 0.00
A83: Услуги связи (интернет) | B83: 07 | C83: 02 | D83: 0220272753 | E83: 244 | F83: 221200 | G83: 264272750000219 | H83: 0.00 | J83: =H83+I83 -> 0.00 | K83: 0.00 | M83: =K83+L83 -> 0.00 | N83: 0.00 | P83: =N83+O83 -> 0.00
A84: Транспортные услуги | B84: 07 | C84: 02 | D84: 0220272754 | E84: 244 | F84: 222000 | G84: 264272750000219 | H84: 0.00 | J84: 0.00 | K84: 0.00 | M84: 0.00 | N84: 0.00 | P84: 0.00
A85: Другие расходы | B85: 07 | C85: 02 | D85: 0220272755 | E85: 244 | F85: 226900 | G85: 264272750000219 | H85: 0.00 | J85: =H85+I85 -> 0.00 | K85: 0.00 | M85: =K85+L85 -> 0.00 | N85: 0.00 | P85: =N85+O85 -> 0.00
A86: Приобретение предметов длительного пользования (оборудование, мебель, компьютерная техника и т.п.) стоимостью свыше 3000,00 руб. | B86: 07 | C86: 02 | D86: 0220272756 | E86: 244 | F86: 310100 | G86: 264272750000219 | H86: 0.00 | J86: =H86+I86 -> 0.00 | K86: 0.00 | M86: =K86+L86 -> 0.00 | N86: 0.00 | P86: =N86+O86 -> 0.00
A87: Комплектование библиотечного фонда | B87: 07 | C87: 02 | D87: 0220272757 | E87: 244 | F87: 310200 | G87: 264272750000219 | H87: 0.00 | J87: 0.00 | K87: 0.00 | M87: 0.00 | N87: 0.00 | P87: 0.00
A88: Другие расходы стоимостью до 3000,00 рублей | B88: 07 | C88: 02 | D88: 0220272758 | E88: 244 | F88: 310900 | G88: 264272750000219 | H88: 0.00 | J88: 0.00 | K88: 0.00 | M88: 0.00 | N88: 0.00 | P88: 0.00
A89: Мягкий инвентарь | B89: 07 | C89: 02 | D89: 0220272759 | E89: 244 | F89: 345000 | G89: 264272750000219 | H89: 0.00 | J89: 0.00 | M89: 0.00 | P89: 0.00
A90: Увеличение стоимости прочих оборотных запасов (материалов) | B90: 07 | C90: 02 | D90: 0220272760 | E90: 244 | F90: 346000 | G90: 264272750000219 | H90: 0.00 | J90: 0.00 | K90: 0.00 | M90: 0.00 | N90: 0.00 | P90: 0.00
A91: Увеличение стоимости прочих материальных запасов однократного применения | B91: 07 | C91: 02 | D91: 0220272761 | E91: 244 | F91: 349100 | G91: 264272750000219 | H91: 0.00 | J91: 0.00 | K91: 0.00 | M91: 0.00 | N91: 0.00 | P91: 0.00
A92: Мероприятия по переподготовке и повышению квалификации кадров | B92: 07 | C92: 05 | D92: 0220272762 | E92: 244 | F92: 226700 | G92: 264272750000219 | H92: 0.00 | J92: 0.00 | K92: 0.00 | M92: 0.00 | N92: 0.00 | P92: 0.00
A93: Итого по КЦ 264272750000219 | H93: =SUM(H80:H92) -> 23,587,629.24 | I93: 0.00 | J93: 23,587,629.24 | K93: 0.00 | L93: 0.00 | M93: 0.00 | N93: 0.00 | O93: 0.00 | P93: 0.00
A94: Проведение мероприятий по обеспечению деятельности советников директора по воспитанию и взаимодействию с детскими общественными объединениями в общеобразовательных организациях (Субсидия) (КЦ 26-51790-00000-00000)
A95: Заработная плата | B95: 07 | C95: 02 | D95: 022Ю651790 | E95: 111 | F95: 211000 | G95: 26-51790-00000-00000 | H95: 0.00 | I95: 268,223.28 | J95: =H95+I95 -> 268,223.28 | K95: 0.00 | M95: =K95+L95 -> 0.00 | N95: 0.00 | P95: =N95+O95 -> 0.00
A96: Начисления на выплаты по оплате труда | B96: 07 | C96: 02 | D96: 022Ю651790 | E96: 119 | F96: 213000 | G96: 26-51790-00000-00000 | H96: 0.00 | I96: 81,003.43 | J96: =H96+I96 -> 81,003.43 | K96: 0.00 | M96: =K96+L96 -> 0.00 | N96: 0.00 | P96: =N96+O96 -> 0.00
A97: Итого по КЦ 26-51790-00000-00000 | H97: =SUM(H95:H96) -> 0.00 | I97: 349,226.71 | J97: 349,226.71 | K97: 0.00 | L97: 0.00 | M97: 0.00 | N97: 0.00 | O97: 0.00 | P97: 0.00
A98: Иные межбюджетные трансферты на обеспечение выплат ежемесячного денежного вознаграждения советникам директоров по воспитанию и взаимодействию с детскими общественными объединениями государственных общеобразовательных организаций, профессиональных образовательных организаций, муниципальных общеобразовательных организаций и профессиональных образовательных организаций (КЦ 2550500X298320000000)
A99: Заработная плата | B99: 07 | C99: 02 | D99: 022Ю650500 | E99: 111 | F99: 211000 | G99: 2550500X298320000000 | H99: 0.00 | J99: =H99+I99 -> 0.00 | K99: 0.00 | M99: =K99+L99 -> 0.00 | N99: 0.00 | P99: =N99+O99 -> 0.00
A100: Начисления на выплаты по оплате труда | B100: 07 | C100: 02 | D100: 022Ю650500 | E100: 119 | F100: 213000 | G100: 2550500X298320000000 | H100: 0.00 | J100: =H100+I100 -> 0.00 | K100: 0.00 | M100: =K100+L100 -> 0.00 | N100: 0.00 | P100: =N100+O100 -> 0.00
A101: Итого по КЦ 2550500X298320000000 | H101: =SUM(H99:H100) -> 0.00 | I101: 0.00 | J101: 0.00 | K101: 0.00 | L101: 0.00 | M101: 0.00 | N101: 0.00 | O101: 0.00 | P101: 0.00
A102: Иные межбюджетные трансферты на ежемесячное денежное вознаграждение за классное руководство педагогическим работникам государственных и муниципальных образовательных организаций, реализующих образовательные программы начального общего образования, образовательные программы основного общего образования, образовательные программы среднего общего образования (КЦ 2553030X298570000000)
A103: Заработная плата | B103: 07 | C103: 02 | D103: 022Ю653030 | E103: 111 | F103: 211000 | G103: 2553030X298570000000 | H103: 0.00 | J103: =H103+I103 -> 0.00 | K103: 0.00 | M103: =K103+L103 -> 0.00 | N103: 0.00 | P103: =N103+O103 -> 0.00
A104: Начисления на выплаты по оплате труда | B104: 07 | C104: 02 | D104: 022Ю653030 | E104: 119 | F104: 213000 | G104: 2553030X298570000000 | H104: 0.00 | J104: =H104+I104 -> 0.00 | K104: 0.00 | M104: =K104+L104 -> 0.00 | N104: 0.00 | P104: =N104+O104 -> 0.00
A105: Итого по КЦ 2553030X298570000000 | H105: =SUM(H103:H104) -> 0.00 | I105: 0.00 | J105: 0.00 | K105: 0.00 | L105: 0.00 | M105: 0.00 | N105: 0.00 | O105: 0.00 | P105: 0.00
A106: Субвенции на осуществление государственных полномочий РеспубликиКарелия по представлению предусмотренных пунктом 5 части 1 статьи 9 Закона Республики Карелия от 20 декабря 2013 гоа № 1755_ЗРК "Об образовании" мер социальной поддержки и социального обслуживания (КЦ 254242100000210)
A107: Увеличение стоимости прочих оборотных запасов (материалов) | B107: 07 | C107: 02 | D107: 0220242100 | E107: 244 | F107: 346000 | G107: 24424210000210 | J107: =H107+I107 -> 0.00 | K107: 0.00 | M107: =K107+L107 -> 0.00 | N107: 0.00 | P107: =N107+O107 -> 0.00
A108: Пособия по социальной помощи населению в натуральной форме | B108: 07 | C108: 02 | D108: 0220242100 | E108: 323 | F108: 263000 | G108: 254242100000210 | H108: 0.00 | J108: =H108+I108 -> 0.00 | K108: 0.00 | M108: =K108+L108 -> 0.00 | N108: 0.00 | P108: =N108+O108 -> 0.00
A109: Увеличение стоимости прочих оборотных запасов (материалов) | B109: 07 | C109: 02 | D109: 0220242100 | E109: 323 | F109: 346000 | G109: 23424210000210 | J109: =H109+I109 -> 0.00 | K109: 0.00 | M109: =K109+L109 -> 0.00 | N109: 0.00 | P109: =N109+O109 -> 0.00
A110: Итого по КЦ 254242100000210 | H110: =SUM(H107:H109) -> 0.00 | I110: 0.00 | J110: 0.00 | K110: 0.00 | L110: 0.00 | M110: 0.00 | N110: 0.00 | O110: 0.00 | P110: 0.00
A111: Субвенции на осуществление государственных полномочий Республики Карелия по выплате компенсации платы, взимаемой с родителей (законных представителей) за присмотр и уход за детьми, осваивающими образовательные программы дошкольного образования в организа
A112: Пособия по социальной помощи населению в натуральной форме | B112: 10 | C112: 04 | D112: 0220142030 | E112: 323 | F112: 263000 | G112: 23424203000203 | J112: =H112+I112 -> 0.00 | K112: 0.00 | M112: =K112+L112 -> 0.00 | N112: 0.00 | P112: =N112+O112 -> 0.00
A113: Итого по КЦ 23424203000203 | H113: =SUM(H112) -> 0.00 | I113: 0.00 | J113: 0.00 | K113: 0.00 | L113: 0.00 | M113: 0.00 | N113: 0.00 | O113: 0.00 | P113: 0.00
A114: Осуществление государственных полномочий Республики Карелия по предоставлению предусмотренных пунктом 5 части 1 статьи 9 Закона Республики Карелия от 20 декабря 2013 года № 1755-ЗРК "Об образовании" мер социальной поддержки и социального обслуживания обучающимся с ограниченными возможностями здоровья, за исключением обучающихся (воспитываемых) в государственных образовательных организациях Республики Карелия (Субвенции) (КЦ 264272740000210)
A115: Пособия по социальной помощи населению в натуральной форме | B115: 07 | C115: 02 | D115: 0220272740 | E115: 323 | F115: 263000 | G115: 264272740000210 | H115: 200,000.00 | J115: =H115+I115 -> 200,000.00 | K115: 0.00 | M115: =K115+L115 -> 0.00 | N115: 0.00 | P115: =N115+O115 -> 0.00
A116: Итого по КЦ 264272740000210 | H116: =SUM(H115:H115) -> 200,000.00 | I116: 0.00 | J116: 200,000.00 | K116: 0.00 | L116: 0.00 | M116: 0.00 | N116: 0.00 | O116: 0.00 | P116: 0.00
A117: Реализация мероприятий по организации бесплатного горячего питания обучающихся, получающих начальное общее образование в государственных и муниципальных образовательных организациях (Субсидии) (КЦ 26-53040-00000-00000)
A118: Другие расходы | B118: 07 | C118: 02 | D118: 02202L3040 | E118: 244 | F118: 226900 | G118: 26-53040-00000-00000 | H118: 0.00 | I118: 787,118.00 | J118: =H118+I118 -> 787,118.00 | K118: 0.00 | M118: =K118+L118 -> 0.00 | N118: 0.00 | P118: =N118+O118 -> 0.00
A119: Итого по КЦ 26-53040-00000-00000 | H119: =SUM(H118:H118) -> 0.00 | I119: 787,118.00 | J119: 787,118.00 | K119: 0.00 | L119: 0.00 | M119: 0.00 | N119: 0.00 | O119: 0.00 | P119: 0.00
A120: Субсидия на реализацию мероприятий государственной программы Республики Карелия "Совершенствование социальной защиты граждан" в целях организации адресной социальной помощи семьям, имеющим детей (КЦ 254343210000316)
A121: Пособия по социальной помощи населению в натуральной форме | B121: 10 | C121: 03 | D121: 0320243210 | E121: 323 | F121: 263000 | G121: 254343210000316 | H121: 0.00 | J121: =H121+I121 -> 0.00 | K121: 0.00 | M121: =K121+L121 -> 0.00 | N121: 0.00 | P121: =N121+O121 -> 0.00
A122: Итого по КЦ 254343210000316 | H122: =SUM(H121:H121) -> 0.00 | I122: =SUM(I121:I121) -> 0.00 | J122: =SUM(J121:J121) -> 0.00 | K122: =SUM(K121:K121) -> 0.00 | L122: =SUM(L121:L121) -> 0.00 | M122: 0.00 | N122: 0.00 | O122: 0.00 | P122: 0.00
A123: Пособия по социальной помощи населению в натуральной форме | B123: 10 | C123: 03 | D123: 03202S3210 | E123: 323 | F123: 263000 | G123: 1000 | H123: 0.00 | J123: =H123+I123 -> 0.00 | K123: 0.00 | M123: 0.00 | N123: 0.00 | P123: 0.00
A124: Итого по КЦ 1000 | H124: =SUM(H123:H123) -> 0.00 | I124: 0.00 | J124: 0.00 | K124: 0.00 | L124: 0.00 | M124: 0.00 | N124: 0.00 | O124: 0.00 | P124: 0.00
A125: Субсидия местным бюджетам на организацию отдыха детей в каникулярное время (КЦ 254343540000778)
A126: Увеличение стоимости прочих оборотных запасов (материалов) | B126: 07 | C126: 09 | D126: 0220243210 | E126: 244 | F126: 346000 | G126: 2343432000321 | J126: =H126+I126 -> 0.00 | K126: 0.00 | M126: =K126+L126 -> 0.00 | N126: 0.00 | P126: =N126+O126 -> 0.00
A127: Другие расходы | B127: 07 | C127: 09 | D127: 0220243210 | E127: 244 | F127: 226900 | G127: 2343432000321 | J127: 0.00 | K127: 0.00 | M127: 0.00 | N127: 0.00 | P127: 0.00
A128: Транспортные услуги | B128: 07 | C128: 09 | D128: 0220243210 | E128: 244 | F128: 222000 | G128: 2343432000321 | J128: 0.00 | K128: 0.00 | M128: 0.00 | N128: 0.00 | P128: 0.00
A129: Другие расходы | B129: 07 | C129: 09 | D129: 02202S3540 | E129: 244 | F129: 226900 | G129: 254343540000778 | H129: 0.00 | J129: 0.00 | K129: 0.00 | M129: 0.00 | N129: 0.00 | P129: 0.00
A130: Расходы на оплату услуг по страхованию здоровья | B130: 07 | C130: 09 | D130: 02202S3540 | E130: 244 | F130: 227300 | G130: 254343540000778 | H130: 0.00 | J130: 0.00 | K130: 0.00 | M130: 0.00 | N130: 0.00 | P130: 0.00
A131: Увеличение стоимости прочих оборотных запасов (материалов) | B131: 07 | C131: 09 | D131: 02202S3540 | E131: 244 | F131: 346000 | G131: 254343540000778 | H131: 0.00 | J131: 0.00 | K131: 0.00 | M131: 0.00 | N131: 0.00 | P131: 0.00
A132: Итого по КЦ 2343432000321 | H132: =SUM(H126:H131) -> 0.00 | I132: 0.00 | J132: 0.00 | K132: 0.00 | L132: 0.00 | M132: 0.00 | N132: 0.00 | O132: 0.00 | P132: 0.00
A133: Субсидия местным бюджетам на реализацию мероприятий государственной программы Республики Карелия "Совершенствование социальной защиты граждан" (КЦ 2343432000321)
A134: Увеличение стоимости прочих оборотных запасов (материалов) | B134: 07 | C134: 09 | D134: 0220243210 | E134: 244 | F134: 346000 | G134: 2343432000321 | J134: =H134+I134 -> 0.00 | K134: 0.00 | M134: =K134+L134 -> 0.00 | N134: 0.00 | P134: =N134+O134 -> 0.00
A135: Другие расходы | B135: 07 | C135: 09 | D135: 0220243210 | E135: 244 | F135: 226900 | G135: 2343432000321 | J135: 0.00 | K135: 0.00 | M135: 0.00 | N135: 0.00 | P135: 0.00
A136: Транспортные услуги | B136: 07 | C136: 09 | D136: 0220243210 | E136: 244 | F136: 222000 | G136: 2343432000321 | J136: 0.00 | K136: 0.00 | M136: 0.00 | N136: 0.00 | P136: 0.00
A137: Увеличение стоимости прочих оборотных запасов (материалов) | B137: 07 | C137: 09 | D137: 02202S3210 | E137: 244 | F137: 346000 | G137: 1000 | J137: 0.00 | K137: 0.00 | M137: 0.00 | N137: 0.00 | P137: 0.00
A138: Другие расходы | B138: 07 | C138: 09 | D138: 02202S3210 | E138: 244 | F138: 226900 | G138: 1000 | J138: 0.00 | K138: 0.00 | M138: 0.00 | N138: 0.00 | P138: 0.00
A139: Транспортные услуги | B139: 07 | C139: 09 | D139: 02202S3210 | E139: 244 | F139: 222000 | G139: 1000 | J139: 0.00 | K139: 0.00 | M139: 0.00 | N139: 0.00 | P139: 0.00
A140: Итого по КЦ 2343432000321 | H140: =SUM(H134:H139) -> 0.00 | I140: 0.00 | J140: 0.00 | K140: 0.00 | L140: 0.00 | M140: 0.00 | N140: 0.00 | O140: 0.00 | P140: 0.00
A141: Иные межбюджетные трансферты на компенсацию затрат, связанных с освобождением членов семей постоянно проживающих на территории Республики Карелия граждан, призванных военным комиссариатом Республики Карелия на военную службу по мобилизации, а также гражд
A142: Продукты питания | B142: 07 | C142: 01 | D142: 0220175040 | E142: 244 | F142: 342000 | G142: 234475040П0514 | J142: =H142+I142 -> 0.00 | K142: 0.00 | M142: =K142+L142 -> 0.00 | N142: 0.00 | O142: =M142+N142 -> 0.00 | P142: =N142+O142 -> 0.00
A143: Итого по КЦ 234475040П0514 | H143: =SUM(H142) -> 0.00 | I143: 0.00 | J143: 0.00 | K143: 0.00 | L143: 0.00 | M143: 0.00 | N143: 0.00 | O143: 0.00 | P143: 0.00
G144: Всего | H144: =H78+H93+H110+H113+H116+H122+H124+H105+H97+H101+H132+H119 -> 28,012,096.37 | I144: =I78+I93+I110+I113+I116+I122+I124+I105+I97+I101+I132+I119 -> 1,136,344.71 | J144: =J78+J93+J110+J113+J116+J122+J124+J105+J97+J101+J132+J119 -> 29,148,441.08 | K144: =K78+K93+K110+K113+K116+K122+K124+K105+K97+K101+K132+K119 -> 4,604,820.33 | L144: 0.00 | M144: 4,604,820.33 | N144: 5,048,612.86 | O144: 0.00 | P144: 5,048,612.86
A148: Директор | F148: И.А. Сидорова
B149: (подпись) | F149: (расшифровка подписи)
A151: Гл.бухгалтер МУ "ЦБ № 1" | F151: И.В. Ананьева
A152: (уполномоченное лицо) | B152: (подпись) | F152: (расшифровка подписи)
A154: Главный экономист ПЭО МУ "ЦБ № 1" | F154: Е.Л. Герасимова
A155: (исполнитель) | B155: (подпись) | F155: (расшифровка подписи)
A157: =L18 -> "27" января 2026 г.

Sheet 02.02
P1: Приложение № 2
P2: к Порядку составления, утверждения
P3: и ведения бюджетных смет Администрации
P4: Прионежского муниципального района
P5: и казенных учреждений, находящихся
P6: в ведении Администрации Прионежского
P7: муниципального района
P8: от 09 августа 2022 № 831
L10: УТВЕРЖДАЮ
L11: Глава Администрации Прионежского муниципального района
L12: (наименование должности лица, согласующего бюджетную смету)
L13: Администрация Прионежского муниципального района
L14: (наименование главного распорядителя (распорядителя) бюджетных средств; учреждения)
L16: Г. Н. Шемет
L17: (подпись) | N17: (расшифровка подписи)
L18: "02" февраля 2026 г.
A20: ИЗМЕНЕНИЕ К БЮДЖЕТНОЙ СМЕТЕ НА 2026 ФИНАНСОВЫЙ ГОД И ПЛАНОВЫЙ ПЕРИОД 2027 И 2028 ГОДОВ
B22: № 015/00402/027 от | H22: =L18 -> "02" февраля 2026 г.
A23: (№, дата, справки об изменении ЛБО) | P23: КОДЫ
O24: Форма по ОКУД | P24: 0501012
O25: Дата | P25: =L18 -> "02" февраля 2026 г.
O26: по ОКПО | P26: 51326281
A27: Получатель бюджетных средств | B27: Муниципальное общеобразовательное учреждение "Средняя общеобразовательная школа № 44"
A28: Распорядитель бюджетных средств | B28: Администрация Прионежского муниципального района Республики Карелия
A29: Главный распорядитель бюджетных средств | B29: Администрация Прионежского муниципального района Республики Карелия | O29: Глава по БК | P29: 015
A30: Наименование бюджета | B30: Бюджет Прионежского муниципального района | O30: по ОКТМО | P30: 86636410
A31: Единица измерения: | B31: руб. | O31: по ОКЕЙ | P31: 383
A33: Наименование показателя (детализация кода бюджетной классификации) | B33: РЗ | C33: ПР | D33: ЦСР | E33: Вид расхода | F33: Детализация | G33: Вид целевых средств | H33: Сумма на текущий 2026 год | K33: Сумма на первый год планового периода | N33: Сумма на второй год планового периода
H34: на 27.01.2026 г | I34: изменения(+;-) | J34: Итого | K34: =H34 -> на 27.01.2026 г | L34: изменения(+;-) | M34: Итого | N34: =H34 -> на 27.01.2026 г | O34: изменения(+;-) | P34: Итого
A35: 1 | B35: =SUM(A35+1) -> 2 | C35: 3 | D35: 4 | E35: 5 | F35: 6 | G35: 7 | H35: 8 | I35: 9 | J35: 10 | K35: 11 | L35: 12 | M35: 13 | N35: 14 | O35: 15 | P35: 16
A36: Средства местного бюджета (КЦ 1000) 0702
A37: Заработная плата | B37: 07 | C37: 02 | D37: 0220270210 | E37: 111 | F37: 211000 | G37: 1000 | H37: 537,980.16 | J37: =H37+I37 -> 537,980.16 | K37: 537,980.16 | M37: =K37+L37 -> 537,980.16 | N37: 537,980.16 | P37: =N37+O37 -> 537,980.16
A38: Социальные пособия и компенсации персоналу в денежной форме (пособие за первые три дня временной нетрудоспособности за счет средств работодателя) | B38: 07 | C38: 02 | D38: 0220270210 | E38: 111 | F38: 266100 | G38: 1000 | H38: 0.00 | J38: 0.00 | K38: 0.00 | M38: 0.00 | N38: 0.00 | P38: 0.00
A39: Расходы по оплате проезда к месту отпуска и обратно отдельным категориям лиц (для лиц, работающих в районах Крайнего Севера и приравненных к ним местностям, и членов их семей) | B39: 07 | C39: 02 | D39: 0220270210 | E39: 112 | F39: 214000 | G39: 1000 | H39: 30,000.00 | J39: 30,000.00 | K39: 30,000.00 | M39: 30,000.00 | N39: 30,000.00 | P39: 30,000.00
A40: Начисления на выплаты по оплате труда | B40: 07 | C40: 02 | D40: 0220270210 | E40: 119 | F40: 213000 | G40: 1000 | H40: 162,470.01 | J40: 162,470.01 | K40: 162,470.01 | M40: 162,470.01 | N40: 162,470.01 | P40: 162,470.01
A41: Услуги связи (телефон) | B41: 07 | C41: 02 | D41: 0220270210 | E41: 244 | F41: 221100 | G41: 1000 | H41: 8,244.91 | J41: 8,244.91 | K41: 10,306.14 | M41: 10,306.14 | N41: 12,882.68 | P41: 12,882.68
A42: Услуги связи (почта) | B42: 07 | C42: 02 | D42: 0220270210 | E42: 244 | F42: 221300 | G42: 1000 | H42: 0.00 | J42: 0.00 | K42: 0.00 | M42: 0.00 | N42: 0.00 | P42: 0.00
A43: Транспортные услуги | B43: 07 | C43: 02 | D43: 0220270210 | E43: 244 | F43: 222000 | G43: 1000 | H43: 18,216.90 | J43: =H43+I43 -> 18,216.90 | K43: 22,771.13 | M43: =K43+L43 -> 22,771.13 | N43: 28,463.91 | P43: =N43+O43 -> 28,463.91
A44: Обращение с твердыми коммунальными отходами (вывоз ТБО) | B44: 07 | C44: 02 | D44: 0220270210 | E44: 244 | F44: 223500 | G44: 1000 | H44: 32,551.14 | J44: 32,551.14 | K44: 36,620.03 | M44: 36,620.03 | N44: 41,197.54 | P44: 41,197.54
A45: Техническое обслуживание внутренних сетей отопления и горячего водоснабжения | B45: 07 | C45: 02 | D45: 0220270210 | E45: 244 | F45: 225200 | G45: 1000 | H45: 0.00 | J45: 0.00 | K45: 0.00 | M45: 0.00 | N45: 0.00 | P45: 0.00
A46: Санитарная и противопожарная (дезинфекция, дезинсекция, дератизация, газация, огнезащитная) обработка помещений | B46: 07 | C46: 02 | D46: 0220270210 | E46: 244 | F46: 225600 | G46: 1000 | H46: 31,712.06 | J46: 31,712.06 | K46: 31,712.06 | M46: 31,712.06 | N46: 31,712.06 | P46: 31,712.06
A47: Содержание, обслуживание помещений и сетей инженерно-технического обеспечения | B47: 07 | C47: 02 | D47: 0220270210 | E47: 244 | F47: 225700 | G47: 1000 | H47: 142,500.00 | J47: 142,500.00 | K47: 142,500.00 | M47: 142,500.00 | N47: 142,500.00 | P47: 142,500.00
A48: Текущий ремонт помещений и сетей инженерно-технического обеспечения | B48: 07 | C48: 02 | D48: 0220270210 | E48: 244 | F48: 225800 | G48: 1000 | H48: 0.00 | J48: 0.00 | K48: 0.00 | M48: 0.00 | N48: 0.00 | P48: 0.00
A49: Другие расходы | B49: 07 | C49: 02 | D49: 0220270210 | E49: 244 | F49: 225900 | G49: 1000 | H49: 110,000.00 | J49: 110,000.00 | K49: 100,000.00 | M49: 100,000.00 | N49: 100,000.00 | P49: 100,000.00
A50: Аттестация | B50: 07 | C50: 02 | D50: 0220270210 | E50: 244 | F50: 226200 | G50: 1000 | H50: 0.00 | J50: =H50+I50 -> 0.00 | K50: 0.00 | M50: =K50+L50 -> 0.00 | N50: 0.00 | P50: =N50+O50 -> 0.00
A51: Охрана ведомственная, вневедомственная, пожарная | B51: 07 | C51: 02 | D51: 0220270210 | E51: 244 | F51: 226400 | G51: 1000 | H51: 92,240.85 | J51: 92,240.85 | K51: 115,301.06 | M51: 115,301.06 | N51: 144,126.33 | P51: 144,126.33
A52: Мероприятия по переподготовке и повышению квалификации кадров | B52: 07 | C52: 02 | D52: 0220270210 | E52: 244 | F52: 226700 | G52: 1000 | H52: 0.00 | J52: 0.00 | K52: 0.00 | M52: 0.00 | N52: 0.00 | P52: 0.00
A53: Медицинский осмотр работников учреждения, за исключением водителей трансртных средств | B53: 07 | C53: 02 | D53: 0220270210 | E53: 244 | F53: 226800 | G53: 1000 | H53: 0.00 | J53: 0.00 | K53: 0.00 | M53: 0.00 | N53: 0.00 | P53: 0.00
A54: Другие расходы | B54: 07 | C54: 02 | D54: 0220270210 | E54: 244 | F54: 226900 | G54: 1000 | H54: 100,000.00 | J54: 100,000.00 | K54: 100,000.00 | M54: 100,000.00 | N54: 100,000.00 | P54: 100,000.00
A55: Приобретение предметов длительного пользования (оборудование, мебель, компьютерная техника и т.п) стоимостью свыше 3000 рублей | B55: 07 | C55: 02 | D55: 0220270210 | E55: 244 | F55: 310100 | G55: 1000 | H55: 0.00 | J55: 0.00 | K55: 0.00 | M55: 0.00 | N55: 0.00 | P55: 0.00
A56: Другие расходы стоимостью до 3000,00 рублей | B56: 07 | C56: 02 | D56: 0220270210 | E56: 244 | F56: 310900 | G56: 1000 | H56: 0.00 | J56: 0.00 | K56: 0.00 | M56: 0.00 | N56: 0.00 | P56: 0.00
A57: Увеличение стоимости лекарственных препаратов и материалов, применяемых в медицинских целях | B57: 07 | C57: 02 | D57: 0220270210 | E57: 244 | F57: 341000 | G57: 1000 | H57: 12,375.00 | J57: =H57+I57 -> 12,375.00 | K57: 15,468.75 | M57: =K57+L57 -> 15,468.75 | N57: 19,335.94 | P57: =N57+O57 -> 19,335.94
A58: Приобретение строительных материалов | B58: 07 | C58: 02 | D58: 0220270210 | E58: 244 | F58: 344000 | G58: 1000 | H58: 0.00 | J58: 0.00 | K58: 0.00 | M58: 0.00 | N58: 0.00 | P58: 0.00
A59: Мягкий инвентарь | B59: 07 | C59: 02 | D59: 0220270210 | E59: 244 | F59: 345000 | G59: 1000 | H59: 14,200.00 | J59: =H59+I59 -> 14,200.00 | K59: 15,760.00 | M59: =K59+L59 -> 15,760.00 | N59: 18,064.00 | P59: =N59+O59 -> 18,064.00
A60: Увеличение стоимости прочих оборотных запасов (материалов) | B60: 07 | C60: 02 | D60: 0220270210 | E60: 244 | F60: 346000 | G60: 1000 | H60: 80,000.00 | J60: 80,000.00 | K60: 80,000.00 | M60: 80,000.00 | N60: 80,000.00 | P60: 80,000.00
A61: Увеличение стоимости прочих оборотных запасов однократного применения | B61: 07 | C61: 02 | D61: 0220270210 | E61: 244 | F61: 349100 | G61: 1000 | H61: 0.00 | J61: 0.00 | K61: 0.00 | M61: 0.00 | N61: 0.00 | P61: 0.00
A62: Отопление, горячее водоснабжение и газоснабжение | B62: 07 | C62: 02 | D62: 0220270210 | E62: 247 | F62: 223100 | G62: 1000 | H62: 1,994,773.44 | J62: 1,994,773.44 | K62: 2,244,120.12 | M62: 2,244,120.12 | N62: 2,524,635.14 | P62: 2,524,635.14
A63: Электроэнергия | B63: 07 | C63: 02 | D63: 0220270210 | E63: 247 | F63: 223200 | G63: 1000 | H63: 735,965.00 | J63: 735,965.00 | K63: 827,960.63 | M63: 827,960.63 | N63: 931,455.70 | P63: 931,455.70
A64: Холодное водоснабжение | B64: 07 | C64: 02 | D64: 0220270210 | E64: 247 | F64: 223300 | G64: 1000 | H64: 54,731.04 | J64: 54,731.04 | K64: 60,410.18 | M64: 60,410.18 | N64: 67,961.45 | P64: 67,961.45
A65: Водоотведение | B65: 07 | C65: 02 | D65: 0220270210 | E65: 247 | F65: 223400 | G65: 1000 | H65: 30,169.62 | J65: 30,169.62 | K65: 35,103.06 | M65: 35,103.06 | N65: 39,490.94 | P65: 39,490.94
A66: Пособия по социальной помощи населению в натуральной форме | B66: 07 | C66: 02 | D66: 0220270210 | E66: 323 | F66: 263000 | G66: 1000 | H66: 0.00 | J66: =H66+I66 -> 0.00 | K66: 0.00 | M66: 0.00 | N66: 0.00 | P66: 0.00
A67: Налог на имущство | B67: 07 | C67: 02 | D67: 0220270210 | E67: 851 | F67: 291200 | G67: 1000 | H67: 8,876.00 | J67: 8,876.00 | K67: 8,876.00 | M67: 8,876.00 | N67: 8,876.00 | P67: 8,876.00
A68: Земельный налог, в том числе в период строительства объекта | B68: 07 | C68: 02 | D68: 0220270210 | E68: 851 | F68: 291300 | G68: 1000 | H68: 27,461.00 | J68: 27,461.00 | K68: 27,461.00 | M68: 27,461.00 | N68: 27,461.00 | P68: 27,461.00
A69: Штрафы за нарушение законодательства о налогах и сборах, законодательства о страховых взносах | B69: 07 | C69: 02 | D69: 0220270210 | E69: 853 | F69: 292000 | G69: 1000 | H69: 0.00 | J69: =H69+I69 -> 0.00 | K69: 0.00 | M69: =K69+L69 -> 0.00 | N69: 0.00 | P69: =N69+O69 -> 0.00
A70: Иные выплаты текущего характера физическим лицам (возмещение убытков, вреда и судебных издержек) | B70: 07 | C70: 02 | D70: 0220270210 | E70: 853 | F70: 296100 | G70: 1000 | H70: 0.00 | J70: =H70+I70 -> 0.00 | K70: 0.00 | M70: =K70+L70 -> 0.00 | N70: 0.00 | P70: =N70+O70 -> 0.00
A71: Транспортный налог | B71: 07 | C71: 02 | D71: 0220270210 | E71: 852 | F71: 291400 | G71: 1000 | H71: 0.00 | J71: 0.00 | K71: 0.00 | M71: 0.00 | N71: 0.00 | P71: 0.00
A72: Штрафы за нарушение законодательства о закупках и нарушенияе условий контракта (договоров) | B72: 07 | C72: 02 | D72: 0220270210 | E72: 831 | F72: 293000 | G72: 1000 | H72: 0.00 | J72: 0.00 | K72: 0.00 | M72: 0.00 | N72: 0.00 | P72: 0.00
A73: Другие экономические санкции | B73: 07 | C73: 02 | D73: 0220270210 | E73: 853 | F73: 295000 | G73: 1000 | H73: 0.00 | J73: 0.00 | K73: 0.00 | M73: 0.00 | N73: 0.00 | P73: 0.00
A74: Иные выплаты текущего характера организациям (возмещение убытков, вред и судебных издержек) | B74: 07 | C74: 02 | D74: 0220270210 | E74: 851 | F74: 297100 | G74: 1000 | H74: 0.00 | J74: 0.00 | K74: 0.00 | M74: 0.00 | N74: 0.00 | P74: 0.00
A75: Другие расходы | B75: 07 | C75: 02 | D75: 0400072910 | E75: 244 | F75: 226900 | G75: 1000 | H75: 0.00 | J75: 0.00 | K75: 0.00 | M75: 0.00 | N75: 0.00 | P75: 0.00
A76: Заработная плата | B76: 07 | C76: 02 | D76: 0920070260 | E76: 111 | F76: 211000 | G76: 1000 | H76: 0.00 | J76: 0.00 | K76: 0.00 | M76: 0.00 | N76: 0.00 | P76: 0.00
A77: Начисления на выплаты по оплате труда | B77: 07 | C77: 02 | D77: 0920070260 | E77: 119 | F77: 213000 | G77: 1000 | H77: 0.00 | J77: 0.00 | K77: 0.00 | M77: 0.00 | N77: 0.00 | P77: 0.00
A78: Итого по КЦ 1000 | H78: =SUM(H37:H77) -> 4,224,467.13 | I78: 0.00 | J78: 4,224,467.13 | K78: 4,604,820.33 | L78: 0.00 | M78: 4,604,820.33 | N78: 5,048,612.86 | O78: 0.00 | P78: 5,048,612.86
A79: Обеспечение государственных гарантий реализации прав на получение общедоступного и бесплатного дошкольного образования в муниципальных дошкольных образовательных организациях, общедоступного и бесплатного дошкольного, начального общего, основного общего, среднего общего образования в муниципальных общеобразовательных организациях, обеспечение дополнительного образования детей в муниципальных общеобразовательных организациях (Субвенции) (КЦ 264272750000219)
A80: Заработная плата | B80: 07 | C80: 02 | D80: 0220272750 | E80: 111 | F80: 211000 | G80: 264272750000219 | H80: 18,116,458.71 | J80: =H80+I80 -> 18,116,458.71 | K80: 0.00 | M80: =K80+L80 -> 0.00 | N80: 0.00 | P80: =N80+O80 -> 0.00
A81: Социальные пособия и компенсации персоналу в денежной форме (пособие за первые три дня временной нетрудоспособности за счет средств работодателя) | B81: 07 | C81: 02 | D81: 0220272751 | E81: 111 | F81: 266100 | G81: 264272750000219 | H81: 0.00 | J81: 0.00 | K81: 0.00 | M81: 0.00 | N81: 0.00 | P81: 0.00
A82: Начисления на выплаты по оплате труда | B82: 07 | C82: 02 | D82: 0220272750 | E82: 119 | F82: 213000 | G82: 264272750000219 | H82: 5,471,170.53 | J82: 5,471,170.53 | K82: 0.00 | M82: 0.00 | N82: 0.00 | P82: 0.00
A83: Услуги связи (интернет) | B83: 07 | C83: 02 | D83: 0220272753 | E83: 244 | F83: 221200 | G83: 264272750000219 | H83: 0.00 | J83: =H83+I83 -> 0.00 | K83: 0.00 | M83: =K83+L83 -> 0.00 | N83: 0.00 | P83: =N83+O83 -> 0.00
A84: Транспортные услуги | B84: 07 | C84: 02 | D84: 0220272754 | E84: 244 | F84: 222000 | G84: 264272750000219 | H84: 0.00 | J84: 0.00 | K84: 0.00 | M84: 0.00 | N84: 0.00 | P84: 0.00
A85: Другие расходы | B85: 07 | C85: 02 | D85: 0220272755 | E85: 244 | F85: 226900 | G85: 264272750000219 | H85: 0.00 | J85: =H85+I85 -> 0.00 | K85: 0.00 | M85: =K85+L85 -> 0.00 | N85: 0.00 | P85: =N85+O85 -> 0.00
A86: Приобретение предметов длительного пользования (оборудование, мебель, компьютерная техника и т.п.) стоимостью свыше 3000,00 руб. | B86: 07 | C86: 02 | D86: 0220272756 | E86: 244 | F86: 310100 | G86: 264272750000219 | H86: 0.00 | J86: =H86+I86 -> 0.00 | K86: 0.00 | M86: =K86+L86 -> 0.00 | N86: 0.00 | P86: =N86+O86 -> 0.00
A87: Комплектование библиотечного фонда | B87: 07 | C87: 02 | D87: 0220272757 | E87: 244 | F87: 310200 | G87: 264272750000219 | H87: 0.00 | J87: 0.00 | K87: 0.00 | M87: 0.00 | N87: 0.00 | P87: 0.00
A88: Другие расходы стоимостью до 3000,00 рублей | B88: 07 | C88: 02 | D88: 0220272758 | E88: 244 | F88: 310900 | G88: 264272750000219 | H88: 0.00 | J88: 0.00 | K88: 0.00 | M88: 0.00 | N88: 0.00 | P88: 0.00
A89: Мягкий инвентарь | B89: 07 | C89: 02 | D89: 0220272759 | E89: 244 | F89: 345000 | G89: 264272750000219 | H89: 0.00 | J89: 0.00 | M89: 0.00 | P89: 0.00
A90: Увеличение стоимости прочих оборотных запасов (материалов) | B90: 07 | C90: 02 | D90: 0220272760 | E90: 244 | F90: 346000 | G90: 264272750000219 | H90: 0.00 | J90: 0.00 | K90: 0.00 | M90: 0.00 | N90: 0.00 | P90: 0.00
A91: Увеличение стоимости прочих материальных запасов однократного применения | B91: 07 | C91: 02 | D91: 0220272761 | E91: 244 | F91: 349100 | G91: 264272750000219 | H91: 0.00 | J91: 0.00 | K91: 0.00 | M91: 0.00 | N91: 0.00 | P91: 0.00
A92: Мероприятия по переподготовке и повышению квалификации кадров | B92: 07 | C92: 05 | D92: 0220272762 | E92: 244 | F92: 226700 | G92: 264272750000219 | H92: 0.00 | J92: 0.00 | K92: 0.00 | M92: 0.00 | N92: 0.00 | P92: 0.00
A93: Итого по КЦ 264272750000219 | H93: =SUM(H80:H92) -> 23,587,629.24 | I93: 0.00 | J93: 23,587,629.24 | K93: 0.00 | L93: 0.00 | M93: 0.00 | N93: 0.00 | O93: 0.00 | P93: 0.00
A94: Проведение мероприятий по обеспечению деятельности советников директора по воспитанию и взаимодействию с детскими общественными объединениями в общеобразовательных организациях (Субсидия) (КЦ 26-51790-00000-00000)
A95: Заработная плата | B95: 07 | C95: 02 | D95: 022Ю651790 | E95: 111 | F95: 211000 | G95: 26-51790-00000-00000 | H95: 268,223.28 | J95: =H95+I95 -> 268,223.28 | K95: 0.00 | M95: =K95+L95 -> 0.00 | N95: 0.00 | P95: =N95+O95 -> 0.00
A96: Начисления на выплаты по оплате труда | B96: 07 | C96: 02 | D96: 022Ю651790 | E96: 119 | F96: 213000 | G96: 26-51790-00000-00000 | H96: 81,003.43 | J96: =H96+I96 -> 81,003.43 | K96: 0.00 | M96: =K96+L96 -> 0.00 | N96: 0.00 | P96: =N96+O96 -> 0.00
A97: Итого по КЦ 26-51790-00000-00000 | H97: =SUM(H95:H96) -> 349,226.71 | I97: 0.00 | J97: 349,226.71 | K97: 0.00 | L97: 0.00 | M97: 0.00 | N97: 0.00 | O97: 0.00 | P97: 0.00
A98: Иные межбюджетные трансферты на обеспечение выплат ежемесячного денежного вознаграждения советникам директоров по воспитанию и взаимодействию с детскими общественными объединениями государственных общеобразовательных организаций, профессиональных образовательных организаций, муниципальных общеобразовательных организаций и профессиональных образовательных организаций (КЦ 2550500X298320000000)
A99: Заработная плата | B99: 07 | C99: 02 | D99: 022Ю650500 | E99: 111 | F99: 211000 | G99: 2550500X298320000000 | H99: 0.00 | J99: =H99+I99 -> 0.00 | K99: 0.00 | M99: =K99+L99 -> 0.00 | N99: 0.00 | P99: =N99+O99 -> 0.00
A100: Начисления на выплаты по оплате труда | B100: 07 | C100: 02 | D100: 022Ю650500 | E100: 119 | F100: 213000 | G100: 2550500X298320000000 | H100: 0.00 | J100: =H100+I100 -> 0.00 | K100: 0.00 | M100: =K100+L100 -> 0.00 | N100: 0.00 | P100: =N100+O100 -> 0.00
A101: Итого по КЦ 2550500X298320000000 | H101: =SUM(H99:H100) -> 0.00 | I101: 0.00 | J101: 0.00 | K101: 0.00 | L101: 0.00 | M101: 0.00 | N101: 0.00 | O101: 0.00 | P101: 0.00
A102: Иные межбюджетные трансферты на ежемесячное денежное вознаграждение за классное руководство педагогическим работникам государственных и муниципальных образовательных организаций, реализующих образовательные программы начального общего образования, образовательные программы основного общего образования, образовательные программы среднего общего образования (КЦ 2553030X298570000000)
A103: Заработная плата | B103: 07 | C103: 02 | D103: 022Ю653030 | E103: 111 | F103: 211000 | G103: 2553030X298570000000 | H103: 0.00 | J103: =H103+I103 -> 0.00 | K103: 0.00 | M103: =K103+L103 -> 0.00 | N103: 0.00 | P103: =N103+O103 -> 0.00
A104: Начисления на выплаты по оплате труда | B104: 07 | C104: 02 | D104: 022Ю653030 | E104: 119 | F104: 213000 | G104: 2553030X298570000000 | H104: 0.00 | J104: =H104+I104 -> 0.00 | K104: 0.00 | M104: =K104+L104 -> 0.00 | N104: 0.00 | P104: =N104+O104 -> 0.00
A105: Итого по КЦ 2553030X298570000000 | H105: =SUM(H103:H104) -> 0.00 | I105: 0.00 | J105: 0.00 | K105: 0.00 | L105: 0.00 | M105: 0.00 | N105: 0.00 | O105: 0.00 | P105: 0.00
A106: Субвенции на осуществление государственных полномочий РеспубликиКарелия по представлению предусмотренных пунктом 5 части 1 статьи 9 Закона Республики Карелия от 20 декабря 2013 гоа № 1755_ЗРК "Об образовании" мер социальной поддержки и социального обслуживания (КЦ 254242100000210)
A107: Увеличение стоимости прочих оборотных запасов (материалов) | B107: 07 | C107: 02 | D107: 0220242100 | E107: 244 | F107: 346000 | G107: 24424210000210 | J107: =H107+I107 -> 0.00 | K107: 0.00 | M107: =K107+L107 -> 0.00 | N107: 0.00 | P107: =N107+O107 -> 0.00
A108: Пособия по социальной помощи населению в натуральной форме | B108: 07 | C108: 02 | D108: 0220242100 | E108: 323 | F108: 263000 | G108: 254242100000210 | H108: 0.00 | J108: =H108+I108 -> 0.00 | K108: 0.00 | M108: =K108+L108 -> 0.00 | N108: 0.00 | P108: =N108+O108 -> 0.00
A109: Увеличение стоимости прочих оборотных запасов (материалов) | B109: 07 | C109: 02 | D109: 0220242100 | E109: 323 | F109: 346000 | G109: 23424210000210 | J109: =H109+I109 -> 0.00 | K109: 0.00 | M109: =K109+L109 -> 0.00 | N109: 0.00 | P109: =N109+O109 -> 0.00
A110: Итого по КЦ 254242100000210 | H110: =SUM(H107:H109) -> 0.00 | I110: 0.00 | J110: 0.00 | K110: 0.00 | L110: 0.00 | M110: 0.00 | N110: 0.00 | O110: 0.00 | P110: 0.00
A111: Субвенции на осуществление государственных полномочий Республики Карелия по выплате компенсации платы, взимаемой с родителей (законных представителей) за присмотр и уход за детьми, осваивающими образовательные программы дошкольного образования в организа
A112: Пособия по социальной помощи населению в натуральной форме | B112: 10 | C112: 04 | D112: 0220142030 | E112: 323 | F112: 263000 | G112: 23424203000203 | J112: =H112+I112 -> 0.00 | K112: 0.00 | M112: =K112+L112 -> 0.00 | N112: 0.00 | P112: =N112+O112 -> 0.00
A113: Итого по КЦ 23424203000203 | H113: =SUM(H112) -> 0.00 | I113: 0.00 | J113: 0.00 | K113: 0.00 | L113: 0.00 | M113: 0.00 | N113: 0.00 | O113: 0.00 | P113: 0.00
A114: Осуществление государственных полномочий Республики Карелия по предоставлению предусмотренных пунктом 5 части 1 статьи 9 Закона Республики Карелия от 20 декабря 2013 года № 1755-ЗРК "Об образовании" мер социальной поддержки и социального обслуживания обучающимся с ограниченными возможностями здоровья, за исключением обучающихся (воспитываемых) в государственных образовательных организациях Республики Карелия (Субвенции) (КЦ 264272740000210)
A115: Пособия по социальной помощи населению в натуральной форме | B115: 07 | C115: 02 | D115: 0220272740 | E115: 323 | F115: 263000 | G115: 264272740000210 | H115: 200,000.00 | J115: =H115+I115 -> 200,000.00 | K115: 0.00 | M115: =K115+L115 -> 0.00 | N115: 0.00 | P115: =N115+O115 -> 0.00
A116: Итого по КЦ 264272740000210 | H116: =SUM(H115:H115) -> 200,000.00 | I116: 0.00 | J116: 200,000.00 | K116: 0.00 | L116: 0.00 | M116: 0.00 | N116: 0.00 | O116: 0.00 | P116: 0.00
A117: Реализация мероприятий по организации бесплатного горячего питания обучающихся, получающих начальное общее образование в государственных и муниципальных образовательных организациях (Субсидии) (КЦ 26-53040-00000-00000)
A118: Другие расходы | B118: 07 | C118: 02 | D118: 02202L3040 | E118: 244 | F118: 226900 | G118: 26-53040-00000-00000 | H118: 787,118.00 | I118: -157,423.60 | J118: =H118+I118 -> 629,694.40 | K118: 0.00 | M118: =K118+L118 -> 0.00 | N118: 0.00 | P118: =N118+O118 -> 0.00
A119: Итого по КЦ 26-53040-00000-00000 | H119: =SUM(H118:H118) -> 787,118.00 | I119: -157,423.60 | J119: 629,694.40 | K119: 0.00 | L119: 0.00 | M119: 0.00 | N119: 0.00 | O119: 0.00 | P119: 0.00
A120: Субсидия на реализацию мероприятий государственной программы Республики Карелия "Совершенствование социальной защиты граждан" в целях организации адресной социальной помощи семьям, имеющим детей (КЦ 254343210000316)
A121: Пособия по социальной помощи населению в натуральной форме | B121: 10 | C121: 03 | D121: 0320243210 | E121: 323 | F121: 263000 | G121: 254343210000316 | H121: 0.00 | J121: =H121+I121 -> 0.00 | K121: 0.00 | M121: =K121+L121 -> 0.00 | N121: 0.00 | P121: =N121+O121 -> 0.00
A122: Итого по КЦ 254343210000316 | H122: =SUM(H121:H121) -> 0.00 | I122: =SUM(I121:I121) -> 0.00 | J122: =SUM(J121:J121) -> 0.00 | K122: =SUM(K121:K121) -> 0.00 | L122: =SUM(L121:L121) -> 0.00 | M122: 0.00 | N122: 0.00 | O122: 0.00 | P122: 0.00
A123: Пособия по социальной помощи населению в натуральной форме | B123: 10 | C123: 03 | D123: 03202S3210 | E123: 323 | F123: 263000 | G123: 1000 | H123: 0.00 | J123: =H123+I123 -> 0.00 | K123: 0.00 | M123: 0.00 | N123: 0.00 | P123: 0.00
A124: Итого по КЦ 1000 | H124: =SUM(H123:H123) -> 0.00 | I124: 0.00 | J124: 0.00 | K124: 0.00 | L124: 0.00 | M124: 0.00 | N124: 0.00 | O124: 0.00 | P124: 0.00
A125: Субсидия местным бюджетам на организацию отдыха детей в каникулярное время (КЦ 254343540000778)
A126: Увеличение стоимости прочих оборотных запасов (материалов) | B126: 07 | C126: 09 | D126: 0220243210 | E126: 244 | F126: 346000 | G126: 2343432000321 | J126: =H126+I126 -> 0.00 | K126: 0.00 | M126: =K126+L126 -> 0.00 | N126: 0.00 | P126: =N126+O126 -> 0.00
A127: Другие расходы | B127: 07 | C127: 09 | D127: 0220243210 | E127: 244 | F127: 226900 | G127: 2343432000321 | J127: 0.00 | K127: 0.00 | M127: 0.00 | N127: 0.00 | P127: 0.00
A128: Транспортные услуги | B128: 07 | C128: 09 | D128: 0220243210 | E128: 244 | F128: 222000 | G128: 2343432000321 | J128: 0.00 | K128: 0.00 | M128: 0.00 | N128: 0.00 | P128: 0.00
A129: Другие расходы | B129: 07 | C129: 09 | D129: 02202S3540 | E129: 244 | F129: 226900 | G129: 254343540000778 | H129: 0.00 | J129: 0.00 | K129: 0.00 | M129: 0.00 | N129: 0.00 | P129: 0.00
A130: Расходы на оплату услуг по страхованию здоровья | B130: 07 | C130: 09 | D130: 02202S3540 | E130: 244 | F130: 227300 | G130: 254343540000778 | H130: 0.00 | J130: 0.00 | K130: 0.00 | M130: 0.00 | N130: 0.00 | P130: 0.00
A131: Увеличение стоимости прочих оборотных запасов (материалов) | B131: 07 | C131: 09 | D131: 02202S3540 | E131: 244 | F131: 346000 | G131: 254343540000778 | H131: 0.00 | J131: 0.00 | K131: 0.00 | M131: 0.00 | N131: 0.00 | P131: 0.00
A132: Итого по КЦ 2343432000321 | H132: =SUM(H126:H131) -> 0.00 | I132: 0.00 | J132: 0.00 | K132: 0.00 | L132: 0.00 | M132: 0.00 | N132: 0.00 | O132: 0.00 | P132: 0.00
A133: Субсидия местным бюджетам на реализацию мероприятий государственной программы Республики Карелия "Совершенствование социальной защиты граждан" (КЦ 2343432000321)
A134: Увеличение стоимости прочих оборотных запасов (материалов) | B134: 07 | C134: 09 | D134: 0220243210 | E134: 244 | F134: 346000 | G134: 2343432000321 | J134: =H134+I134 -> 0.00 | K134: 0.00 | M134: =K134+L134 -> 0.00 | N134: 0.00 | P134: =N134+O134 -> 0.00
A135: Другие расходы | B135: 07 | C135: 09 | D135: 0220243210 | E135: 244 | F135: 226900 | G135: 2343432000321 | J135: 0.00 | K135: 0.00 | M135: 0.00 | N135: 0.00 | P135: 0.00
A136: Транспортные услуги | B136: 07 | C136: 09 | D136: 0220243210 | E136: 244 | F136: 222000 | G136: 2343432000321 | J136: 0.00 | K136: 0.00 | M136: 0.00 | N136: 0.00 | P136: 0.00
A137: Увеличение стоимости прочих оборотных запасов (материалов) | B137: 07 | C137: 09 | D137: 02202S3210 | E137: 244 | F137: 346000 | G137: 1000 | J137: 0.00 | K137: 0.00 | M137: 0.00 | N137: 0.00 | P137: 0.00
A138: Другие расходы | B138: 07 | C138: 09 | D138: 02202S3210 | E138: 244 | F138: 226900 | G138: 1000 | J138: 0.00 | K138: 0.00 | M138: 0.00 | N138: 0.00 | P138: 0.00
A139: Транспортные услуги | B139: 07 | C139: 09 | D139: 02202S3210 | E139: 244 | F139: 222000 | G139: 1000 | J139: 0.00 | K139: 0.00 | M139: 0.00 | N139: 0.00 | P139: 0.00
A140: Итого по КЦ 2343432000321 | H140: =SUM(H134:H139) -> 0.00 | I140: 0.00 | J140: 0.00 | K140: 0.00 | L140: 0.00 | M140: 0.00 | N140: 0.00 | O140: 0.00 | P140: 0.00
A141: Иные межбюджетные трансферты на компенсацию затрат, связанных с освобождением членов семей постоянно проживающих на территории Республики Карелия граждан, призванных военным комиссариатом Республики Карелия на военную службу по мобилизации, а также гражд
A142: Продукты питания | B142: 07 | C142: 01 | D142: 0220175040 | E142: 244 | F142: 342000 | G142: 234475040П0514 | J142: =H142+I142 -> 0.00 | K142: 0.00 | M142: =K142+L142 -> 0.00 | N142: 0.00 | O142: =M142+N142 -> 0.00 | P142: =N142+O142 -> 0.00
A143: Итого по КЦ 234475040П0514 | H143: =SUM(H142) -> 0.00 | I143: 0.00 | J143: 0.00 | K143: 0.00 | L143: 0.00 | M143: 0.00 | N143: 0.00 | O143: 0.00 | P143: 0.00
G144: Всего | H144: =H78+H93+H110+H113+H116+H122+H124+H105+H97+H101+H132+H119 -> 29,148,441.08 | I144: =I78+I93+I110+I113+I116+I122+I124+I105+I97+I101+I132+I119 -> -157,423.60 | J144: =J78+J93+J110+J113+J116+J122+J124+J105+J97+J101+J132+J119 -> 28,991,017.48 | K144: =K78+K93+K110+K113+K116+K122+K124+K105+K97+K101+K132+K119 -> 4,604,820.33 | L144: 0.00 | M144: 4,604,820.33 | N144: 5,048,612.86 | O144: 0.00 | P144: 5,048,612.86
A148: Директор | F148: И.А. Сидорова
B149: (подпись) | F149: (расшифровка подписи)
A151: Гл.бухгалтер МУ "ЦБ № 1" | F151: И.В. Ананьева
A152: (уполномоченное лицо) | B152: (подпись) | F152: (расшифровка подписи)
A154: Главный экономист ПЭО МУ "ЦБ № 1" | F154: Е.Л. Герасимова
A155: (исполнитель) | B155: (подпись) | F155: (расшифровка подписи)
A157: =L18 -> "02" февраля 2026 г.

Sheet 03.02
P1: Приложение № 2
P2: к Порядку составления, утверждения
P3: и ведения бюджетных смет Администрации
P4: Прионежского муниципального района
P5: и казенных учреждений, находящихся
P6: в ведении Администрации Прионежского
P7: муниципального района
P8: от 09 августа 2022 № 831
L10: УТВЕРЖДАЮ
L11: Глава Администрации Прионежского муниципального района
L12: (наименование должности лица, согласующего бюджетную смету)
L13: Администрация Прионежского муниципального района
L14: (наименование главного распорядителя (распорядителя) бюджетных средств; учреждения)
L16: Г. Н. Шемет
L17: (подпись) | N17: (расшифровка подписи)
L18: "03" февраля 2026 г.
A20: ИЗМЕНЕНИЕ К БЮДЖЕТНОЙ СМЕТЕ НА 2026 ФИНАНСОВЫЙ ГОД И ПЛАНОВЫЙ ПЕРИОД 2027 И 2028 ГОДОВ
B22: № 015/00402/029, № 015/00402/030 от | H22: =L18 -> "03" февраля 2026 г.
A23: (№, дата, справки об изменении ЛБО) | P23: КОДЫ
O24: Форма по ОКУД | P24: 0501012
O25: Дата | P25: =L18 -> "03" февраля 2026 г.
O26: по ОКПО | P26: 51326281
A27: Получатель бюджетных средств | B27: Муниципальное общеобразовательное учреждение "Средняя общеобразовательная школа № 44"
A28: Распорядитель бюджетных средств | B28: Администрация Прионежского муниципального района Республики Карелия
A29: Главный распорядитель бюджетных средств | B29: Администрация Прионежского муниципального района Республики Карелия | O29: Глава по БК | P29: 015
A30: Наименование бюджета | B30: Бюджет Прионежского муниципального района | O30: по ОКТМО | P30: 86636410
A31: Единица измерения: | B31: руб. | O31: по ОКЕЙ | P31: 383
A33: Наименование показателя (детализация кода бюджетной классификации) | B33: РЗ | C33: ПР | D33: ЦСР | E33: Вид расхода | F33: Детализация | G33: Вид целевых средств | H33: Сумма на текущий 2026 год | K33: Сумма на первый год планового периода | N33: Сумма на второй год планового периода
H34: на 02.02.2026 г | I34: изменения(+;-) | J34: Итого | K34: =H34 -> на 02.02.2026 г | L34: изменения(+;-) | M34: Итого | N34: =H34 -> на 02.02.2026 г | O34: изменения(+;-) | P34: Итого
A35: 1 | B35: =SUM(A35+1) -> 2 | C35: 3 | D35: 4 | E35: 5 | F35: 6 | G35: 7 | H35: 8 | I35: 9 | J35: 10 | K35: 11 | L35: 12 | M35: 13 | N35: 14 | O35: 15 | P35: 16
A36: Средства местного бюджета (КЦ 1000) 0702
A37: Заработная плата | B37: 07 | C37: 02 | D37: 0220270210 | E37: 111 | F37: 211000 | G37: 1000 | H37: 537,980.16 | J37: =H37+I37 -> 537,980.16 | K37: 537,980.16 | M37: =K37+L37 -> 537,980.16 | N37: 537,980.16 | P37: =N37+O37 -> 537,980.16
A38: Социальные пособия и компенсации персоналу в денежной форме (пособие за первые три дня временной нетрудоспособности за счет средств работодателя) | B38: 07 | C38: 02 | D38: 0220270210 | E38: 111 | F38: 266100 | G38: 1000 | H38: 0.00 | J38: 0.00 | K38: 0.00 | M38: 0.00 | N38: 0.00 | P38: 0.00
A39: Расходы по оплате проезда к месту отпуска и обратно отдельным категориям лиц (для лиц, работающих в районах Крайнего Севера и приравненных к ним местностям, и членов их семей) | B39: 07 | C39: 02 | D39: 0220270210 | E39: 112 | F39: 214000 | G39: 1000 | H39: 30,000.00 | J39: 30,000.00 | K39: 30,000.00 | M39: 30,000.00 | N39: 30,000.00 | P39: 30,000.00
A40: Начисления на выплаты по оплате труда | B40: 07 | C40: 02 | D40: 0220270210 | E40: 119 | F40: 213000 | G40: 1000 | H40: 162,470.01 | J40: 162,470.01 | K40: 162,470.01 | M40: 162,470.01 | N40: 162,470.01 | P40: 162,470.01
A41: Услуги связи (телефон) | B41: 07 | C41: 02 | D41: 0220270210 | E41: 244 | F41: 221100 | G41: 1000 | H41: 8,244.91 | J41: 8,244.91 | K41: 10,306.14 | M41: 10,306.14 | N41: 12,882.68 | P41: 12,882.68
A42: Услуги связи (почта) | B42: 07 | C42: 02 | D42: 0220270210 | E42: 244 | F42: 221300 | G42: 1000 | H42: 0.00 | J42: 0.00 | K42: 0.00 | M42: 0.00 | N42: 0.00 | P42: 0.00
A43: Транспортные услуги | B43: 07 | C43: 02 | D43: 0220270210 | E43: 244 | F43: 222000 | G43: 1000 | H43: 18,216.90 | J43: =H43+I43 -> 18,216.90 | K43: 22,771.13 | M43: =K43+L43 -> 22,771.13 | N43: 28,463.91 | P43: =N43+O43 -> 28,463.91
A44: Обращение с твердыми коммунальными отходами (вывоз ТБО) | B44: 07 | C44: 02 | D44: 0220270210 | E44: 244 | F44: 223500 | G44: 1000 | H44: 32,551.14 | J44: 32,551.14 | K44: 36,620.03 | M44: 36,620.03 | N44: 41,197.54 | P44: 41,197.54
A45: Техническое обслуживание внутренних сетей отопления и горячего водоснабжения | B45: 07 | C45: 02 | D45: 0220270210 | E45: 244 | F45: 225200 | G45: 1000 | H45: 0.00 | J45: 0.00 | K45: 0.00 | M45: 0.00 | N45: 0.00 | P45: 0.00
A46: Санитарная и противопожарная (дезинфекция, дезинсекция, дератизация, газация, огнезащитная) обработка помещений | B46: 07 | C46: 02 | D46: 0220270210 | E46: 244 | F46: 225600 | G46: 1000 | H46: 31,712.06 | J46: 31,712.06 | K46: 31,712.06 | M46: 31,712.06 | N46: 31,712.06 | P46: 31,712.06
A47: Содержание, обслуживание помещений и сетей инженерно-технического обеспечения | B47: 07 | C47: 02 | D47: 0220270210 | E47: 244 | F47: 225700 | G47: 1000 | H47: 142,500.00 | J47: 142,500.00 | K47: 142,500.00 | M47: 142,500.00 | N47: 142,500.00 | P47: 142,500.00
A48: Текущий ремонт помещений и сетей инженерно-технического обеспечения | B48: 07 | C48: 02 | D48: 0220270210 | E48: 244 | F48: 225800 | G48: 1000 | H48: 0.00 | J48: 0.00 | K48: 0.00 | M48: 0.00 | N48: 0.00 | P48: 0.00
A49: Другие расходы | B49: 07 | C49: 02 | D49: 0220270210 | E49: 244 | F49: 225900 | G49: 1000 | H49: 110,000.00 | J49: 110,000.00 | K49: 100,000.00 | M49: 100,000.00 | N49: 100,000.00 | P49: 100,000.00
A50: Аттестация | B50: 07 | C50: 02 | D50: 0220270210 | E50: 244 | F50: 226200 | G50: 1000 | H50: 0.00 | J50: =H50+I50 -> 0.00 | K50: 0.00 | M50: =K50+L50 -> 0.00 | N50: 0.00 | P50: =N50+O50 -> 0.00
A51: Охрана ведомственная, вневедомственная, пожарная | B51: 07 | C51: 02 | D51: 0220270210 | E51: 244 | F51: 226400 | G51: 1000 | H51: 92,240.85 | J51: 92,240.85 | K51: 115,301.06 | M51: 115,301.06 | N51: 144,126.33 | P51: 144,126.33
A52: Мероприятия по переподготовке и повышению квалификации кадров | B52: 07 | C52: 02 | D52: 0220270210 | E52: 244 | F52: 226700 | G52: 1000 | H52: 0.00 | J52: 0.00 | K52: 0.00 | M52: 0.00 | N52: 0.00 | P52: 0.00
A53: Медицинский осмотр работников учреждения, за исключением водителей трансртных средств | B53: 07 | C53: 02 | D53: 0220270210 | E53: 244 | F53: 226800 | G53: 1000 | H53: 0.00 | J53: 0.00 | K53: 0.00 | M53: 0.00 | N53: 0.00 | P53: 0.00
A54: Другие расходы | B54: 07 | C54: 02 | D54: 0220270210 | E54: 244 | F54: 226900 | G54: 1000 | H54: 100,000.00 | J54: 100,000.00 | K54: 100,000.00 | M54: 100,000.00 | N54: 100,000.00 | P54: 100,000.00
A55: Приобретение предметов длительного пользования (оборудование, мебель, компьютерная техника и т.п) стоимостью свыше 3000 рублей | B55: 07 | C55: 02 | D55: 0220270210 | E55: 244 | F55: 310100 | G55: 1000 | H55: 0.00 | J55: 0.00 | K55: 0.00 | M55: 0.00 | N55: 0.00 | P55: 0.00
A56: Другие расходы стоимостью до 3000,00 рублей | B56: 07 | C56: 02 | D56: 0220270210 | E56: 244 | F56: 310900 | G56: 1000 | H56: 0.00 | J56: 0.00 | K56: 0.00 | M56: 0.00 | N56: 0.00 | P56: 0.00
A57: Увеличение стоимости лекарственных препаратов и материалов, применяемых в медицинских целях | B57: 07 | C57: 02 | D57: 0220270210 | E57: 244 | F57: 341000 | G57: 1000 | H57: 12,375.00 | J57: =H57+I57 -> 12,375.00 | K57: 15,468.75 | M57: =K57+L57 -> 15,468.75 | N57: 19,335.94 | P57: =N57+O57 -> 19,335.94
A58: Приобретение строительных материалов | B58: 07 | C58: 02 | D58: 0220270210 | E58: 244 | F58: 344000 | G58: 1000 | H58: 0.00 | J58: 0.00 | K58: 0.00 | M58: 0.00 | N58: 0.00 | P58: 0.00
A59: Мягкий инвентарь | B59: 07 | C59: 02 | D59: 0220270210 | E59: 244 | F59: 345000 | G59: 1000 | H59: 14,200.00 | J59: =H59+I59 -> 14,200.00 | K59: 15,760.00 | M59: =K59+L59 -> 15,760.00 | N59: 18,064.00 | P59: =N59+O59 -> 18,064.00
A60: Увеличение стоимости прочих оборотных запасов (материалов) | B60: 07 | C60: 02 | D60: 0220270210 | E60: 244 | F60: 346000 | G60: 1000 | H60: 80,000.00 | J60: 80,000.00 | K60: 80,000.00 | M60: 80,000.00 | N60: 80,000.00 | P60: 80,000.00
A61: Увеличение стоимости прочих оборотных запасов однократного применения | B61: 07 | C61: 02 | D61: 0220270210 | E61: 244 | F61: 349100 | G61: 1000 | H61: 0.00 | J61: 0.00 | K61: 0.00 | M61: 0.00 | N61: 0.00 | P61: 0.00
A62: Отопление, горячее водоснабжение и газоснабжение | B62: 07 | C62: 02 | D62: 0220270210 | E62: 247 | F62: 223100 | G62: 1000 | H62: 1,994,773.44 | J62: 1,994,773.44 | K62: 2,244,120.12 | M62: 2,244,120.12 | N62: 2,524,635.14 | P62: 2,524,635.14
A63: Электроэнергия | B63: 07 | C63: 02 | D63: 0220270210 | E63: 247 | F63: 223200 | G63: 1000 | H63: 735,965.00 | J63: 735,965.00 | K63: 827,960.63 | M63: 827,960.63 | N63: 931,455.70 | P63: 931,455.70
A64: Холодное водоснабжение | B64: 07 | C64: 02 | D64: 0220270210 | E64: 247 | F64: 223300 | G64: 1000 | H64: 54,731.04 | J64: 54,731.04 | K64: 60,410.18 | M64: 60,410.18 | N64: 67,961.45 | P64: 67,961.45
A65: Водоотведение | B65: 07 | C65: 02 | D65: 0220270210 | E65: 247 | F65: 223400 | G65: 1000 | H65: 30,169.62 | J65: 30,169.62 | K65: 35,103.06 | M65: 35,103.06 | N65: 39,490.94 | P65: 39,490.94
A66: Пособия по социальной помощи населению в натуральной форме | B66: 07 | C66: 02 | D66: 0220270210 | E66: 323 | F66: 263000 | G66: 1000 | H66: 0.00 | J66: =H66+I66 -> 0.00 | K66: 0.00 | M66: 0.00 | N66: 0.00 | P66: 0.00
A67: Налог на имущство | B67: 07 | C67: 02 | D67: 0220270210 | E67: 851 | F67: 291200 | G67: 1000 | H67: 8,876.00 | J67: 8,876.00 | K67: 8,876.00 | M67: 8,876.00 | N67: 8,876.00 | P67: 8,876.00
A68: Земельный налог, в том числе в период строительства объекта | B68: 07 | C68: 02 | D68: 0220270210 | E68: 851 | F68: 291300 | G68: 1000 | H68: 27,461.00 | J68: 27,461.00 | K68: 27,461.00 | M68: 27,461.00 | N68: 27,461.00 | P68: 27,461.00
A69: Штрафы за нарушение законодательства о налогах и сборах, законодательства о страховых взносах | B69: 07 | C69: 02 | D69: 0220270210 | E69: 853 | F69: 292000 | G69: 1000 | H69: 0.00 | J69: =H69+I69 -> 0.00 | K69: 0.00 | M69: =K69+L69 -> 0.00 | N69: 0.00 | P69: =N69+O69 -> 0.00
A70: Иные выплаты текущего характера физическим лицам (возмещение убытков, вреда и судебных издержек) | B70: 07 | C70: 02 | D70: 0220270210 | E70: 853 | F70: 296100 | G70: 1000 | H70: 0.00 | J70: =H70+I70 -> 0.00 | K70: 0.00 | M70: =K70+L70 -> 0.00 | N70: 0.00 | P70: =N70+O70 -> 0.00
A71: Транспортный налог | B71: 07 | C71: 02 | D71: 0220270210 | E71: 852 | F71: 291400 | G71: 1000 | H71: 0.00 | J71: 0.00 | K71: 0.00 | M71: 0.00 | N71: 0.00 | P71: 0.00
A72: Штрафы за нарушение законодательства о закупках и нарушенияе условий контракта (договоров) | B72: 07 | C72: 02 | D72: 0220270210 | E72: 831 | F72: 293000 | G72: 1000 | H72: 0.00 | J72: 0.00 | K72: 0.00 | M72: 0.00 | N72: 0.00 | P72: 0.00
A73: Другие экономические санкции | B73: 07 | C73: 02 | D73: 0220270210 | E73: 853 | F73: 295000 | G73: 1000 | H73: 0.00 | J73: 0.00 | K73: 0.00 | M73: 0.00 | N73: 0.00 | P73: 0.00
A74: Иные выплаты текущего характера организациям (возмещение убытков, вред и судебных издержек) | B74: 07 | C74: 02 | D74: 0220270210 | E74: 851 | F74: 297100 | G74: 1000 | H74: 0.00 | J74: 0.00 | K74: 0.00 | M74: 0.00 | N74: 0.00 | P74: 0.00
A75: Другие расходы | B75: 07 | C75: 02 | D75: 0400072910 | E75: 244 | F75: 226900 | G75: 1000 | H75: 0.00 | J75: 0.00 | K75: 0.00 | M75: 0.00 | N75: 0.00 | P75: 0.00
A76: Заработная плата | B76: 07 | C76: 02 | D76: 0920070260 | E76: 111 | F76: 211000 | G76: 1000 | H76: 0.00 | J76: 0.00 | K76: 0.00 | M76: 0.00 | N76: 0.00 | P76: 0.00
A77: Начисления на выплаты по оплате труда | B77: 07 | C77: 02 | D77: 0920070260 | E77: 119 | F77: 213000 | G77: 1000 | H77: 0.00 | J77: 0.00 | K77: 0.00 | M77: 0.00 | N77: 0.00 | P77: 0.00
A78: Итого по КЦ 1000 | H78: =SUM(H37:H77) -> 4,224,467.13 | I78: 0.00 | J78: 4,224,467.13 | K78: 4,604,820.33 | L78: 0.00 | M78: 4,604,820.33 | N78: 5,048,612.86 | O78: 0.00 | P78: 5,048,612.86
A79: Обеспечение государственных гарантий реализации прав на получение общедоступного и бесплатного дошкольного образования в муниципальных дошкольных образовательных организациях, общедоступного и бесплатного дошкольного, начального общего, основного общего, среднего общего образования в муниципальных общеобразовательных организациях, обеспечение дополнительного образования детей в муниципальных общеобразовательных организациях (Субвенции) (КЦ 264272750000219)
A80: Заработная плата | B80: 07 | C80: 02 | D80: 0220272750 | E80: 111 | F80: 211000 | G80: 264272750000219 | H80: 18,116,458.71 | I80: -11,370.51 | J80: =H80+I80 -> 18,105,088.20 | K80: 0.00 | M80: =K80+L80 -> 0.00 | N80: 0.00 | P80: =N80+O80 -> 0.00
A81: Социальные пособия и компенсации персоналу в денежной форме (пособие за первые три дня временной нетрудоспособности за счет средств работодателя) | B81: 07 | C81: 02 | D81: 0220272751 | E81: 111 | F81: 266100 | G81: 264272750000219 | H81: 0.00 | I81: 11,370.51 | J81: 11,370.51 | K81: 0.00 | M81: 0.00 | N81: 0.00 | P81: 0.00
A82: Начисления на выплаты по оплате труда | B82: 07 | C82: 02 | D82: 0220272750 | E82: 119 | F82: 213000 | G82: 264272750000219 | H82: 5,471,170.53 | J82: 5,471,170.53 | K82: 0.00 | M82: 0.00 | N82: 0.00 | P82: 0.00
A83: Услуги связи (интернет) | B83: 07 | C83: 02 | D83: 0220272753 | E83: 244 | F83: 221200 | G83: 264272750000219 | H83: 0.00 | J83: =H83+I83 -> 0.00 | K83: 0.00 | M83: =K83+L83 -> 0.00 | N83: 0.00 | P83: =N83+O83 -> 0.00
A84: Транспортные услуги | B84: 07 | C84: 02 | D84: 0220272754 | E84: 244 | F84: 222000 | G84: 264272750000219 | H84: 0.00 | J84: 0.00 | K84: 0.00 | M84: 0.00 | N84: 0.00 | P84: 0.00
A85: Другие расходы | B85: 07 | C85: 02 | D85: 0220272755 | E85: 244 | F85: 226900 | G85: 264272750000219 | H85: 0.00 | J85: =H85+I85 -> 0.00 | K85: 0.00 | M85: =K85+L85 -> 0.00 | N85: 0.00 | P85: =N85+O85 -> 0.00
A86: Приобретение предметов длительного пользования (оборудование, мебель, компьютерная техника и т.п.) стоимостью свыше 3000,00 руб. | B86: 07 | C86: 02 | D86: 0220272756 | E86: 244 | F86: 310100 | G86: 264272750000219 | H86: 0.00 | J86: =H86+I86 -> 0.00 | K86: 0.00 | M86: =K86+L86 -> 0.00 | N86: 0.00 | P86: =N86+O86 -> 0.00
A87: Комплектование библиотечного фонда | B87: 07 | C87: 02 | D87: 0220272757 | E87: 244 | F87: 310200 | G87: 264272750000219 | H87: 0.00 | J87: 0.00 | K87: 0.00 | M87: 0.00 | N87: 0.00 | P87: 0.00
A88: Другие расходы стоимостью до 3000,00 рублей | B88: 07 | C88: 02 | D88: 0220272758 | E88: 244 | F88: 310900 | G88: 264272750000219 | H88: 0.00 | J88: 0.00 | K88: 0.00 | M88: 0.00 | N88: 0.00 | P88: 0.00
A89: Мягкий инвентарь | B89: 07 | C89: 02 | D89: 0220272759 | E89: 244 | F89: 345000 | G89: 264272750000219 | H89: 0.00 | J89: 0.00 | M89: 0.00 | P89: 0.00
A90: Увеличение стоимости прочих оборотных запасов (материалов) | B90: 07 | C90: 02 | D90: 0220272760 | E90: 244 | F90: 346000 | G90: 264272750000219 | H90: 0.00 | J90: 0.00 | K90: 0.00 | M90: 0.00 | N90: 0.00 | P90: 0.00
A91: Увеличение стоимости прочих материальных запасов однократного применения | B91: 07 | C91: 02 | D91: 0220272761 | E91: 244 | F91: 349100 | G91: 264272750000219 | H91: 0.00 | J91: 0.00 | K91: 0.00 | M91: 0.00 | N91: 0.00 | P91: 0.00
A92: Мероприятия по переподготовке и повышению квалификации кадров | B92: 07 | C92: 05 | D92: 0220272762 | E92: 244 | F92: 226700 | G92: 264272750000219 | H92: 0.00 | J92: 0.00 | K92: 0.00 | M92: 0.00 | N92: 0.00 | P92: 0.00
A93: Итого по КЦ 264272750000219 | H93: =SUM(H80:H92) -> 23,587,629.24 | I93: 0.00 | J93: 23,587,629.24 | K93: 0.00 | L93: 0.00 | M93: 0.00 | N93: 0.00 | O93: 0.00 | P93: 0.00
A94: Проведение мероприятий по обеспечению деятельности советников директора по воспитанию и взаимодействию с детскими общественными объединениями в общеобразовательных организациях (Субсидия) (КЦ 26-51790-00000-00000)
A95: Заработная плата | B95: 07 | C95: 02 | D95: 022Ю651790 | E95: 111 | F95: 211000 | G95: 26-51790-00000-00000 | H95: 268,223.28 | J95: =H95+I95 -> 268,223.28 | K95: 0.00 | M95: =K95+L95 -> 0.00 | N95: 0.00 | P95: =N95+O95 -> 0.00
A96: Начисления на выплаты по оплате труда | B96: 07 | C96: 02 | D96: 022Ю651790 | E96: 119 | F96: 213000 | G96: 26-51790-00000-00000 | H96: 81,003.43 | J96: =H96+I96 -> 81,003.43 | K96: 0.00 | M96: =K96+L96 -> 0.00 | N96: 0.00 | P96: =N96+O96 -> 0.00
A97: Итого по КЦ 26-51790-00000-00000 | H97: =SUM(H95:H96) -> 349,226.71 | I97: 0.00 | J97: 349,226.71 | K97: 0.00 | L97: 0.00 | M97: 0.00 | N97: 0.00 | O97: 0.00 | P97: 0.00
A98: Иные межбюджетные трансферты на обеспечение выплат ежемесячного денежного вознаграждения советникам директоров по воспитанию и взаимодействию с детскими общественными объединениями государственных общеобразовательных организаций, профессиональных образовательных организаций, муниципальных общеобразовательных организаций и профессиональных образовательных организаций (КЦ 2550500X298320000000)
A99: Заработная плата | B99: 07 | C99: 02 | D99: 022Ю650500 | E99: 111 | F99: 211000 | G99: 2550500X298320000000 | H99: 0.00 | J99: =H99+I99 -> 0.00 | K99: 0.00 | M99: =K99+L99 -> 0.00 | N99: 0.00 | P99: =N99+O99 -> 0.00
A100: Начисления на выплаты по оплате труда | B100: 07 | C100: 02 | D100: 022Ю650500 | E100: 119 | F100: 213000 | G100: 2550500X298320000000 | H100: 0.00 | J100: =H100+I100 -> 0.00 | K100: 0.00 | M100: =K100+L100 -> 0.00 | N100: 0.00 | P100: =N100+O100 -> 0.00
A101: Итого по КЦ 2550500X298320000000 | H101: =SUM(H99:H100) -> 0.00 | I101: 0.00 | J101: 0.00 | K101: 0.00 | L101: 0.00 | M101: 0.00 | N101: 0.00 | O101: 0.00 | P101: 0.00
A102: Иные межбюджетные трансферты на ежемесячное денежное вознаграждение за классное руководство педагогическим работникам государственных и муниципальных образовательных организаций, реализующих образовательные программы начального общего образования, образовательные программы основного общего образования, образовательные программы среднего общего образования (КЦ 2553030X298570000000)
A103: Заработная плата | B103: 07 | C103: 02 | D103: 022Ю653030 | E103: 111 | F103: 211000 | G103: 2553030X298570000000 | H103: 0.00 | J103: =H103+I103 -> 0.00 | K103: 0.00 | M103: =K103+L103 -> 0.00 | N103: 0.00 | P103: =N103+O103 -> 0.00
A104: Начисления на выплаты по оплате труда | B104: 07 | C104: 02 | D104: 022Ю653030 | E104: 119 | F104: 213000 | G104: 2553030X298570000000 | H104: 0.00 | J104: =H104+I104 -> 0.00 | K104: 0.00 | M104: =K104+L104 -> 0.00 | N104: 0.00 | P104: =N104+O104 -> 0.00
A105: Итого по КЦ 2553030X298570000000 | H105: =SUM(H103:H104) -> 0.00 | I105: 0.00 | J105: 0.00 | K105: 0.00 | L105: 0.00 | M105: 0.00 | N105: 0.00 | O105: 0.00 | P105: 0.00
A106: Субвенции на осуществление государственных полномочий РеспубликиКарелия по представлению предусмотренных пунктом 5 части 1 статьи 9 Закона Республики Карелия от 20 декабря 2013 гоа № 1755_ЗРК "Об образовании" мер социальной поддержки и социального обслуживания (КЦ 254242100000210)
A107: Увеличение стоимости прочих оборотных запасов (материалов) | B107: 07 | C107: 02 | D107: 0220242100 | E107: 244 | F107: 346000 | G107: 24424210000210 | J107: =H107+I107 -> 0.00 | K107: 0.00 | M107: =K107+L107 -> 0.00 | N107: 0.00 | P107: =N107+O107 -> 0.00
A108: Пособия по социальной помощи населению в натуральной форме | B108: 07 | C108: 02 | D108: 0220242100 | E108: 323 | F108: 263000 | G108: 254242100000210 | H108: 0.00 | J108: =H108+I108 -> 0.00 | K108: 0.00 | M108: =K108+L108 -> 0.00 | N108: 0.00 | P108: =N108+O108 -> 0.00
A109: Увеличение стоимости прочих оборотных запасов (материалов) | B109: 07 | C109: 02 | D109: 0220242100 | E109: 323 | F109: 346000 | G109: 23424210000210 | J109: =H109+I109 -> 0.00 | K109: 0.00 | M109: =K109+L109 -> 0.00 | N109: 0.00 | P109: =N109+O109 -> 0.00
A110: Итого по КЦ 254242100000210 | H110: =SUM(H107:H109) -> 0.00 | I110: 0.00 | J110: 0.00 | K110: 0.00 | L110: 0.00 | M110: 0.00 | N110: 0.00 | O110: 0.00 | P110: 0.00
A111: Субвенции на осуществление государственных полномочий Республики Карелия по выплате компенсации платы, взимаемой с родителей (законных представителей) за присмотр и уход за детьми, осваивающими образовательные программы дошкольного образования в организа
A112: Пособия по социальной помощи населению в натуральной форме | B112: 10 | C112: 04 | D112: 0220142030 | E112: 323 | F112: 263000 | G112: 23424203000203 | J112: =H112+I112 -> 0.00 | K112: 0.00 | M112: =K112+L112 -> 0.00 | N112: 0.00 | P112: =N112+O112 -> 0.00
A113: Итого по КЦ 23424203000203 | H113: =SUM(H112) -> 0.00 | I113: 0.00 | J113: 0.00 | K113: 0.00 | L113: 0.00 | M113: 0.00 | N113: 0.00 | O113: 0.00 | P113: 0.00
A114: Осуществление государственных полномочий Республики Карелия по предоставлению предусмотренных пунктом 5 части 1 статьи 9 Закона Республики Карелия от 20 декабря 2013 года № 1755-ЗРК "Об образовании" мер социальной поддержки и социального обслуживания обучающимся с ограниченными возможностями здоровья, за исключением обучающихся (воспитываемых) в государственных образовательных организациях Республики Карелия (Субвенции) (КЦ 264272740000210)
A115: Пособия по социальной помощи населению в натуральной форме | B115: 07 | C115: 02 | D115: 0220272740 | E115: 323 | F115: 263000 | G115: 264272740000210 | H115: 200,000.00 | J115: =H115+I115 -> 200,000.00 | K115: 0.00 | M115: =K115+L115 -> 0.00 | N115: 0.00 | P115: =N115+O115 -> 0.00
A116: Итого по КЦ 264272740000210 | H116: =SUM(H115:H115) -> 200,000.00 | I116: 0.00 | J116: 200,000.00 | K116: 0.00 | L116: 0.00 | M116: 0.00 | N116: 0.00 | O116: 0.00 | P116: 0.00
A117: Реализация мероприятий по организации бесплатного горячего питания обучающихся, получающих начальное общее образование в государственных и муниципальных образовательных организациях (Субсидии) (КЦ 26-53040-00000-00000)
A118: Другие расходы | B118: 07 | C118: 02 | D118: 02202L3040 | E118: 244 | F118: 226900 | G118: 26-53040-00000-00000 | H118: 629,694.40 | J118: =H118+I118 -> 629,694.40 | K118: 0.00 | M118: =K118+L118 -> 0.00 | N118: 0.00 | P118: =N118+O118 -> 0.00
A119: Итого по КЦ 26-53040-00000-00000 | H119: =SUM(H118:H118) -> 629,694.40 | I119: 0.00 | J119: 629,694.40 | K119: 0.00 | L119: 0.00 | M119: 0.00 | N119: 0.00 | O119: 0.00 | P119: 0.00
A120: Субсидия на реализацию мероприятий государственной программы Республики Карелия "Совершенствование социальной защиты граждан" в целях организации адресной социальной помощи семьям, имеющим детей (КЦ 254343210000316)
A121: Пособия по социальной помощи населению в натуральной форме | B121: 10 | C121: 03 | D121: 0320243210 | E121: 323 | F121: 263000 | G121: 254343210000316 | H121: 0.00 | J121: =H121+I121 -> 0.00 | K121: 0.00 | M121: =K121+L121 -> 0.00 | N121: 0.00 | P121: =N121+O121 -> 0.00
A122: Итого по КЦ 254343210000316 | H122: =SUM(H121:H121) -> 0.00 | I122: =SUM(I121:I121) -> 0.00 | J122: =SUM(J121:J121) -> 0.00 | K122: =SUM(K121:K121) -> 0.00 | L122: =SUM(L121:L121) -> 0.00 | M122: 0.00 | N122: 0.00 | O122: 0.00 | P122: 0.00
A123: Пособия по социальной помощи населению в натуральной форме | B123: 10 | C123: 03 | D123: 03202S3210 | E123: 323 | F123: 263000 | G123: 1000 | H123: 0.00 | J123: =H123+I123 -> 0.00 | K123: 0.00 | M123: 0.00 | N123: 0.00 | P123: 0.00
A124: Итого по КЦ 1000 | H124: =SUM(H123:H123) -> 0.00 | I124: 0.00 | J124: 0.00 | K124: 0.00 | L124: 0.00 | M124: 0.00 | N124: 0.00 | O124: 0.00 | P124: 0.00
A125: Субсидия местным бюджетам на организацию отдыха детей в каникулярное время (КЦ 254343540000778)
A126: Увеличение стоимости прочих оборотных запасов (материалов) | B126: 07 | C126: 09 | D126: 0220243210 | E126: 244 | F126: 346000 | G126: 2343432000321 | J126: =H126+I126 -> 0.00 | K126: 0.00 | M126: =K126+L126 -> 0.00 | N126: 0.00 | P126: =N126+O126 -> 0.00
A127: Другие расходы | B127: 07 | C127: 09 | D127: 0220243210 | E127: 244 | F127: 226900 | G127: 2343432000321 | J127: 0.00 | K127: 0.00 | M127: 0.00 | N127: 0.00 | P127: 0.00
A128: Транспортные услуги | B128: 07 | C128: 09 | D128: 0220243210 | E128: 244 | F128: 222000 | G128: 2343432000321 | J128: 0.00 | K128: 0.00 | M128: 0.00 | N128: 0.00 | P128: 0.00
A129: Другие расходы | B129: 07 | C129: 09 | D129: 02202S3540 | E129: 244 | F129: 226900 | G129: 254343540000778 | H129: 0.00 | J129: 0.00 | K129: 0.00 | M129: 0.00 | N129: 0.00 | P129: 0.00
A130: Расходы на оплату услуг по страхованию здоровья | B130: 07 | C130: 09 | D130: 02202S3540 | E130: 244 | F130: 227300 | G130: 254343540000778 | H130: 0.00 | J130: 0.00 | K130: 0.00 | M130: 0.00 | N130: 0.00 | P130: 0.00
A131: Увеличение стоимости прочих оборотных запасов (материалов) | B131: 07 | C131: 09 | D131: 02202S3540 | E131: 244 | F131: 346000 | G131: 254343540000778 | H131: 0.00 | J131: 0.00 | K131: 0.00 | M131: 0.00 | N131: 0.00 | P131: 0.00
A132: Итого по КЦ 2343432000321 | H132: =SUM(H126:H131) -> 0.00 | I132: 0.00 | J132: 0.00 | K132: 0.00 | L132: 0.00 | M132: 0.00 | N132: 0.00 | O132: 0.00 | P132: 0.00
A133: Субсидия местным бюджетам на реализацию мероприятий государственной программы Республики Карелия "Совершенствование социальной защиты граждан" (КЦ 2343432000321)
A134: Увеличение стоимости прочих оборотных запасов (материалов) | B134: 07 | C134: 09 | D134: 0220243210 | E134: 244 | F134: 346000 | G134: 2343432000321 | J134: =H134+I134 -> 0.00 | K134: 0.00 | M134: =K134+L134 -> 0.00 | N134: 0.00 | P134: =N134+O134 -> 0.00
A135: Другие расходы | B135: 07 | C135: 09 | D135: 0220243210 | E135: 244 | F135: 226900 | G135: 2343432000321 | J135: 0.00 | K135: 0.00 | M135: 0.00 | N135: 0.00 | P135: 0.00
A136: Транспортные услуги | B136: 07 | C136: 09 | D136: 0220243210 | E136: 244 | F136: 222000 | G136: 2343432000321 | J136: 0.00 | K136: 0.00 | M136: 0.00 | N136: 0.00 | P136: 0.00
A137: Увеличение стоимости прочих оборотных запасов (материалов) | B137: 07 | C137: 09 | D137: 02202S3210 | E137: 244 | F137: 346000 | G137: 1000 | J137: 0.00 | K137: 0.00 | M137: 0.00 | N137: 0.00 | P137: 0.00
A138: Другие расходы | B138: 07 | C138: 09 | D138: 02202S3210 | E138: 244 | F138: 226900 | G138: 1000 | J138: 0.00 | K138: 0.00 | M138: 0.00 | N138: 0.00 | P138: 0.00
A139: Транспортные услуги | B139: 07 | C139: 09 | D139: 02202S3210 | E139: 244 | F139: 222000 | G139: 1000 | J139: 0.00 | K139: 0.00 | M139: 0.00 | N139: 0.00 | P139: 0.00
A140: Итого по КЦ 2343432000321 | H140: =SUM(H134:H139) -> 0.00 | I140: 0.00 | J140: 0.00 | K140: 0.00 | L140: 0.00 | M140: 0.00 | N140: 0.00 | O140: 0.00 | P140: 0.00
A141: Иные межбюджетные трансферты на компенсацию затрат, связанных с освобождением членов семей постоянно проживающих на территории Республики Карелия граждан, призванных военным комиссариатом Республики Карелия на военную службу по мобилизации, а также гражд
A142: Продукты питания | B142: 07 | C142: 01 | D142: 0220175040 | E142: 244 | F142: 342000 | G142: 234475040П0514 | J142: =H142+I142 -> 0.00 | K142: 0.00 | M142: =K142+L142 -> 0.00 | N142: 0.00 | O142: =M142+N142 -> 0.00 | P142: =N142+O142 -> 0.00
A143: Итого по КЦ 234475040П0514 | H143: =SUM(H142) -> 0.00 | I143: 0.00 | J143: 0.00 | K143: 0.00 | L143: 0.00 | M143: 0.00 | N143: 0.00 | O143: 0.00 | P143: 0.00
G144: Всего | H144: =H78+H93+H110+H113+H116+H122+H124+H105+H97+H101+H132+H119 -> 28,991,017.48 | I144: =I78+I93+I110+I113+I116+I122+I124+I105+I97+I101+I132+I119 -> 0.00 | J144: =J78+J93+J110+J113+J116+J122+J124+J105+J97+J101+J132+J119 -> 28,991,017.48 | K144: =K78+K93+K110+K113+K116+K122+K124+K105+K97+K101+K132+K119 -> 4,604,820.33 | L144: 0.00 | M144: 4,604,820.33 | N144: 5,048,612.86 | O144: 0.00 | P144: 5,048,612.86
A148: Директор | F148: И.А. Сидорова
B149: (подпись) | F149: (расшифровка подписи)
A151: Гл.бухгалтер МУ "ЦБ № 1" | F151: И.В. Ананьева
A152: (уполномоченное лицо) | B152: (подпись) | F152: (расшифровка подписи)
A154: Главный экономист ПЭО МУ "ЦБ № 1" | F154: Е.Л. Герасимова
A155: (исполнитель) | B155: (подпись) | F155: (расшифровка подписи)
A157: =L18 -> "03" февраля 2026 г.
